{"text_format":"1","workbook":"xlsx","n_sheets":6,"sheets":["PERF 50m","PERF 2x25m","NOTEENDIRECT","REFERENTIELS","APPEL","DEBUT"],"not_rendered":{"charts":0,"images":2,"macros":0,"external_links":0,"defined_names":11,"comments":0,"pivot_tables":0},"unopened":[],"bounds":{"document_bytes":16777216,"sheet_cells":100000,"rows_first":2000,"rows_last":500,"rows_between":2000,"halvings":0,"cell_chars":16384,"cell_head_chars":4096},"cells_cut":0,"cells_raw":0,"read":"whole","date_system":"1900"}

{"sheet":"PERF 50m","index":0,"n_rows":36,"n_cols":25,"rows_kept":36,"cut":false,"hidden":false,"merged":[[33,1,33,2],[34,1,34,2],[35,1,35,2],[3,1,3,2],[28,1,28,2],[29,1,29,2],[30,1,30,2],[31,1,31,2],[32,1,32,2],[23,1,23,2],[24,1,24,2],[25,1,25,2],[26,1,26,2],[27,1,27,2],[18,1,18,2],[19,1,19,2],[20,1,20,2],[21,1,21,2],[22,1,22,2],[13,1,13,2],[14,1,14,2],[15,1,15,2],[16,1,16,2],[17,1,17,2],[8,1,8,2],[9,1,9,2],[10,1,10,2],[11,1,11,2],[12,1,12,2],[0,17,2,20],[4,1,4,2],[5,1,5,2],[6,1,6,2],[7,1,7,2],[0,5,2,14]]}
[null,"Classe ",null,null,null,"PERFORMANCES SUR 50 m plat",null,null,null,null,null,null,null,null,null,null,null,"PERFORMANCES LORS DU 2C1"]
[null,"1COMELEC",null,null,"N4"]
[]
[null,"Elèves",null,"Meilleure perf / 50m","Note /5","50 m ","50 m ","50 m ","50 m ","50 m ","50 m ","50 m ","50 m ","50 m ","50 m",null,null,"50m","50m","50m","50m","50m","50m","50m","50m"]
[{"$f":"IF($B$2=APPEL!$B$1,VLOOKUP(B5,APPEL!$C$3:$D$38,2,FALSE),IF($B$2=APPEL!$E$1,VLOOKUP(B5,APPEL!$F$3:$G$38,2,FALSE),IF($B$2=APPEL!$H$1,VLOOKUP(B5,APPEL!$I$3:$J$38,2,FALSE),IF($B$2=APPEL!$K$1,VLOOKUP(B5,APPEL!$L$3:$M$38,2,FALSE),IF($B$2=APPEL!$N$1,VLOOKUP(B5,APPEL!$O$3:$P$38,2,FALSE),IF($B$2=APPEL!$Q$1,VLOOKUP(B5,APPEL!$R$3:$S$38,2,FALSE),IF($B$2=APPEL!$T$1,VLOOKUP(B5,APPEL!$U$3:$V$38,2,FALSE),IF($B$2=APPEL!$W$1,VLOOKUP(B5,APPEL!$X$3:$Y$38,2,FALSE),IF($B$2=APPEL!$Z$1,VLOOKUP(B5,APPEL!$AA$3:$AB$38,2,FALSE))))))))))","v":"g"},{"$f":"IF($B$2=APPEL!$B$1,APPEL!C3,IF($B$2=APPEL!$E$1,APPEL!F3,IF($B$2=APPEL!$H$1,APPEL!I3,IF($B$2=APPEL!$K$1,APPEL!L3,IF($B$2=APPEL!$N$1,APPEL!O3,IF($B$2=APPEL!$Q$1,APPEL!R3,IF($B$2=APPEL!$T$1,APPEL!U3,IF($B$2=APPEL!$W$1,APPEL!X3,IF($B$2=APPEL!$Z$1,APPEL!AA3)))))))))","v":"Abdelmalik"},null,{"$f":"IFERROR(SMALL(F5:Y5,1),\"\")","v":6},{"$f":"IFERROR(IF(AND($E$2=DEBUT!$F$5,A5=\"G\"),VLOOKUP(D5,DEBUT!$H$5:$J$99,3,1),IF(AND($E$2=DEBUT!$F$6,A5=\"G\"),VLOOKUP(D5,DEBUT!$AI$5:$AK$70,3,1),IF(AND($E$2=DEBUT!$F$5,$A$5,A5=\"F\"),VLOOKUP(D5,DEBUT!$I$5:$J$99,2,1),IF(AND($E$2=DEBUT!$F$6,A5=\"F\"),VLOOKUP(D5,DEBUT!$AJ$5:$AK$70,2,1))))),\" perf-sexe?\")","v":5},6,null,null,null,null,null,null,null,null,null,null,null,{"$f":"IF(ROWS($1:$1)<=COUNTIF(sprinteur,$B5),INDEX(metre,SMALL(IF(sprinteur=$B5,ROW(INDIRECT(\"1:\"&ROWS(metre)))),ROWS($1:$1))),\"\")","v":""},{"$f":"IF(ROWS($1:$2)<=COUNTIF(sprinteur,$B5),INDEX(metre,SMALL(IF(sprinteur=$B5,ROW(INDIRECT(\"1:\"&ROWS(metre)))),ROWS($1:$2))),\"\")","v":""},{"$f":"IF(ROWS($1:$3)<=COUNTIF(sprinteur,$B5),INDEX(metre,SMALL(IF(sprinteur=$B5,ROW(INDIRECT(\"1:\"&ROWS(metre)))),ROWS($1:$3))),\"\")","v":""},{"$f":"IF(ROWS($1:$4)<=COUNTIF(sprinteur,$B5),INDEX(metre,SMALL(IF(sprinteur=$B5,ROW(INDIRECT(\"1:\"&ROWS(metre)))),ROWS($1:$4))),\"\")","v":""},{"$f":"IF(ROWS($1:$5)<=COUNTIF(sprinteur,$B5),INDEX(metre,SMALL(IF(sprinteur=$B5,ROW(INDIRECT(\"1:\"&ROWS(metre)))),ROWS($1:$5))),\"\")","v":""},{"$f":"IF(ROWS($1:$6)<=COUNTIF(sprinteur,$B5),INDEX(metre,SMALL(IF(sprinteur=$B5,ROW(INDIRECT(\"1:\"&ROWS(metre)))),ROWS($1:$6))),\"\")","v":""},{"$f":"IF(ROWS($1:$7)<=COUNTIF(sprinteur,$B5),INDEX(metre,SMALL(IF(sprinteur=$B5,ROW(INDIRECT(\"1:\"&ROWS(metre)))),ROWS($1:$7))),\"\")","v":""},{"$f":"IF(ROWS($1:$8)<=COUNTIF(sprinteur,$B5),INDEX(metre,SMALL(IF(sprinteur=$B5,ROW(INDIRECT(\"1:\"&ROWS(metre)))),ROWS($1:$8))),\"\")","v":""}]
[{"$f":"IF($B$2=APPEL!$B$1,VLOOKUP(B6,APPEL!$C$3:$D$38,2,FALSE),IF($B$2=APPEL!$E$1,VLOOKUP(B6,APPEL!$F$3:$G$38,2,FALSE),IF($B$2=APPEL!$H$1,VLOOKUP(B6,APPEL!$I$3:$J$38,2,FALSE),IF($B$2=APPEL!$K$1,VLOOKUP(B6,APPEL!$L$3:$M$38,2,FALSE),IF($B$2=APPEL!$N$1,VLOOKUP(B6,APPEL!$O$3:$P$38,2,FALSE),IF($B$2=APPEL!$Q$1,VLOOKUP(B6,APPEL!$R$3:$S$38,2,FALSE),IF($B$2=APPEL!$T$1,VLOOKUP(B6,APPEL!$U$3:$V$38,2,FALSE),IF($B$2=APPEL!$W$1,VLOOKUP(B6,APPEL!$X$3:$Y$38,2,FALSE),IF($B$2=APPEL!$Z$1,VLOOKUP(B6,APPEL!$AA$3:$AB$38,2,FALSE))))))))))","v":"g"},{"$f":"IF($B$2=APPEL!$B$1,APPEL!C4,IF($B$2=APPEL!$E$1,APPEL!F4,IF($B$2=APPEL!$H$1,APPEL!I4,IF($B$2=APPEL!$K$1,APPEL!L4,IF($B$2=APPEL!$N$1,APPEL!O4,IF($B$2=APPEL!$Q$1,APPEL!R4,IF($B$2=APPEL!$T$1,APPEL!U4,IF($B$2=APPEL!$W$1,APPEL!X4,IF($B$2=APPEL!$Z$1,APPEL!AA4)))))))))","v":"Hamza"},null,{"$f":"IFERROR(SMALL(F6:Y6,1),\"\")","v":5.8},{"$f":"IFERROR(IF(AND($E$2=DEBUT!$F$5,A6=\"G\"),VLOOKUP(D6,DEBUT!$H$5:$J$99,3,1),IF(AND($E$2=DEBUT!$F$6,A6=\"G\"),VLOOKUP(D6,DEBUT!$AI$5:$AK$70,3,1),IF(AND($E$2=DEBUT!$F$5,$A$5,A6=\"F\"),VLOOKUP(D6,DEBUT!$I$5:$J$99,2,1),IF(AND($E$2=DEBUT!$F$6,A6=\"F\"),VLOOKUP(D6,DEBUT!$AJ$5:$AK$70,2,1))))),\" perf-sexe?\")","v":5},5.8,null,null,null,null,null,null,null,null,null,null,null,{"$f":"IF(ROWS($1:$1)<=COUNTIF(sprinteur,$B6),INDEX(metre,SMALL(IF(sprinteur=$B6,ROW(INDIRECT(\"1:\"&ROWS(metre)))),ROWS($1:$1))),\"\")","v":""},{"$f":"IF(ROWS($1:$2)<=COUNTIF(sprinteur,$B6),INDEX(metre,SMALL(IF(sprinteur=$B6,ROW(INDIRECT(\"1:\"&ROWS(metre)))),ROWS($1:$2))),\"\")","v":""},{"$f":"IF(ROWS($1:$3)<=COUNTIF(sprinteur,$B6),INDEX(metre,SMALL(IF(sprinteur=$B6,ROW(INDIRECT(\"1:\"&ROWS(metre)))),ROWS($1:$3))),\"\")","v":""},{"$f":"IF(ROWS($1:$4)<=COUNTIF(sprinteur,$B6),INDEX(metre,SMALL(IF(sprinteur=$B6,ROW(INDIRECT(\"1:\"&ROWS(metre)))),ROWS($1:$4))),\"\")","v":""},"","","",""]
[{"$f":"IF($B$2=APPEL!$B$1,VLOOKUP(B7,APPEL!$C$3:$D$38,2,FALSE),IF($B$2=APPEL!$E$1,VLOOKUP(B7,APPEL!$F$3:$G$38,2,FALSE),IF($B$2=APPEL!$H$1,VLOOKUP(B7,APPEL!$I$3:$J$38,2,FALSE),IF($B$2=APPEL!$K$1,VLOOKUP(B7,APPEL!$L$3:$M$38,2,FALSE),IF($B$2=APPEL!$N$1,VLOOKUP(B7,APPEL!$O$3:$P$38,2,FALSE),IF($B$2=APPEL!$Q$1,VLOOKUP(B7,APPEL!$R$3:$S$38,2,FALSE),IF($B$2=APPEL!$T$1,VLOOKUP(B7,APPEL!$U$3:$V$38,2,FALSE),IF($B$2=APPEL!$W$1,VLOOKUP(B7,APPEL!$X$3:$Y$38,2,FALSE),IF($B$2=APPEL!$Z$1,VLOOKUP(B7,APPEL!$AA$3:$AB$38,2,FALSE))))))))))","v":"g"},{"$f":"IF($B$2=APPEL!$B$1,APPEL!C5,IF($B$2=APPEL!$E$1,APPEL!F5,IF($B$2=APPEL!$H$1,APPEL!I5,IF($B$2=APPEL!$K$1,APPEL!L5,IF($B$2=APPEL!$N$1,APPEL!O5,IF($B$2=APPEL!$Q$1,APPEL!R5,IF($B$2=APPEL!$T$1,APPEL!U5,IF($B$2=APPEL!$W$1,APPEL!X5,IF($B$2=APPEL!$Z$1,APPEL!AA5)))))))))","v":"Wassim"},null,"",{"$f":"IFERROR(IF(AND($E$2=DEBUT!$F$5,A7=\"G\"),VLOOKUP(D7,DEBUT!$H$5:$J$99,3,1),IF(AND($E$2=DEBUT!$F$6,A7=\"G\"),VLOOKUP(D7,DEBUT!$AI$5:$AK$70,3,1),IF(AND($E$2=DEBUT!$F$5,$A$5,A7=\"F\"),VLOOKUP(D7,DEBUT!$I$5:$J$99,2,1),IF(AND($E$2=DEBUT!$F$6,A7=\"F\"),VLOOKUP(D7,DEBUT!$AJ$5:$AK$70,2,1))))),\" perf-sexe?\")","v":" perf-sexe?"},null,null,null,null,null,null,null,null,null,null,null,null,{"$f":"IF(ROWS($1:$1)<=COUNTIF(sprinteur,$B7),INDEX(metre,SMALL(IF(sprinteur=$B7,ROW(INDIRECT(\"1:\"&ROWS(metre)))),ROWS($1:$1))),\"\")","v":""},{"$f":"IF(ROWS($1:$2)<=COUNTIF(sprinteur,$B7),INDEX(metre,SMALL(IF(sprinteur=$B7,ROW(INDIRECT(\"1:\"&ROWS(metre)))),ROWS($1:$2))),\"\")","v":""},{"$f":"IF(ROWS($1:$3)<=COUNTIF(sprinteur,$B7),INDEX(metre,SMALL(IF(sprinteur=$B7,ROW(INDIRECT(\"1:\"&ROWS(metre)))),ROWS($1:$3))),\"\")","v":""},{"$f":"IF(ROWS($1:$4)<=COUNTIF(sprinteur,$B7),INDEX(metre,SMALL(IF(sprinteur=$B7,ROW(INDIRECT(\"1:\"&ROWS(metre)))),ROWS($1:$4))),\"\")","v":""},"","","",""]
[{"$f":"IF($B$2=APPEL!$B$1,VLOOKUP(B8,APPEL!$C$3:$D$38,2,FALSE),IF($B$2=APPEL!$E$1,VLOOKUP(B8,APPEL!$F$3:$G$38,2,FALSE),IF($B$2=APPEL!$H$1,VLOOKUP(B8,APPEL!$I$3:$J$38,2,FALSE),IF($B$2=APPEL!$K$1,VLOOKUP(B8,APPEL!$L$3:$M$38,2,FALSE),IF($B$2=APPEL!$N$1,VLOOKUP(B8,APPEL!$O$3:$P$38,2,FALSE),IF($B$2=APPEL!$Q$1,VLOOKUP(B8,APPEL!$R$3:$S$38,2,FALSE),IF($B$2=APPEL!$T$1,VLOOKUP(B8,APPEL!$U$3:$V$38,2,FALSE),IF($B$2=APPEL!$W$1,VLOOKUP(B8,APPEL!$X$3:$Y$38,2,FALSE),IF($B$2=APPEL!$Z$1,VLOOKUP(B8,APPEL!$AA$3:$AB$38,2,FALSE))))))))))","v":"g"},{"$f":"IF($B$2=APPEL!$B$1,APPEL!C6,IF($B$2=APPEL!$E$1,APPEL!F6,IF($B$2=APPEL!$H$1,APPEL!I6,IF($B$2=APPEL!$K$1,APPEL!L6,IF($B$2=APPEL!$N$1,APPEL!O6,IF($B$2=APPEL!$Q$1,APPEL!R6,IF($B$2=APPEL!$T$1,APPEL!U6,IF($B$2=APPEL!$W$1,APPEL!X6,IF($B$2=APPEL!$Z$1,APPEL!AA6)))))))))","v":"Erol"},null,"",{"$f":"IFERROR(IF(AND($E$2=DEBUT!$F$5,A8=\"G\"),VLOOKUP(D8,DEBUT!$H$5:$J$99,3,1),IF(AND($E$2=DEBUT!$F$6,A8=\"G\"),VLOOKUP(D8,DEBUT!$AI$5:$AK$70,3,1),IF(AND($E$2=DEBUT!$F$5,$A$5,A8=\"F\"),VLOOKUP(D8,DEBUT!$I$5:$J$99,2,1),IF(AND($E$2=DEBUT!$F$6,A8=\"F\"),VLOOKUP(D8,DEBUT!$AJ$5:$AK$70,2,1))))),\" perf-sexe?\")","v":" perf-sexe?"},null,null,null,null,null,null,null,null,null,null,null,null,{"$f":"IF(ROWS($1:$1)<=COUNTIF(sprinteur,$B8),INDEX(metre,SMALL(IF(sprinteur=$B8,ROW(INDIRECT(\"1:\"&ROWS(metre)))),ROWS($1:$1))),\"\")","v":""},{"$f":"IF(ROWS($1:$2)<=COUNTIF(sprinteur,$B8),INDEX(metre,SMALL(IF(sprinteur=$B8,ROW(INDIRECT(\"1:\"&ROWS(metre)))),ROWS($1:$2))),\"\")","v":""},{"$f":"IF(ROWS($1:$3)<=COUNTIF(sprinteur,$B8),INDEX(metre,SMALL(IF(sprinteur=$B8,ROW(INDIRECT(\"1:\"&ROWS(metre)))),ROWS($1:$3))),\"\")","v":""},{"$f":"IF(ROWS($1:$4)<=COUNTIF(sprinteur,$B8),INDEX(metre,SMALL(IF(sprinteur=$B8,ROW(INDIRECT(\"1:\"&ROWS(metre)))),ROWS($1:$4))),\"\")","v":""},"","","",""]
[{"$f":"IF($B$2=APPEL!$B$1,VLOOKUP(B9,APPEL!$C$3:$D$38,2,FALSE),IF($B$2=APPEL!$E$1,VLOOKUP(B9,APPEL!$F$3:$G$38,2,FALSE),IF($B$2=APPEL!$H$1,VLOOKUP(B9,APPEL!$I$3:$J$38,2,FALSE),IF($B$2=APPEL!$K$1,VLOOKUP(B9,APPEL!$L$3:$M$38,2,FALSE),IF($B$2=APPEL!$N$1,VLOOKUP(B9,APPEL!$O$3:$P$38,2,FALSE),IF($B$2=APPEL!$Q$1,VLOOKUP(B9,APPEL!$R$3:$S$38,2,FALSE),IF($B$2=APPEL!$T$1,VLOOKUP(B9,APPEL!$U$3:$V$38,2,FALSE),IF($B$2=APPEL!$W$1,VLOOKUP(B9,APPEL!$X$3:$Y$38,2,FALSE),IF($B$2=APPEL!$Z$1,VLOOKUP(B9,APPEL!$AA$3:$AB$38,2,FALSE))))))))))","v":"g"},{"$f":"IF($B$2=APPEL!$B$1,APPEL!C7,IF($B$2=APPEL!$E$1,APPEL!F7,IF($B$2=APPEL!$H$1,APPEL!I7,IF($B$2=APPEL!$K$1,APPEL!L7,IF($B$2=APPEL!$N$1,APPEL!O7,IF($B$2=APPEL!$Q$1,APPEL!R7,IF($B$2=APPEL!$T$1,APPEL!U7,IF($B$2=APPEL!$W$1,APPEL!X7,IF($B$2=APPEL!$Z$1,APPEL!AA7)))))))))","v":"Rayan"},null,"",{"$f":"IFERROR(IF(AND($E$2=DEBUT!$F$5,A9=\"G\"),VLOOKUP(D9,DEBUT!$H$5:$J$99,3,1),IF(AND($E$2=DEBUT!$F$6,A9=\"G\"),VLOOKUP(D9,DEBUT!$AI$5:$AK$70,3,1),IF(AND($E$2=DEBUT!$F$5,$A$5,A9=\"F\"),VLOOKUP(D9,DEBUT!$I$5:$J$99,2,1),IF(AND($E$2=DEBUT!$F$6,A9=\"F\"),VLOOKUP(D9,DEBUT!$AJ$5:$AK$70,2,1))))),\" perf-sexe?\")","v":" perf-sexe?"},null,null,null,null,null,null,null,null,null,null,null,null,{"$f":"IF(ROWS($1:$1)<=COUNTIF(sprinteur,$B9),INDEX(metre,SMALL(IF(sprinteur=$B9,ROW(INDIRECT(\"1:\"&ROWS(metre)))),ROWS($1:$1))),\"\")","v":""},{"$f":"IF(ROWS($1:$2)<=COUNTIF(sprinteur,$B9),INDEX(metre,SMALL(IF(sprinteur=$B9,ROW(INDIRECT(\"1:\"&ROWS(metre)))),ROWS($1:$2))),\"\")","v":""},{"$f":"IF(ROWS($1:$3)<=COUNTIF(sprinteur,$B9),INDEX(metre,SMALL(IF(sprinteur=$B9,ROW(INDIRECT(\"1:\"&ROWS(metre)))),ROWS($1:$3))),\"\")","v":""},{"$f":"IF(ROWS($1:$4)<=COUNTIF(sprinteur,$B9),INDEX(metre,SMALL(IF(sprinteur=$B9,ROW(INDIRECT(\"1:\"&ROWS(metre)))),ROWS($1:$4))),\"\")","v":""},"","","",""]
[{"$f":"IF($B$2=APPEL!$B$1,VLOOKUP(B10,APPEL!$C$3:$D$38,2,FALSE),IF($B$2=APPEL!$E$1,VLOOKUP(B10,APPEL!$F$3:$G$38,2,FALSE),IF($B$2=APPEL!$H$1,VLOOKUP(B10,APPEL!$I$3:$J$38,2,FALSE),IF($B$2=APPEL!$K$1,VLOOKUP(B10,APPEL!$L$3:$M$38,2,FALSE),IF($B$2=APPEL!$N$1,VLOOKUP(B10,APPEL!$O$3:$P$38,2,FALSE),IF($B$2=APPEL!$Q$1,VLOOKUP(B10,APPEL!$R$3:$S$38,2,FALSE),IF($B$2=APPEL!$T$1,VLOOKUP(B10,APPEL!$U$3:$V$38,2,FALSE),IF($B$2=APPEL!$W$1,VLOOKUP(B10,APPEL!$X$3:$Y$38,2,FALSE),IF($B$2=APPEL!$Z$1,VLOOKUP(B10,APPEL!$AA$3:$AB$38,2,FALSE))))))))))","v":"g"},{"$f":"IF($B$2=APPEL!$B$1,APPEL!C8,IF($B$2=APPEL!$E$1,APPEL!F8,IF($B$2=APPEL!$H$1,APPEL!I8,IF($B$2=APPEL!$K$1,APPEL!L8,IF($B$2=APPEL!$N$1,APPEL!O8,IF($B$2=APPEL!$Q$1,APPEL!R8,IF($B$2=APPEL!$T$1,APPEL!U8,IF($B$2=APPEL!$W$1,APPEL!X8,IF($B$2=APPEL!$Z$1,APPEL!AA8)))))))))","v":"Ismail"},null,"",{"$f":"IFERROR(IF(AND($E$2=DEBUT!$F$5,A10=\"G\"),VLOOKUP(D10,DEBUT!$H$5:$J$99,3,1),IF(AND($E$2=DEBUT!$F$6,A10=\"G\"),VLOOKUP(D10,DEBUT!$AI$5:$AK$70,3,1),IF(AND($E$2=DEBUT!$F$5,$A$5,A10=\"F\"),VLOOKUP(D10,DEBUT!$I$5:$J$99,2,1),IF(AND($E$2=DEBUT!$F$6,A10=\"F\"),VLOOKUP(D10,DEBUT!$AJ$5:$AK$70,2,1))))),\" perf-sexe?\")","v":" perf-sexe?"},null,null,null,null,null,null,null,null,null,null,null,null,{"$f":"IF(ROWS($1:$1)<=COUNTIF(sprinteur,$B10),INDEX(metre,SMALL(IF(sprinteur=$B10,ROW(INDIRECT(\"1:\"&ROWS(metre)))),ROWS($1:$1))),\"\")","v":""},{"$f":"IF(ROWS($1:$2)<=COUNTIF(sprinteur,$B10),INDEX(metre,SMALL(IF(sprinteur=$B10,ROW(INDIRECT(\"1:\"&ROWS(metre)))),ROWS($1:$2))),\"\")","v":""},{"$f":"IF(ROWS($1:$3)<=COUNTIF(sprinteur,$B10),INDEX(metre,SMALL(IF(sprinteur=$B10,ROW(INDIRECT(\"1:\"&ROWS(metre)))),ROWS($1:$3))),\"\")","v":""},{"$f":"IF(ROWS($1:$4)<=COUNTIF(sprinteur,$B10),INDEX(metre,SMALL(IF(sprinteur=$B10,ROW(INDIRECT(\"1:\"&ROWS(metre)))),ROWS($1:$4))),\"\")","v":""},"","","",""]
[{"$f":"IF($B$2=APPEL!$B$1,VLOOKUP(B11,APPEL!$C$3:$D$38,2,FALSE),IF($B$2=APPEL!$E$1,VLOOKUP(B11,APPEL!$F$3:$G$38,2,FALSE),IF($B$2=APPEL!$H$1,VLOOKUP(B11,APPEL!$I$3:$J$38,2,FALSE),IF($B$2=APPEL!$K$1,VLOOKUP(B11,APPEL!$L$3:$M$38,2,FALSE),IF($B$2=APPEL!$N$1,VLOOKUP(B11,APPEL!$O$3:$P$38,2,FALSE),IF($B$2=APPEL!$Q$1,VLOOKUP(B11,APPEL!$R$3:$S$38,2,FALSE),IF($B$2=APPEL!$T$1,VLOOKUP(B11,APPEL!$U$3:$V$38,2,FALSE),IF($B$2=APPEL!$W$1,VLOOKUP(B11,APPEL!$X$3:$Y$38,2,FALSE),IF($B$2=APPEL!$Z$1,VLOOKUP(B11,APPEL!$AA$3:$AB$38,2,FALSE))))))))))","v":"g"},{"$f":"IF($B$2=APPEL!$B$1,APPEL!C9,IF($B$2=APPEL!$E$1,APPEL!F9,IF($B$2=APPEL!$H$1,APPEL!I9,IF($B$2=APPEL!$K$1,APPEL!L9,IF($B$2=APPEL!$N$1,APPEL!O9,IF($B$2=APPEL!$Q$1,APPEL!R9,IF($B$2=APPEL!$T$1,APPEL!U9,IF($B$2=APPEL!$W$1,APPEL!X9,IF($B$2=APPEL!$Z$1,APPEL!AA9)))))))))","v":"Aslem"},null,"",{"$f":"IFERROR(IF(AND($E$2=DEBUT!$F$5,A11=\"G\"),VLOOKUP(D11,DEBUT!$H$5:$J$99,3,1),IF(AND($E$2=DEBUT!$F$6,A11=\"G\"),VLOOKUP(D11,DEBUT!$AI$5:$AK$70,3,1),IF(AND($E$2=DEBUT!$F$5,$A$5,A11=\"F\"),VLOOKUP(D11,DEBUT!$I$5:$J$99,2,1),IF(AND($E$2=DEBUT!$F$6,A11=\"F\"),VLOOKUP(D11,DEBUT!$AJ$5:$AK$70,2,1))))),\" perf-sexe?\")","v":" perf-sexe?"},null,null,null,null,null,null,null,null,null,null,null,null,{"$f":"IF(ROWS($1:$1)<=COUNTIF(sprinteur,$B11),INDEX(metre,SMALL(IF(sprinteur=$B11,ROW(INDIRECT(\"1:\"&ROWS(metre)))),ROWS($1:$1))),\"\")","v":""},{"$f":"IF(ROWS($1:$2)<=COUNTIF(sprinteur,$B11),INDEX(metre,SMALL(IF(sprinteur=$B11,ROW(INDIRECT(\"1:\"&ROWS(metre)))),ROWS($1:$2))),\"\")","v":""},{"$f":"IF(ROWS($1:$3)<=COUNTIF(sprinteur,$B11),INDEX(metre,SMALL(IF(sprinteur=$B11,ROW(INDIRECT(\"1:\"&ROWS(metre)))),ROWS($1:$3))),\"\")","v":""},{"$f":"IF(ROWS($1:$4)<=COUNTIF(sprinteur,$B11),INDEX(metre,SMALL(IF(sprinteur=$B11,ROW(INDIRECT(\"1:\"&ROWS(metre)))),ROWS($1:$4))),\"\")","v":""},"","","",""]
[{"$f":"IF($B$2=APPEL!$B$1,VLOOKUP(B12,APPEL!$C$3:$D$38,2,FALSE),IF($B$2=APPEL!$E$1,VLOOKUP(B12,APPEL!$F$3:$G$38,2,FALSE),IF($B$2=APPEL!$H$1,VLOOKUP(B12,APPEL!$I$3:$J$38,2,FALSE),IF($B$2=APPEL!$K$1,VLOOKUP(B12,APPEL!$L$3:$M$38,2,FALSE),IF($B$2=APPEL!$N$1,VLOOKUP(B12,APPEL!$O$3:$P$38,2,FALSE),IF($B$2=APPEL!$Q$1,VLOOKUP(B12,APPEL!$R$3:$S$38,2,FALSE),IF($B$2=APPEL!$T$1,VLOOKUP(B12,APPEL!$U$3:$V$38,2,FALSE),IF($B$2=APPEL!$W$1,VLOOKUP(B12,APPEL!$X$3:$Y$38,2,FALSE),IF($B$2=APPEL!$Z$1,VLOOKUP(B12,APPEL!$AA$3:$AB$38,2,FALSE))))))))))","v":"f"},{"$f":"IF($B$2=APPEL!$B$1,APPEL!C10,IF($B$2=APPEL!$E$1,APPEL!F10,IF($B$2=APPEL!$H$1,APPEL!I10,IF($B$2=APPEL!$K$1,APPEL!L10,IF($B$2=APPEL!$N$1,APPEL!O10,IF($B$2=APPEL!$Q$1,APPEL!R10,IF($B$2=APPEL!$T$1,APPEL!U10,IF($B$2=APPEL!$W$1,APPEL!X10,IF($B$2=APPEL!$Z$1,APPEL!AA10)))))))))","v":"Dounia"},null,"",{"$f":"IFERROR(IF(AND($E$2=DEBUT!$F$5,A12=\"G\"),VLOOKUP(D12,DEBUT!$H$5:$J$99,3,1),IF(AND($E$2=DEBUT!$F$6,A12=\"G\"),VLOOKUP(D12,DEBUT!$AI$5:$AK$70,3,1),IF(AND($E$2=DEBUT!$F$5,$A$5,A12=\"F\"),VLOOKUP(D12,DEBUT!$I$5:$J$99,2,1),IF(AND($E$2=DEBUT!$F$6,A12=\"F\"),VLOOKUP(D12,DEBUT!$AJ$5:$AK$70,2,1))))),\" perf-sexe?\")","v":" perf-sexe?"},null,null,null,null,null,null,null,null,null,null,null,null,{"$f":"IF(ROWS($1:$1)<=COUNTIF(sprinteur,$B12),INDEX(metre,SMALL(IF(sprinteur=$B12,ROW(INDIRECT(\"1:\"&ROWS(metre)))),ROWS($1:$1))),\"\")","v":""},{"$f":"IF(ROWS($1:$2)<=COUNTIF(sprinteur,$B12),INDEX(metre,SMALL(IF(sprinteur=$B12,ROW(INDIRECT(\"1:\"&ROWS(metre)))),ROWS($1:$2))),\"\")","v":""},{"$f":"IF(ROWS($1:$3)<=COUNTIF(sprinteur,$B12),INDEX(metre,SMALL(IF(sprinteur=$B12,ROW(INDIRECT(\"1:\"&ROWS(metre)))),ROWS($1:$3))),\"\")","v":""},{"$f":"IF(ROWS($1:$4)<=COUNTIF(sprinteur,$B12),INDEX(metre,SMALL(IF(sprinteur=$B12,ROW(INDIRECT(\"1:\"&ROWS(metre)))),ROWS($1:$4))),\"\")","v":""},"","","",""]
[{"$f":"IF($B$2=APPEL!$B$1,VLOOKUP(B13,APPEL!$C$3:$D$38,2,FALSE),IF($B$2=APPEL!$E$1,VLOOKUP(B13,APPEL!$F$3:$G$38,2,FALSE),IF($B$2=APPEL!$H$1,VLOOKUP(B13,APPEL!$I$3:$J$38,2,FALSE),IF($B$2=APPEL!$K$1,VLOOKUP(B13,APPEL!$L$3:$M$38,2,FALSE),IF($B$2=APPEL!$N$1,VLOOKUP(B13,APPEL!$O$3:$P$38,2,FALSE),IF($B$2=APPEL!$Q$1,VLOOKUP(B13,APPEL!$R$3:$S$38,2,FALSE),IF($B$2=APPEL!$T$1,VLOOKUP(B13,APPEL!$U$3:$V$38,2,FALSE),IF($B$2=APPEL!$W$1,VLOOKUP(B13,APPEL!$X$3:$Y$38,2,FALSE),IF($B$2=APPEL!$Z$1,VLOOKUP(B13,APPEL!$AA$3:$AB$38,2,FALSE))))))))))","v":"g"},{"$f":"IF($B$2=APPEL!$B$1,APPEL!C11,IF($B$2=APPEL!$E$1,APPEL!F11,IF($B$2=APPEL!$H$1,APPEL!I11,IF($B$2=APPEL!$K$1,APPEL!L11,IF($B$2=APPEL!$N$1,APPEL!O11,IF($B$2=APPEL!$Q$1,APPEL!R11,IF($B$2=APPEL!$T$1,APPEL!U11,IF($B$2=APPEL!$W$1,APPEL!X11,IF($B$2=APPEL!$Z$1,APPEL!AA11)))))))))","v":"Daya"},null,"",{"$f":"IFERROR(IF(AND($E$2=DEBUT!$F$5,A13=\"G\"),VLOOKUP(D13,DEBUT!$H$5:$J$99,3,1),IF(AND($E$2=DEBUT!$F$6,A13=\"G\"),VLOOKUP(D13,DEBUT!$AI$5:$AK$70,3,1),IF(AND($E$2=DEBUT!$F$5,$A$5,A13=\"F\"),VLOOKUP(D13,DEBUT!$I$5:$J$99,2,1),IF(AND($E$2=DEBUT!$F$6,A13=\"F\"),VLOOKUP(D13,DEBUT!$AJ$5:$AK$70,2,1))))),\" perf-sexe?\")","v":" perf-sexe?"},null,null,null,null,null,null,null,null,null,null,null,null,{"$f":"IF(ROWS($1:$1)<=COUNTIF(sprinteur,$B13),INDEX(metre,SMALL(IF(sprinteur=$B13,ROW(INDIRECT(\"1:\"&ROWS(metre)))),ROWS($1:$1))),\"\")","v":""},{"$f":"IF(ROWS($1:$2)<=COUNTIF(sprinteur,$B13),INDEX(metre,SMALL(IF(sprinteur=$B13,ROW(INDIRECT(\"1:\"&ROWS(metre)))),ROWS($1:$2))),\"\")","v":""},{"$f":"IF(ROWS($1:$3)<=COUNTIF(sprinteur,$B13),INDEX(metre,SMALL(IF(sprinteur=$B13,ROW(INDIRECT(\"1:\"&ROWS(metre)))),ROWS($1:$3))),\"\")","v":""},{"$f":"IF(ROWS($1:$4)<=COUNTIF(sprinteur,$B13),INDEX(metre,SMALL(IF(sprinteur=$B13,ROW(INDIRECT(\"1:\"&ROWS(metre)))),ROWS($1:$4))),\"\")","v":""},"","","",""]
[{"$f":"IF($B$2=APPEL!$B$1,VLOOKUP(B14,APPEL!$C$3:$D$38,2,FALSE),IF($B$2=APPEL!$E$1,VLOOKUP(B14,APPEL!$F$3:$G$38,2,FALSE),IF($B$2=APPEL!$H$1,VLOOKUP(B14,APPEL!$I$3:$J$38,2,FALSE),IF($B$2=APPEL!$K$1,VLOOKUP(B14,APPEL!$L$3:$M$38,2,FALSE),IF($B$2=APPEL!$N$1,VLOOKUP(B14,APPEL!$O$3:$P$38,2,FALSE),IF($B$2=APPEL!$Q$1,VLOOKUP(B14,APPEL!$R$3:$S$38,2,FALSE),IF($B$2=APPEL!$T$1,VLOOKUP(B14,APPEL!$U$3:$V$38,2,FALSE),IF($B$2=APPEL!$W$1,VLOOKUP(B14,APPEL!$X$3:$Y$38,2,FALSE),IF($B$2=APPEL!$Z$1,VLOOKUP(B14,APPEL!$AA$3:$AB$38,2,FALSE))))))))))","v":"g"},{"$f":"IF($B$2=APPEL!$B$1,APPEL!C12,IF($B$2=APPEL!$E$1,APPEL!F12,IF($B$2=APPEL!$H$1,APPEL!I12,IF($B$2=APPEL!$K$1,APPEL!L12,IF($B$2=APPEL!$N$1,APPEL!O12,IF($B$2=APPEL!$Q$1,APPEL!R12,IF($B$2=APPEL!$T$1,APPEL!U12,IF($B$2=APPEL!$W$1,APPEL!X12,IF($B$2=APPEL!$Z$1,APPEL!AA12)))))))))","v":"Erwan"},null,"",{"$f":"IFERROR(IF(AND($E$2=DEBUT!$F$5,A14=\"G\"),VLOOKUP(D14,DEBUT!$H$5:$J$99,3,1),IF(AND($E$2=DEBUT!$F$6,A14=\"G\"),VLOOKUP(D14,DEBUT!$AI$5:$AK$70,3,1),IF(AND($E$2=DEBUT!$F$5,$A$5,A14=\"F\"),VLOOKUP(D14,DEBUT!$I$5:$J$99,2,1),IF(AND($E$2=DEBUT!$F$6,A14=\"F\"),VLOOKUP(D14,DEBUT!$AJ$5:$AK$70,2,1))))),\" perf-sexe?\")","v":" perf-sexe?"},null,null,null,null,null,null,null,null,null,null,null,null,{"$f":"IF(ROWS($1:$1)<=COUNTIF(sprinteur,$B14),INDEX(metre,SMALL(IF(sprinteur=$B14,ROW(INDIRECT(\"1:\"&ROWS(metre)))),ROWS($1:$1))),\"\")","v":""},{"$f":"IF(ROWS($1:$2)<=COUNTIF(sprinteur,$B14),INDEX(metre,SMALL(IF(sprinteur=$B14,ROW(INDIRECT(\"1:\"&ROWS(metre)))),ROWS($1:$2))),\"\")","v":""},{"$f":"IF(ROWS($1:$3)<=COUNTIF(sprinteur,$B14),INDEX(metre,SMALL(IF(sprinteur=$B14,ROW(INDIRECT(\"1:\"&ROWS(metre)))),ROWS($1:$3))),\"\")","v":""},{"$f":"IF(ROWS($1:$4)<=COUNTIF(sprinteur,$B14),INDEX(metre,SMALL(IF(sprinteur=$B14,ROW(INDIRECT(\"1:\"&ROWS(metre)))),ROWS($1:$4))),\"\")","v":""},"","","",""]
[{"$f":"IF($B$2=APPEL!$B$1,VLOOKUP(B15,APPEL!$C$3:$D$38,2,FALSE),IF($B$2=APPEL!$E$1,VLOOKUP(B15,APPEL!$F$3:$G$38,2,FALSE),IF($B$2=APPEL!$H$1,VLOOKUP(B15,APPEL!$I$3:$J$38,2,FALSE),IF($B$2=APPEL!$K$1,VLOOKUP(B15,APPEL!$L$3:$M$38,2,FALSE),IF($B$2=APPEL!$N$1,VLOOKUP(B15,APPEL!$O$3:$P$38,2,FALSE),IF($B$2=APPEL!$Q$1,VLOOKUP(B15,APPEL!$R$3:$S$38,2,FALSE),IF($B$2=APPEL!$T$1,VLOOKUP(B15,APPEL!$U$3:$V$38,2,FALSE),IF($B$2=APPEL!$W$1,VLOOKUP(B15,APPEL!$X$3:$Y$38,2,FALSE),IF($B$2=APPEL!$Z$1,VLOOKUP(B15,APPEL!$AA$3:$AB$38,2,FALSE))))))))))","v":"g"},{"$f":"IF($B$2=APPEL!$B$1,APPEL!C13,IF($B$2=APPEL!$E$1,APPEL!F13,IF($B$2=APPEL!$H$1,APPEL!I13,IF($B$2=APPEL!$K$1,APPEL!L13,IF($B$2=APPEL!$N$1,APPEL!O13,IF($B$2=APPEL!$Q$1,APPEL!R13,IF($B$2=APPEL!$T$1,APPEL!U13,IF($B$2=APPEL!$W$1,APPEL!X13,IF($B$2=APPEL!$Z$1,APPEL!AA13)))))))))","v":"Marwan"},null,"",{"$f":"IFERROR(IF(AND($E$2=DEBUT!$F$5,A15=\"G\"),VLOOKUP(D15,DEBUT!$H$5:$J$99,3,1),IF(AND($E$2=DEBUT!$F$6,A15=\"G\"),VLOOKUP(D15,DEBUT!$AI$5:$AK$70,3,1),IF(AND($E$2=DEBUT!$F$5,$A$5,A15=\"F\"),VLOOKUP(D15,DEBUT!$I$5:$J$99,2,1),IF(AND($E$2=DEBUT!$F$6,A15=\"F\"),VLOOKUP(D15,DEBUT!$AJ$5:$AK$70,2,1))))),\" perf-sexe?\")","v":" perf-sexe?"},null,null,null,null,null,null,null,null,null,null,null,null,{"$f":"IF(ROWS($1:$1)<=COUNTIF(sprinteur,$B15),INDEX(metre,SMALL(IF(sprinteur=$B15,ROW(INDIRECT(\"1:\"&ROWS(metre)))),ROWS($1:$1))),\"\")","v":""},{"$f":"IF(ROWS($1:$2)<=COUNTIF(sprinteur,$B15),INDEX(metre,SMALL(IF(sprinteur=$B15,ROW(INDIRECT(\"1:\"&ROWS(metre)))),ROWS($1:$2))),\"\")","v":""},{"$f":"IF(ROWS($1:$3)<=COUNTIF(sprinteur,$B15),INDEX(metre,SMALL(IF(sprinteur=$B15,ROW(INDIRECT(\"1:\"&ROWS(metre)))),ROWS($1:$3))),\"\")","v":""},{"$f":"IF(ROWS($1:$4)<=COUNTIF(sprinteur,$B15),INDEX(metre,SMALL(IF(sprinteur=$B15,ROW(INDIRECT(\"1:\"&ROWS(metre)))),ROWS($1:$4))),\"\")","v":""},"","","",""]
[{"$f":"IF($B$2=APPEL!$B$1,VLOOKUP(B16,APPEL!$C$3:$D$38,2,FALSE),IF($B$2=APPEL!$E$1,VLOOKUP(B16,APPEL!$F$3:$G$38,2,FALSE),IF($B$2=APPEL!$H$1,VLOOKUP(B16,APPEL!$I$3:$J$38,2,FALSE),IF($B$2=APPEL!$K$1,VLOOKUP(B16,APPEL!$L$3:$M$38,2,FALSE),IF($B$2=APPEL!$N$1,VLOOKUP(B16,APPEL!$O$3:$P$38,2,FALSE),IF($B$2=APPEL!$Q$1,VLOOKUP(B16,APPEL!$R$3:$S$38,2,FALSE),IF($B$2=APPEL!$T$1,VLOOKUP(B16,APPEL!$U$3:$V$38,2,FALSE),IF($B$2=APPEL!$W$1,VLOOKUP(B16,APPEL!$X$3:$Y$38,2,FALSE),IF($B$2=APPEL!$Z$1,VLOOKUP(B16,APPEL!$AA$3:$AB$38,2,FALSE))))))))))","v":{"$error":"#N/A"}},{"$f":"IF($B$2=APPEL!$B$1,APPEL!C14,IF($B$2=APPEL!$E$1,APPEL!F14,IF($B$2=APPEL!$H$1,APPEL!I14,IF($B$2=APPEL!$K$1,APPEL!L14,IF($B$2=APPEL!$N$1,APPEL!O14,IF($B$2=APPEL!$Q$1,APPEL!R14,IF($B$2=APPEL!$T$1,APPEL!U14,IF($B$2=APPEL!$W$1,APPEL!X14,IF($B$2=APPEL!$Z$1,APPEL!AA14)))))))))","v":0},null,"",{"$f":"IFERROR(IF(AND($E$2=DEBUT!$F$5,A16=\"G\"),VLOOKUP(D16,DEBUT!$H$5:$J$99,3,1),IF(AND($E$2=DEBUT!$F$6,A16=\"G\"),VLOOKUP(D16,DEBUT!$AI$5:$AK$70,3,1),IF(AND($E$2=DEBUT!$F$5,$A$5,A16=\"F\"),VLOOKUP(D16,DEBUT!$I$5:$J$99,2,1),IF(AND($E$2=DEBUT!$F$6,A16=\"F\"),VLOOKUP(D16,DEBUT!$AJ$5:$AK$70,2,1))))),\" perf-sexe?\")","v":" perf-sexe?"},null,null,null,null,null,null,null,null,null,null,null,null,{"$f":"IF(ROWS($1:$1)<=COUNTIF(sprinteur,$B16),INDEX(metre,SMALL(IF(sprinteur=$B16,ROW(INDIRECT(\"1:\"&ROWS(metre)))),ROWS($1:$1))),\"\")","v":""},{"$f":"IF(ROWS($1:$2)<=COUNTIF(sprinteur,$B16),INDEX(metre,SMALL(IF(sprinteur=$B16,ROW(INDIRECT(\"1:\"&ROWS(metre)))),ROWS($1:$2))),\"\")","v":""},{"$f":"IF(ROWS($1:$3)<=COUNTIF(sprinteur,$B16),INDEX(metre,SMALL(IF(sprinteur=$B16,ROW(INDIRECT(\"1:\"&ROWS(metre)))),ROWS($1:$3))),\"\")","v":""},{"$f":"IF(ROWS($1:$4)<=COUNTIF(sprinteur,$B16),INDEX(metre,SMALL(IF(sprinteur=$B16,ROW(INDIRECT(\"1:\"&ROWS(metre)))),ROWS($1:$4))),\"\")","v":""},"","","",""]
[{"$f":"IF($B$2=APPEL!$B$1,VLOOKUP(B17,APPEL!$C$3:$D$38,2,FALSE),IF($B$2=APPEL!$E$1,VLOOKUP(B17,APPEL!$F$3:$G$38,2,FALSE),IF($B$2=APPEL!$H$1,VLOOKUP(B17,APPEL!$I$3:$J$38,2,FALSE),IF($B$2=APPEL!$K$1,VLOOKUP(B17,APPEL!$L$3:$M$38,2,FALSE),IF($B$2=APPEL!$N$1,VLOOKUP(B17,APPEL!$O$3:$P$38,2,FALSE),IF($B$2=APPEL!$Q$1,VLOOKUP(B17,APPEL!$R$3:$S$38,2,FALSE),IF($B$2=APPEL!$T$1,VLOOKUP(B17,APPEL!$U$3:$V$38,2,FALSE),IF($B$2=APPEL!$W$1,VLOOKUP(B17,APPEL!$X$3:$Y$38,2,FALSE),IF($B$2=APPEL!$Z$1,VLOOKUP(B17,APPEL!$AA$3:$AB$38,2,FALSE))))))))))","v":{"$error":"#N/A"}},{"$f":"IF($B$2=APPEL!$B$1,APPEL!C15,IF($B$2=APPEL!$E$1,APPEL!F15,IF($B$2=APPEL!$H$1,APPEL!I15,IF($B$2=APPEL!$K$1,APPEL!L15,IF($B$2=APPEL!$N$1,APPEL!O15,IF($B$2=APPEL!$Q$1,APPEL!R15,IF($B$2=APPEL!$T$1,APPEL!U15,IF($B$2=APPEL!$W$1,APPEL!X15,IF($B$2=APPEL!$Z$1,APPEL!AA15)))))))))","v":0},null,"",{"$f":"IFERROR(IF(AND($E$2=DEBUT!$F$5,A17=\"G\"),VLOOKUP(D17,DEBUT!$H$5:$J$99,3,1),IF(AND($E$2=DEBUT!$F$6,A17=\"G\"),VLOOKUP(D17,DEBUT!$AI$5:$AK$70,3,1),IF(AND($E$2=DEBUT!$F$5,$A$5,A17=\"F\"),VLOOKUP(D17,DEBUT!$I$5:$J$99,2,1),IF(AND($E$2=DEBUT!$F$6,A17=\"F\"),VLOOKUP(D17,DEBUT!$AJ$5:$AK$70,2,1))))),\" perf-sexe?\")","v":" perf-sexe?"},null,null,null,null,null,null,null,null,null,null,null,null,{"$f":"IF(ROWS($1:$1)<=COUNTIF(sprinteur,$B17),INDEX(metre,SMALL(IF(sprinteur=$B17,ROW(INDIRECT(\"1:\"&ROWS(metre)))),ROWS($1:$1))),\"\")","v":""},{"$f":"IF(ROWS($1:$2)<=COUNTIF(sprinteur,$B17),INDEX(metre,SMALL(IF(sprinteur=$B17,ROW(INDIRECT(\"1:\"&ROWS(metre)))),ROWS($1:$2))),\"\")","v":""},{"$f":"IF(ROWS($1:$3)<=COUNTIF(sprinteur,$B17),INDEX(metre,SMALL(IF(sprinteur=$B17,ROW(INDIRECT(\"1:\"&ROWS(metre)))),ROWS($1:$3))),\"\")","v":""},{"$f":"IF(ROWS($1:$4)<=COUNTIF(sprinteur,$B17),INDEX(metre,SMALL(IF(sprinteur=$B17,ROW(INDIRECT(\"1:\"&ROWS(metre)))),ROWS($1:$4))),\"\")","v":""},"","","",""]
[{"$f":"IF($B$2=APPEL!$B$1,VLOOKUP(B18,APPEL!$C$3:$D$38,2,FALSE),IF($B$2=APPEL!$E$1,VLOOKUP(B18,APPEL!$F$3:$G$38,2,FALSE),IF($B$2=APPEL!$H$1,VLOOKUP(B18,APPEL!$I$3:$J$38,2,FALSE),IF($B$2=APPEL!$K$1,VLOOKUP(B18,APPEL!$L$3:$M$38,2,FALSE),IF($B$2=APPEL!$N$1,VLOOKUP(B18,APPEL!$O$3:$P$38,2,FALSE),IF($B$2=APPEL!$Q$1,VLOOKUP(B18,APPEL!$R$3:$S$38,2,FALSE),IF($B$2=APPEL!$T$1,VLOOKUP(B18,APPEL!$U$3:$V$38,2,FALSE),IF($B$2=APPEL!$W$1,VLOOKUP(B18,APPEL!$X$3:$Y$38,2,FALSE),IF($B$2=APPEL!$Z$1,VLOOKUP(B18,APPEL!$AA$3:$AB$38,2,FALSE))))))))))","v":{"$error":"#N/A"}},{"$f":"IF($B$2=APPEL!$B$1,APPEL!C16,IF($B$2=APPEL!$E$1,APPEL!F16,IF($B$2=APPEL!$H$1,APPEL!I16,IF($B$2=APPEL!$K$1,APPEL!L16,IF($B$2=APPEL!$N$1,APPEL!O16,IF($B$2=APPEL!$Q$1,APPEL!R16,IF($B$2=APPEL!$T$1,APPEL!U16,IF($B$2=APPEL!$W$1,APPEL!X16,IF($B$2=APPEL!$Z$1,APPEL!AA16)))))))))","v":0},null,"",{"$f":"IFERROR(IF(AND($E$2=DEBUT!$F$5,A18=\"G\"),VLOOKUP(D18,DEBUT!$H$5:$J$99,3,1),IF(AND($E$2=DEBUT!$F$6,A18=\"G\"),VLOOKUP(D18,DEBUT!$AI$5:$AK$70,3,1),IF(AND($E$2=DEBUT!$F$5,$A$5,A18=\"F\"),VLOOKUP(D18,DEBUT!$I$5:$J$99,2,1),IF(AND($E$2=DEBUT!$F$6,A18=\"F\"),VLOOKUP(D18,DEBUT!$AJ$5:$AK$70,2,1))))),\" perf-sexe?\")","v":" perf-sexe?"},null,null,null,null,null,null,null,null,null,null,null,null,{"$f":"IF(ROWS($1:$1)<=COUNTIF(sprinteur,$B18),INDEX(metre,SMALL(IF(sprinteur=$B18,ROW(INDIRECT(\"1:\"&ROWS(metre)))),ROWS($1:$1))),\"\")","v":""},{"$f":"IF(ROWS($1:$2)<=COUNTIF(sprinteur,$B18),INDEX(metre,SMALL(IF(sprinteur=$B18,ROW(INDIRECT(\"1:\"&ROWS(metre)))),ROWS($1:$2))),\"\")","v":""},{"$f":"IF(ROWS($1:$3)<=COUNTIF(sprinteur,$B18),INDEX(metre,SMALL(IF(sprinteur=$B18,ROW(INDIRECT(\"1:\"&ROWS(metre)))),ROWS($1:$3))),\"\")","v":""},{"$f":"IF(ROWS($1:$4)<=COUNTIF(sprinteur,$B18),INDEX(metre,SMALL(IF(sprinteur=$B18,ROW(INDIRECT(\"1:\"&ROWS(metre)))),ROWS($1:$4))),\"\")","v":""},"","","",""]
[{"$f":"IF($B$2=APPEL!$B$1,VLOOKUP(B19,APPEL!$C$3:$D$38,2,FALSE),IF($B$2=APPEL!$E$1,VLOOKUP(B19,APPEL!$F$3:$G$38,2,FALSE),IF($B$2=APPEL!$H$1,VLOOKUP(B19,APPEL!$I$3:$J$38,2,FALSE),IF($B$2=APPEL!$K$1,VLOOKUP(B19,APPEL!$L$3:$M$38,2,FALSE),IF($B$2=APPEL!$N$1,VLOOKUP(B19,APPEL!$O$3:$P$38,2,FALSE),IF($B$2=APPEL!$Q$1,VLOOKUP(B19,APPEL!$R$3:$S$38,2,FALSE),IF($B$2=APPEL!$T$1,VLOOKUP(B19,APPEL!$U$3:$V$38,2,FALSE),IF($B$2=APPEL!$W$1,VLOOKUP(B19,APPEL!$X$3:$Y$38,2,FALSE),IF($B$2=APPEL!$Z$1,VLOOKUP(B19,APPEL!$AA$3:$AB$38,2,FALSE))))))))))","v":{"$error":"#N/A"}},{"$f":"IF($B$2=APPEL!$B$1,APPEL!C17,IF($B$2=APPEL!$E$1,APPEL!F17,IF($B$2=APPEL!$H$1,APPEL!I17,IF($B$2=APPEL!$K$1,APPEL!L17,IF($B$2=APPEL!$N$1,APPEL!O17,IF($B$2=APPEL!$Q$1,APPEL!R17,IF($B$2=APPEL!$T$1,APPEL!U17,IF($B$2=APPEL!$W$1,APPEL!X17,IF($B$2=APPEL!$Z$1,APPEL!AA17)))))))))","v":0},null,"",{"$f":"IFERROR(IF(AND($E$2=DEBUT!$F$5,A19=\"G\"),VLOOKUP(D19,DEBUT!$H$5:$J$99,3,1),IF(AND($E$2=DEBUT!$F$6,A19=\"G\"),VLOOKUP(D19,DEBUT!$AI$5:$AK$70,3,1),IF(AND($E$2=DEBUT!$F$5,$A$5,A19=\"F\"),VLOOKUP(D19,DEBUT!$I$5:$J$99,2,1),IF(AND($E$2=DEBUT!$F$6,A19=\"F\"),VLOOKUP(D19,DEBUT!$AJ$5:$AK$70,2,1))))),\" perf-sexe?\")","v":" perf-sexe?"},null,null,null,null,null,null,null,null,null,null,null,null,{"$f":"IF(ROWS($1:$1)<=COUNTIF(sprinteur,$B19),INDEX(metre,SMALL(IF(sprinteur=$B19,ROW(INDIRECT(\"1:\"&ROWS(metre)))),ROWS($1:$1))),\"\")","v":""},{"$f":"IF(ROWS($1:$2)<=COUNTIF(sprinteur,$B19),INDEX(metre,SMALL(IF(sprinteur=$B19,ROW(INDIRECT(\"1:\"&ROWS(metre)))),ROWS($1:$2))),\"\")","v":""},{"$f":"IF(ROWS($1:$3)<=COUNTIF(sprinteur,$B19),INDEX(metre,SMALL(IF(sprinteur=$B19,ROW(INDIRECT(\"1:\"&ROWS(metre)))),ROWS($1:$3))),\"\")","v":""},{"$f":"IF(ROWS($1:$4)<=COUNTIF(sprinteur,$B19),INDEX(metre,SMALL(IF(sprinteur=$B19,ROW(INDIRECT(\"1:\"&ROWS(metre)))),ROWS($1:$4))),\"\")","v":""},"","","",""]
[{"$f":"IF($B$2=APPEL!$B$1,VLOOKUP(B20,APPEL!$C$3:$D$38,2,FALSE),IF($B$2=APPEL!$E$1,VLOOKUP(B20,APPEL!$F$3:$G$38,2,FALSE),IF($B$2=APPEL!$H$1,VLOOKUP(B20,APPEL!$I$3:$J$38,2,FALSE),IF($B$2=APPEL!$K$1,VLOOKUP(B20,APPEL!$L$3:$M$38,2,FALSE),IF($B$2=APPEL!$N$1,VLOOKUP(B20,APPEL!$O$3:$P$38,2,FALSE),IF($B$2=APPEL!$Q$1,VLOOKUP(B20,APPEL!$R$3:$S$38,2,FALSE),IF($B$2=APPEL!$T$1,VLOOKUP(B20,APPEL!$U$3:$V$38,2,FALSE),IF($B$2=APPEL!$W$1,VLOOKUP(B20,APPEL!$X$3:$Y$38,2,FALSE),IF($B$2=APPEL!$Z$1,VLOOKUP(B20,APPEL!$AA$3:$AB$38,2,FALSE))))))))))","v":{"$error":"#N/A"}},{"$f":"IF($B$2=APPEL!$B$1,APPEL!C18,IF($B$2=APPEL!$E$1,APPEL!F18,IF($B$2=APPEL!$H$1,APPEL!I18,IF($B$2=APPEL!$K$1,APPEL!L18,IF($B$2=APPEL!$N$1,APPEL!O18,IF($B$2=APPEL!$Q$1,APPEL!R18,IF($B$2=APPEL!$T$1,APPEL!U18,IF($B$2=APPEL!$W$1,APPEL!X18,IF($B$2=APPEL!$Z$1,APPEL!AA18)))))))))","v":0},null,"",{"$f":"IFERROR(IF(AND($E$2=DEBUT!$F$5,A20=\"G\"),VLOOKUP(D20,DEBUT!$H$5:$J$99,3,1),IF(AND($E$2=DEBUT!$F$6,A20=\"G\"),VLOOKUP(D20,DEBUT!$AI$5:$AK$70,3,1),IF(AND($E$2=DEBUT!$F$5,$A$5,A20=\"F\"),VLOOKUP(D20,DEBUT!$I$5:$J$99,2,1),IF(AND($E$2=DEBUT!$F$6,A20=\"F\"),VLOOKUP(D20,DEBUT!$AJ$5:$AK$70,2,1))))),\" perf-sexe?\")","v":" perf-sexe?"},null,null,null,null,null,null,null,null,null,null,null,null,{"$f":"IF(ROWS($1:$1)<=COUNTIF(sprinteur,$B20),INDEX(metre,SMALL(IF(sprinteur=$B20,ROW(INDIRECT(\"1:\"&ROWS(metre)))),ROWS($1:$1))),\"\")","v":""},{"$f":"IF(ROWS($1:$2)<=COUNTIF(sprinteur,$B20),INDEX(metre,SMALL(IF(sprinteur=$B20,ROW(INDIRECT(\"1:\"&ROWS(metre)))),ROWS($1:$2))),\"\")","v":""},{"$f":"IF(ROWS($1:$3)<=COUNTIF(sprinteur,$B20),INDEX(metre,SMALL(IF(sprinteur=$B20,ROW(INDIRECT(\"1:\"&ROWS(metre)))),ROWS($1:$3))),\"\")","v":""},{"$f":"IF(ROWS($1:$4)<=COUNTIF(sprinteur,$B20),INDEX(metre,SMALL(IF(sprinteur=$B20,ROW(INDIRECT(\"1:\"&ROWS(metre)))),ROWS($1:$4))),\"\")","v":""},"","","",""]
[{"$f":"IF($B$2=APPEL!$B$1,VLOOKUP(B21,APPEL!$C$3:$D$38,2,FALSE),IF($B$2=APPEL!$E$1,VLOOKUP(B21,APPEL!$F$3:$G$38,2,FALSE),IF($B$2=APPEL!$H$1,VLOOKUP(B21,APPEL!$I$3:$J$38,2,FALSE),IF($B$2=APPEL!$K$1,VLOOKUP(B21,APPEL!$L$3:$M$38,2,FALSE),IF($B$2=APPEL!$N$1,VLOOKUP(B21,APPEL!$O$3:$P$38,2,FALSE),IF($B$2=APPEL!$Q$1,VLOOKUP(B21,APPEL!$R$3:$S$38,2,FALSE),IF($B$2=APPEL!$T$1,VLOOKUP(B21,APPEL!$U$3:$V$38,2,FALSE),IF($B$2=APPEL!$W$1,VLOOKUP(B21,APPEL!$X$3:$Y$38,2,FALSE),IF($B$2=APPEL!$Z$1,VLOOKUP(B21,APPEL!$AA$3:$AB$38,2,FALSE))))))))))","v":{"$error":"#N/A"}},{"$f":"IF($B$2=APPEL!$B$1,APPEL!C19,IF($B$2=APPEL!$E$1,APPEL!F19,IF($B$2=APPEL!$H$1,APPEL!I19,IF($B$2=APPEL!$K$1,APPEL!L19,IF($B$2=APPEL!$N$1,APPEL!O19,IF($B$2=APPEL!$Q$1,APPEL!R19,IF($B$2=APPEL!$T$1,APPEL!U19,IF($B$2=APPEL!$W$1,APPEL!X19,IF($B$2=APPEL!$Z$1,APPEL!AA19)))))))))","v":0},null,"",{"$f":"IFERROR(IF(AND($E$2=DEBUT!$F$5,A21=\"G\"),VLOOKUP(D21,DEBUT!$H$5:$J$99,3,1),IF(AND($E$2=DEBUT!$F$6,A21=\"G\"),VLOOKUP(D21,DEBUT!$AI$5:$AK$70,3,1),IF(AND($E$2=DEBUT!$F$5,$A$5,A21=\"F\"),VLOOKUP(D21,DEBUT!$I$5:$J$99,2,1),IF(AND($E$2=DEBUT!$F$6,A21=\"F\"),VLOOKUP(D21,DEBUT!$AJ$5:$AK$70,2,1))))),\" perf-sexe?\")","v":" perf-sexe?"},null,null,null,null,null,null,null,null,null,null,null,null,{"$f":"IF(ROWS($1:$1)<=COUNTIF(sprinteur,$B21),INDEX(metre,SMALL(IF(sprinteur=$B21,ROW(INDIRECT(\"1:\"&ROWS(metre)))),ROWS($1:$1))),\"\")","v":""},{"$f":"IF(ROWS($1:$2)<=COUNTIF(sprinteur,$B21),INDEX(metre,SMALL(IF(sprinteur=$B21,ROW(INDIRECT(\"1:\"&ROWS(metre)))),ROWS($1:$2))),\"\")","v":""},{"$f":"IF(ROWS($1:$3)<=COUNTIF(sprinteur,$B21),INDEX(metre,SMALL(IF(sprinteur=$B21,ROW(INDIRECT(\"1:\"&ROWS(metre)))),ROWS($1:$3))),\"\")","v":""},{"$f":"IF(ROWS($1:$4)<=COUNTIF(sprinteur,$B21),INDEX(metre,SMALL(IF(sprinteur=$B21,ROW(INDIRECT(\"1:\"&ROWS(metre)))),ROWS($1:$4))),\"\")","v":""},"","","",""]
[{"$f":"IF($B$2=APPEL!$B$1,VLOOKUP(B22,APPEL!$C$3:$D$38,2,FALSE),IF($B$2=APPEL!$E$1,VLOOKUP(B22,APPEL!$F$3:$G$38,2,FALSE),IF($B$2=APPEL!$H$1,VLOOKUP(B22,APPEL!$I$3:$J$38,2,FALSE),IF($B$2=APPEL!$K$1,VLOOKUP(B22,APPEL!$L$3:$M$38,2,FALSE),IF($B$2=APPEL!$N$1,VLOOKUP(B22,APPEL!$O$3:$P$38,2,FALSE),IF($B$2=APPEL!$Q$1,VLOOKUP(B22,APPEL!$R$3:$S$38,2,FALSE),IF($B$2=APPEL!$T$1,VLOOKUP(B22,APPEL!$U$3:$V$38,2,FALSE),IF($B$2=APPEL!$W$1,VLOOKUP(B22,APPEL!$X$3:$Y$38,2,FALSE),IF($B$2=APPEL!$Z$1,VLOOKUP(B22,APPEL!$AA$3:$AB$38,2,FALSE))))))))))","v":{"$error":"#N/A"}},{"$f":"IF($B$2=APPEL!$B$1,APPEL!C20,IF($B$2=APPEL!$E$1,APPEL!F20,IF($B$2=APPEL!$H$1,APPEL!I20,IF($B$2=APPEL!$K$1,APPEL!L20,IF($B$2=APPEL!$N$1,APPEL!O20,IF($B$2=APPEL!$Q$1,APPEL!R20,IF($B$2=APPEL!$T$1,APPEL!U20,IF($B$2=APPEL!$W$1,APPEL!X20,IF($B$2=APPEL!$Z$1,APPEL!AA20)))))))))","v":0},null,"",{"$f":"IFERROR(IF(AND($E$2=DEBUT!$F$5,A22=\"G\"),VLOOKUP(D22,DEBUT!$H$5:$J$99,3,1),IF(AND($E$2=DEBUT!$F$6,A22=\"G\"),VLOOKUP(D22,DEBUT!$AI$5:$AK$70,3,1),IF(AND($E$2=DEBUT!$F$5,$A$5,A22=\"F\"),VLOOKUP(D22,DEBUT!$I$5:$J$99,2,1),IF(AND($E$2=DEBUT!$F$6,A22=\"F\"),VLOOKUP(D22,DEBUT!$AJ$5:$AK$70,2,1))))),\" perf-sexe?\")","v":" perf-sexe?"},null,null,null,null,null,null,null,null,null,null,null,null,{"$f":"IF(ROWS($1:$1)<=COUNTIF(sprinteur,$B22),INDEX(metre,SMALL(IF(sprinteur=$B22,ROW(INDIRECT(\"1:\"&ROWS(metre)))),ROWS($1:$1))),\"\")","v":""},{"$f":"IF(ROWS($1:$2)<=COUNTIF(sprinteur,$B22),INDEX(metre,SMALL(IF(sprinteur=$B22,ROW(INDIRECT(\"1:\"&ROWS(metre)))),ROWS($1:$2))),\"\")","v":""},{"$f":"IF(ROWS($1:$3)<=COUNTIF(sprinteur,$B22),INDEX(metre,SMALL(IF(sprinteur=$B22,ROW(INDIRECT(\"1:\"&ROWS(metre)))),ROWS($1:$3))),\"\")","v":""},{"$f":"IF(ROWS($1:$4)<=COUNTIF(sprinteur,$B22),INDEX(metre,SMALL(IF(sprinteur=$B22,ROW(INDIRECT(\"1:\"&ROWS(metre)))),ROWS($1:$4))),\"\")","v":""},"","","",""]
[{"$f":"IF($B$2=APPEL!$B$1,VLOOKUP(B23,APPEL!$C$3:$D$38,2,FALSE),IF($B$2=APPEL!$E$1,VLOOKUP(B23,APPEL!$F$3:$G$38,2,FALSE),IF($B$2=APPEL!$H$1,VLOOKUP(B23,APPEL!$I$3:$J$38,2,FALSE),IF($B$2=APPEL!$K$1,VLOOKUP(B23,APPEL!$L$3:$M$38,2,FALSE),IF($B$2=APPEL!$N$1,VLOOKUP(B23,APPEL!$O$3:$P$38,2,FALSE),IF($B$2=APPEL!$Q$1,VLOOKUP(B23,APPEL!$R$3:$S$38,2,FALSE),IF($B$2=APPEL!$T$1,VLOOKUP(B23,APPEL!$U$3:$V$38,2,FALSE),IF($B$2=APPEL!$W$1,VLOOKUP(B23,APPEL!$X$3:$Y$38,2,FALSE),IF($B$2=APPEL!$Z$1,VLOOKUP(B23,APPEL!$AA$3:$AB$38,2,FALSE))))))))))","v":{"$error":"#N/A"}},{"$f":"IF($B$2=APPEL!$B$1,APPEL!C21,IF($B$2=APPEL!$E$1,APPEL!F21,IF($B$2=APPEL!$H$1,APPEL!I21,IF($B$2=APPEL!$K$1,APPEL!L21,IF($B$2=APPEL!$N$1,APPEL!O21,IF($B$2=APPEL!$Q$1,APPEL!R21,IF($B$2=APPEL!$T$1,APPEL!U21,IF($B$2=APPEL!$W$1,APPEL!X21,IF($B$2=APPEL!$Z$1,APPEL!AA21)))))))))","v":0},null,"",{"$f":"IFERROR(IF(AND($E$2=DEBUT!$F$5,A23=\"G\"),VLOOKUP(D23,DEBUT!$H$5:$J$99,3,1),IF(AND($E$2=DEBUT!$F$6,A23=\"G\"),VLOOKUP(D23,DEBUT!$AI$5:$AK$70,3,1),IF(AND($E$2=DEBUT!$F$5,$A$5,A23=\"F\"),VLOOKUP(D23,DEBUT!$I$5:$J$99,2,1),IF(AND($E$2=DEBUT!$F$6,A23=\"F\"),VLOOKUP(D23,DEBUT!$AJ$5:$AK$70,2,1))))),\" perf-sexe?\")","v":" perf-sexe?"},null,null,null,null,null,null,null,null,null,null,null,null,{"$f":"IF(ROWS($1:$1)<=COUNTIF(sprinteur,$B23),INDEX(metre,SMALL(IF(sprinteur=$B23,ROW(INDIRECT(\"1:\"&ROWS(metre)))),ROWS($1:$1))),\"\")","v":""},{"$f":"IF(ROWS($1:$2)<=COUNTIF(sprinteur,$B23),INDEX(metre,SMALL(IF(sprinteur=$B23,ROW(INDIRECT(\"1:\"&ROWS(metre)))),ROWS($1:$2))),\"\")","v":""},{"$f":"IF(ROWS($1:$3)<=COUNTIF(sprinteur,$B23),INDEX(metre,SMALL(IF(sprinteur=$B23,ROW(INDIRECT(\"1:\"&ROWS(metre)))),ROWS($1:$3))),\"\")","v":""},{"$f":"IF(ROWS($1:$4)<=COUNTIF(sprinteur,$B23),INDEX(metre,SMALL(IF(sprinteur=$B23,ROW(INDIRECT(\"1:\"&ROWS(metre)))),ROWS($1:$4))),\"\")","v":""},"","","",""]
[{"$f":"IF($B$2=APPEL!$B$1,VLOOKUP(B24,APPEL!$C$3:$D$38,2,FALSE),IF($B$2=APPEL!$E$1,VLOOKUP(B24,APPEL!$F$3:$G$38,2,FALSE),IF($B$2=APPEL!$H$1,VLOOKUP(B24,APPEL!$I$3:$J$38,2,FALSE),IF($B$2=APPEL!$K$1,VLOOKUP(B24,APPEL!$L$3:$M$38,2,FALSE),IF($B$2=APPEL!$N$1,VLOOKUP(B24,APPEL!$O$3:$P$38,2,FALSE),IF($B$2=APPEL!$Q$1,VLOOKUP(B24,APPEL!$R$3:$S$38,2,FALSE),IF($B$2=APPEL!$T$1,VLOOKUP(B24,APPEL!$U$3:$V$38,2,FALSE),IF($B$2=APPEL!$W$1,VLOOKUP(B24,APPEL!$X$3:$Y$38,2,FALSE),IF($B$2=APPEL!$Z$1,VLOOKUP(B24,APPEL!$AA$3:$AB$38,2,FALSE))))))))))","v":{"$error":"#N/A"}},{"$f":"IF($B$2=APPEL!$B$1,APPEL!C22,IF($B$2=APPEL!$E$1,APPEL!F22,IF($B$2=APPEL!$H$1,APPEL!I22,IF($B$2=APPEL!$K$1,APPEL!L22,IF($B$2=APPEL!$N$1,APPEL!O22,IF($B$2=APPEL!$Q$1,APPEL!R22,IF($B$2=APPEL!$T$1,APPEL!U22,IF($B$2=APPEL!$W$1,APPEL!X22,IF($B$2=APPEL!$Z$1,APPEL!AA22)))))))))","v":0},null,"",{"$f":"IFERROR(IF(AND($E$2=DEBUT!$F$5,A24=\"G\"),VLOOKUP(D24,DEBUT!$H$5:$J$99,3,1),IF(AND($E$2=DEBUT!$F$6,A24=\"G\"),VLOOKUP(D24,DEBUT!$AI$5:$AK$70,3,1),IF(AND($E$2=DEBUT!$F$5,$A$5,A24=\"F\"),VLOOKUP(D24,DEBUT!$I$5:$J$99,2,1),IF(AND($E$2=DEBUT!$F$6,A24=\"F\"),VLOOKUP(D24,DEBUT!$AJ$5:$AK$70,2,1))))),\" perf-sexe?\")","v":" perf-sexe?"},null,null,null,null,null,null,null,null,null,null,null,null,{"$f":"IF(ROWS($1:$1)<=COUNTIF(sprinteur,$B24),INDEX(metre,SMALL(IF(sprinteur=$B24,ROW(INDIRECT(\"1:\"&ROWS(metre)))),ROWS($1:$1))),\"\")","v":""},{"$f":"IF(ROWS($1:$2)<=COUNTIF(sprinteur,$B24),INDEX(metre,SMALL(IF(sprinteur=$B24,ROW(INDIRECT(\"1:\"&ROWS(metre)))),ROWS($1:$2))),\"\")","v":""},{"$f":"IF(ROWS($1:$3)<=COUNTIF(sprinteur,$B24),INDEX(metre,SMALL(IF(sprinteur=$B24,ROW(INDIRECT(\"1:\"&ROWS(metre)))),ROWS($1:$3))),\"\")","v":""},{"$f":"IF(ROWS($1:$4)<=COUNTIF(sprinteur,$B24),INDEX(metre,SMALL(IF(sprinteur=$B24,ROW(INDIRECT(\"1:\"&ROWS(metre)))),ROWS($1:$4))),\"\")","v":""},"","","",""]
[{"$f":"IF($B$2=APPEL!$B$1,VLOOKUP(B25,APPEL!$C$3:$D$38,2,FALSE),IF($B$2=APPEL!$E$1,VLOOKUP(B25,APPEL!$F$3:$G$38,2,FALSE),IF($B$2=APPEL!$H$1,VLOOKUP(B25,APPEL!$I$3:$J$38,2,FALSE),IF($B$2=APPEL!$K$1,VLOOKUP(B25,APPEL!$L$3:$M$38,2,FALSE),IF($B$2=APPEL!$N$1,VLOOKUP(B25,APPEL!$O$3:$P$38,2,FALSE),IF($B$2=APPEL!$Q$1,VLOOKUP(B25,APPEL!$R$3:$S$38,2,FALSE),IF($B$2=APPEL!$T$1,VLOOKUP(B25,APPEL!$U$3:$V$38,2,FALSE),IF($B$2=APPEL!$W$1,VLOOKUP(B25,APPEL!$X$3:$Y$38,2,FALSE),IF($B$2=APPEL!$Z$1,VLOOKUP(B25,APPEL!$AA$3:$AB$38,2,FALSE))))))))))","v":{"$error":"#N/A"}},{"$f":"IF($B$2=APPEL!$B$1,APPEL!C23,IF($B$2=APPEL!$E$1,APPEL!F23,IF($B$2=APPEL!$H$1,APPEL!I23,IF($B$2=APPEL!$K$1,APPEL!L23,IF($B$2=APPEL!$N$1,APPEL!O23,IF($B$2=APPEL!$Q$1,APPEL!R23,IF($B$2=APPEL!$T$1,APPEL!U23,IF($B$2=APPEL!$W$1,APPEL!X23,IF($B$2=APPEL!$Z$1,APPEL!AA23)))))))))","v":0},null,"",{"$f":"IFERROR(IF(AND($E$2=DEBUT!$F$5,A25=\"G\"),VLOOKUP(D25,DEBUT!$H$5:$J$99,3,1),IF(AND($E$2=DEBUT!$F$6,A25=\"G\"),VLOOKUP(D25,DEBUT!$AI$5:$AK$70,3,1),IF(AND($E$2=DEBUT!$F$5,$A$5,A25=\"F\"),VLOOKUP(D25,DEBUT!$I$5:$J$99,2,1),IF(AND($E$2=DEBUT!$F$6,A25=\"F\"),VLOOKUP(D25,DEBUT!$AJ$5:$AK$70,2,1))))),\" perf-sexe?\")","v":" perf-sexe?"},null,null,null,null,null,null,null,null,null,null,null,null,{"$f":"IF(ROWS($1:$1)<=COUNTIF(sprinteur,$B25),INDEX(metre,SMALL(IF(sprinteur=$B25,ROW(INDIRECT(\"1:\"&ROWS(metre)))),ROWS($1:$1))),\"\")","v":""},{"$f":"IF(ROWS($1:$2)<=COUNTIF(sprinteur,$B25),INDEX(metre,SMALL(IF(sprinteur=$B25,ROW(INDIRECT(\"1:\"&ROWS(metre)))),ROWS($1:$2))),\"\")","v":""},{"$f":"IF(ROWS($1:$3)<=COUNTIF(sprinteur,$B25),INDEX(metre,SMALL(IF(sprinteur=$B25,ROW(INDIRECT(\"1:\"&ROWS(metre)))),ROWS($1:$3))),\"\")","v":""},{"$f":"IF(ROWS($1:$4)<=COUNTIF(sprinteur,$B25),INDEX(metre,SMALL(IF(sprinteur=$B25,ROW(INDIRECT(\"1:\"&ROWS(metre)))),ROWS($1:$4))),\"\")","v":""},"","","",""]
[{"$f":"IF($B$2=APPEL!$B$1,VLOOKUP(B26,APPEL!$C$3:$D$38,2,FALSE),IF($B$2=APPEL!$E$1,VLOOKUP(B26,APPEL!$F$3:$G$38,2,FALSE),IF($B$2=APPEL!$H$1,VLOOKUP(B26,APPEL!$I$3:$J$38,2,FALSE),IF($B$2=APPEL!$K$1,VLOOKUP(B26,APPEL!$L$3:$M$38,2,FALSE),IF($B$2=APPEL!$N$1,VLOOKUP(B26,APPEL!$O$3:$P$38,2,FALSE),IF($B$2=APPEL!$Q$1,VLOOKUP(B26,APPEL!$R$3:$S$38,2,FALSE),IF($B$2=APPEL!$T$1,VLOOKUP(B26,APPEL!$U$3:$V$38,2,FALSE),IF($B$2=APPEL!$W$1,VLOOKUP(B26,APPEL!$X$3:$Y$38,2,FALSE),IF($B$2=APPEL!$Z$1,VLOOKUP(B26,APPEL!$AA$3:$AB$38,2,FALSE))))))))))","v":{"$error":"#N/A"}},{"$f":"IF($B$2=APPEL!$B$1,APPEL!C24,IF($B$2=APPEL!$E$1,APPEL!F24,IF($B$2=APPEL!$H$1,APPEL!I24,IF($B$2=APPEL!$K$1,APPEL!L24,IF($B$2=APPEL!$N$1,APPEL!O24,IF($B$2=APPEL!$Q$1,APPEL!R24,IF($B$2=APPEL!$T$1,APPEL!U24,IF($B$2=APPEL!$W$1,APPEL!X24,IF($B$2=APPEL!$Z$1,APPEL!AA24)))))))))","v":0},null,"",{"$f":"IFERROR(IF(AND($E$2=DEBUT!$F$5,A26=\"G\"),VLOOKUP(D26,DEBUT!$H$5:$J$99,3,1),IF(AND($E$2=DEBUT!$F$6,A26=\"G\"),VLOOKUP(D26,DEBUT!$AI$5:$AK$70,3,1),IF(AND($E$2=DEBUT!$F$5,$A$5,A26=\"F\"),VLOOKUP(D26,DEBUT!$I$5:$J$99,2,1),IF(AND($E$2=DEBUT!$F$6,A26=\"F\"),VLOOKUP(D26,DEBUT!$AJ$5:$AK$70,2,1))))),\" perf-sexe?\")","v":" perf-sexe?"},null,null,null,null,null,null,null,null,null,null,null,null,{"$f":"IF(ROWS($1:$1)<=COUNTIF(sprinteur,$B26),INDEX(metre,SMALL(IF(sprinteur=$B26,ROW(INDIRECT(\"1:\"&ROWS(metre)))),ROWS($1:$1))),\"\")","v":""},{"$f":"IF(ROWS($1:$2)<=COUNTIF(sprinteur,$B26),INDEX(metre,SMALL(IF(sprinteur=$B26,ROW(INDIRECT(\"1:\"&ROWS(metre)))),ROWS($1:$2))),\"\")","v":""},{"$f":"IF(ROWS($1:$3)<=COUNTIF(sprinteur,$B26),INDEX(metre,SMALL(IF(sprinteur=$B26,ROW(INDIRECT(\"1:\"&ROWS(metre)))),ROWS($1:$3))),\"\")","v":""},{"$f":"IF(ROWS($1:$4)<=COUNTIF(sprinteur,$B26),INDEX(metre,SMALL(IF(sprinteur=$B26,ROW(INDIRECT(\"1:\"&ROWS(metre)))),ROWS($1:$4))),\"\")","v":""},"","","",""]
[{"$f":"IF($B$2=APPEL!$B$1,VLOOKUP(B27,APPEL!$C$3:$D$38,2,FALSE),IF($B$2=APPEL!$E$1,VLOOKUP(B27,APPEL!$F$3:$G$38,2,FALSE),IF($B$2=APPEL!$H$1,VLOOKUP(B27,APPEL!$I$3:$J$38,2,FALSE),IF($B$2=APPEL!$K$1,VLOOKUP(B27,APPEL!$L$3:$M$38,2,FALSE),IF($B$2=APPEL!$N$1,VLOOKUP(B27,APPEL!$O$3:$P$38,2,FALSE),IF($B$2=APPEL!$Q$1,VLOOKUP(B27,APPEL!$R$3:$S$38,2,FALSE),IF($B$2=APPEL!$T$1,VLOOKUP(B27,APPEL!$U$3:$V$38,2,FALSE),IF($B$2=APPEL!$W$1,VLOOKUP(B27,APPEL!$X$3:$Y$38,2,FALSE),IF($B$2=APPEL!$Z$1,VLOOKUP(B27,APPEL!$AA$3:$AB$38,2,FALSE))))))))))","v":{"$error":"#N/A"}},{"$f":"IF($B$2=APPEL!$B$1,APPEL!C25,IF($B$2=APPEL!$E$1,APPEL!F25,IF($B$2=APPEL!$H$1,APPEL!I25,IF($B$2=APPEL!$K$1,APPEL!L25,IF($B$2=APPEL!$N$1,APPEL!O25,IF($B$2=APPEL!$Q$1,APPEL!R25,IF($B$2=APPEL!$T$1,APPEL!U25,IF($B$2=APPEL!$W$1,APPEL!X25,IF($B$2=APPEL!$Z$1,APPEL!AA25)))))))))","v":0},null,"",{"$f":"IFERROR(IF(AND($E$2=DEBUT!$F$5,A27=\"G\"),VLOOKUP(D27,DEBUT!$H$5:$J$99,3,1),IF(AND($E$2=DEBUT!$F$6,A27=\"G\"),VLOOKUP(D27,DEBUT!$AI$5:$AK$70,3,1),IF(AND($E$2=DEBUT!$F$5,$A$5,A27=\"F\"),VLOOKUP(D27,DEBUT!$I$5:$J$99,2,1),IF(AND($E$2=DEBUT!$F$6,A27=\"F\"),VLOOKUP(D27,DEBUT!$AJ$5:$AK$70,2,1))))),\" perf-sexe?\")","v":" perf-sexe?"},null,null,null,null,null,null,null,null,null,null,null,null,{"$f":"IF(ROWS($1:$1)<=COUNTIF(sprinteur,$B27),INDEX(metre,SMALL(IF(sprinteur=$B27,ROW(INDIRECT(\"1:\"&ROWS(metre)))),ROWS($1:$1))),\"\")","v":""},{"$f":"IF(ROWS($1:$2)<=COUNTIF(sprinteur,$B27),INDEX(metre,SMALL(IF(sprinteur=$B27,ROW(INDIRECT(\"1:\"&ROWS(metre)))),ROWS($1:$2))),\"\")","v":""},{"$f":"IF(ROWS($1:$3)<=COUNTIF(sprinteur,$B27),INDEX(metre,SMALL(IF(sprinteur=$B27,ROW(INDIRECT(\"1:\"&ROWS(metre)))),ROWS($1:$3))),\"\")","v":""},{"$f":"IF(ROWS($1:$4)<=COUNTIF(sprinteur,$B27),INDEX(metre,SMALL(IF(sprinteur=$B27,ROW(INDIRECT(\"1:\"&ROWS(metre)))),ROWS($1:$4))),\"\")","v":""},"","","",""]
[{"$f":"IF($B$2=APPEL!$B$1,VLOOKUP(B28,APPEL!$C$3:$D$38,2,FALSE),IF($B$2=APPEL!$E$1,VLOOKUP(B28,APPEL!$F$3:$G$38,2,FALSE),IF($B$2=APPEL!$H$1,VLOOKUP(B28,APPEL!$I$3:$J$38,2,FALSE),IF($B$2=APPEL!$K$1,VLOOKUP(B28,APPEL!$L$3:$M$38,2,FALSE),IF($B$2=APPEL!$N$1,VLOOKUP(B28,APPEL!$O$3:$P$38,2,FALSE),IF($B$2=APPEL!$Q$1,VLOOKUP(B28,APPEL!$R$3:$S$38,2,FALSE),IF($B$2=APPEL!$T$1,VLOOKUP(B28,APPEL!$U$3:$V$38,2,FALSE),IF($B$2=APPEL!$W$1,VLOOKUP(B28,APPEL!$X$3:$Y$38,2,FALSE),IF($B$2=APPEL!$Z$1,VLOOKUP(B28,APPEL!$AA$3:$AB$38,2,FALSE))))))))))","v":{"$error":"#N/A"}},{"$f":"IF($B$2=APPEL!$B$1,APPEL!C26,IF($B$2=APPEL!$E$1,APPEL!F26,IF($B$2=APPEL!$H$1,APPEL!I26,IF($B$2=APPEL!$K$1,APPEL!L26,IF($B$2=APPEL!$N$1,APPEL!O26,IF($B$2=APPEL!$Q$1,APPEL!R26,IF($B$2=APPEL!$T$1,APPEL!U26,IF($B$2=APPEL!$W$1,APPEL!X26,IF($B$2=APPEL!$Z$1,APPEL!AA26)))))))))","v":0},null,"",{"$f":"IFERROR(IF(AND($E$2=DEBUT!$F$5,A28=\"G\"),VLOOKUP(D28,DEBUT!$H$5:$J$99,3,1),IF(AND($E$2=DEBUT!$F$6,A28=\"G\"),VLOOKUP(D28,DEBUT!$AI$5:$AK$70,3,1),IF(AND($E$2=DEBUT!$F$5,$A$5,A28=\"F\"),VLOOKUP(D28,DEBUT!$I$5:$J$99,2,1),IF(AND($E$2=DEBUT!$F$6,A28=\"F\"),VLOOKUP(D28,DEBUT!$AJ$5:$AK$70,2,1))))),\" perf-sexe?\")","v":" perf-sexe?"},null,null,null,null,null,null,null,null,null,null,null,null,{"$f":"IF(ROWS($1:$1)<=COUNTIF(sprinteur,$B28),INDEX(metre,SMALL(IF(sprinteur=$B28,ROW(INDIRECT(\"1:\"&ROWS(metre)))),ROWS($1:$1))),\"\")","v":""},{"$f":"IF(ROWS($1:$2)<=COUNTIF(sprinteur,$B28),INDEX(metre,SMALL(IF(sprinteur=$B28,ROW(INDIRECT(\"1:\"&ROWS(metre)))),ROWS($1:$2))),\"\")","v":""},{"$f":"IF(ROWS($1:$3)<=COUNTIF(sprinteur,$B28),INDEX(metre,SMALL(IF(sprinteur=$B28,ROW(INDIRECT(\"1:\"&ROWS(metre)))),ROWS($1:$3))),\"\")","v":""},{"$f":"IF(ROWS($1:$4)<=COUNTIF(sprinteur,$B28),INDEX(metre,SMALL(IF(sprinteur=$B28,ROW(INDIRECT(\"1:\"&ROWS(metre)))),ROWS($1:$4))),\"\")","v":""},"","","",""]
[{"$f":"IF($B$2=APPEL!$B$1,VLOOKUP(B29,APPEL!$C$3:$D$38,2,FALSE),IF($B$2=APPEL!$E$1,VLOOKUP(B29,APPEL!$F$3:$G$38,2,FALSE),IF($B$2=APPEL!$H$1,VLOOKUP(B29,APPEL!$I$3:$J$38,2,FALSE),IF($B$2=APPEL!$K$1,VLOOKUP(B29,APPEL!$L$3:$M$38,2,FALSE),IF($B$2=APPEL!$N$1,VLOOKUP(B29,APPEL!$O$3:$P$38,2,FALSE),IF($B$2=APPEL!$Q$1,VLOOKUP(B29,APPEL!$R$3:$S$38,2,FALSE),IF($B$2=APPEL!$T$1,VLOOKUP(B29,APPEL!$U$3:$V$38,2,FALSE),IF($B$2=APPEL!$W$1,VLOOKUP(B29,APPEL!$X$3:$Y$38,2,FALSE),IF($B$2=APPEL!$Z$1,VLOOKUP(B29,APPEL!$AA$3:$AB$38,2,FALSE))))))))))","v":{"$error":"#N/A"}},{"$f":"IF($B$2=APPEL!$B$1,APPEL!C27,IF($B$2=APPEL!$E$1,APPEL!F27,IF($B$2=APPEL!$H$1,APPEL!I27,IF($B$2=APPEL!$K$1,APPEL!L27,IF($B$2=APPEL!$N$1,APPEL!O27,IF($B$2=APPEL!$Q$1,APPEL!R27,IF($B$2=APPEL!$T$1,APPEL!U27,IF($B$2=APPEL!$W$1,APPEL!X27,IF($B$2=APPEL!$Z$1,APPEL!AA27)))))))))","v":0},null,"",{"$f":"IFERROR(IF(AND($E$2=DEBUT!$F$5,A29=\"G\"),VLOOKUP(D29,DEBUT!$H$5:$J$99,3,1),IF(AND($E$2=DEBUT!$F$6,A29=\"G\"),VLOOKUP(D29,DEBUT!$AI$5:$AK$70,3,1),IF(AND($E$2=DEBUT!$F$5,$A$5,A29=\"F\"),VLOOKUP(D29,DEBUT!$I$5:$J$99,2,1),IF(AND($E$2=DEBUT!$F$6,A29=\"F\"),VLOOKUP(D29,DEBUT!$AJ$5:$AK$70,2,1))))),\" perf-sexe?\")","v":" perf-sexe?"},null,null,null,null,null,null,null,null,null,null,null,null,{"$f":"IF(ROWS($1:$1)<=COUNTIF(sprinteur,$B29),INDEX(metre,SMALL(IF(sprinteur=$B29,ROW(INDIRECT(\"1:\"&ROWS(metre)))),ROWS($1:$1))),\"\")","v":""},{"$f":"IF(ROWS($1:$2)<=COUNTIF(sprinteur,$B29),INDEX(metre,SMALL(IF(sprinteur=$B29,ROW(INDIRECT(\"1:\"&ROWS(metre)))),ROWS($1:$2))),\"\")","v":""},{"$f":"IF(ROWS($1:$3)<=COUNTIF(sprinteur,$B29),INDEX(metre,SMALL(IF(sprinteur=$B29,ROW(INDIRECT(\"1:\"&ROWS(metre)))),ROWS($1:$3))),\"\")","v":""},{"$f":"IF(ROWS($1:$4)<=COUNTIF(sprinteur,$B29),INDEX(metre,SMALL(IF(sprinteur=$B29,ROW(INDIRECT(\"1:\"&ROWS(metre)))),ROWS($1:$4))),\"\")","v":""},"","","",""]
[{"$f":"IF($B$2=APPEL!$B$1,VLOOKUP(B30,APPEL!$C$3:$D$38,2,FALSE),IF($B$2=APPEL!$E$1,VLOOKUP(B30,APPEL!$F$3:$G$38,2,FALSE),IF($B$2=APPEL!$H$1,VLOOKUP(B30,APPEL!$I$3:$J$38,2,FALSE),IF($B$2=APPEL!$K$1,VLOOKUP(B30,APPEL!$L$3:$M$38,2,FALSE),IF($B$2=APPEL!$N$1,VLOOKUP(B30,APPEL!$O$3:$P$38,2,FALSE),IF($B$2=APPEL!$Q$1,VLOOKUP(B30,APPEL!$R$3:$S$38,2,FALSE),IF($B$2=APPEL!$T$1,VLOOKUP(B30,APPEL!$U$3:$V$38,2,FALSE),IF($B$2=APPEL!$W$1,VLOOKUP(B30,APPEL!$X$3:$Y$38,2,FALSE),IF($B$2=APPEL!$Z$1,VLOOKUP(B30,APPEL!$AA$3:$AB$38,2,FALSE))))))))))","v":{"$error":"#N/A"}},{"$f":"IF($B$2=APPEL!$B$1,APPEL!C28,IF($B$2=APPEL!$E$1,APPEL!F28,IF($B$2=APPEL!$H$1,APPEL!I28,IF($B$2=APPEL!$K$1,APPEL!L28,IF($B$2=APPEL!$N$1,APPEL!O28,IF($B$2=APPEL!$Q$1,APPEL!R28,IF($B$2=APPEL!$T$1,APPEL!U28,IF($B$2=APPEL!$W$1,APPEL!X28,IF($B$2=APPEL!$Z$1,APPEL!AA28)))))))))","v":0},null,"",{"$f":"IFERROR(IF(AND($E$2=DEBUT!$F$5,A30=\"G\"),VLOOKUP(D30,DEBUT!$H$5:$J$99,3,1),IF(AND($E$2=DEBUT!$F$6,A30=\"G\"),VLOOKUP(D30,DEBUT!$AI$5:$AK$70,3,1),IF(AND($E$2=DEBUT!$F$5,$A$5,A30=\"F\"),VLOOKUP(D30,DEBUT!$I$5:$J$99,2,1),IF(AND($E$2=DEBUT!$F$6,A30=\"F\"),VLOOKUP(D30,DEBUT!$AJ$5:$AK$70,2,1))))),\" perf-sexe?\")","v":" perf-sexe?"},null,null,null,null,null,null,null,null,null,null,null,null,{"$f":"IF(ROWS($1:$1)<=COUNTIF(sprinteur,$B30),INDEX(metre,SMALL(IF(sprinteur=$B30,ROW(INDIRECT(\"1:\"&ROWS(metre)))),ROWS($1:$1))),\"\")","v":""},{"$f":"IF(ROWS($1:$2)<=COUNTIF(sprinteur,$B30),INDEX(metre,SMALL(IF(sprinteur=$B30,ROW(INDIRECT(\"1:\"&ROWS(metre)))),ROWS($1:$2))),\"\")","v":""},{"$f":"IF(ROWS($1:$3)<=COUNTIF(sprinteur,$B30),INDEX(metre,SMALL(IF(sprinteur=$B30,ROW(INDIRECT(\"1:\"&ROWS(metre)))),ROWS($1:$3))),\"\")","v":""},{"$f":"IF(ROWS($1:$4)<=COUNTIF(sprinteur,$B30),INDEX(metre,SMALL(IF(sprinteur=$B30,ROW(INDIRECT(\"1:\"&ROWS(metre)))),ROWS($1:$4))),\"\")","v":""},"","","",""]
[{"$f":"IF($B$2=APPEL!$B$1,VLOOKUP(B31,APPEL!$C$3:$D$38,2,FALSE),IF($B$2=APPEL!$E$1,VLOOKUP(B31,APPEL!$F$3:$G$38,2,FALSE),IF($B$2=APPEL!$H$1,VLOOKUP(B31,APPEL!$I$3:$J$38,2,FALSE),IF($B$2=APPEL!$K$1,VLOOKUP(B31,APPEL!$L$3:$M$38,2,FALSE),IF($B$2=APPEL!$N$1,VLOOKUP(B31,APPEL!$O$3:$P$38,2,FALSE),IF($B$2=APPEL!$Q$1,VLOOKUP(B31,APPEL!$R$3:$S$38,2,FALSE),IF($B$2=APPEL!$T$1,VLOOKUP(B31,APPEL!$U$3:$V$38,2,FALSE),IF($B$2=APPEL!$W$1,VLOOKUP(B31,APPEL!$X$3:$Y$38,2,FALSE),IF($B$2=APPEL!$Z$1,VLOOKUP(B31,APPEL!$AA$3:$AB$38,2,FALSE))))))))))","v":{"$error":"#N/A"}},{"$f":"IF($B$2=APPEL!$B$1,APPEL!C29,IF($B$2=APPEL!$E$1,APPEL!F29,IF($B$2=APPEL!$H$1,APPEL!I29,IF($B$2=APPEL!$K$1,APPEL!L29,IF($B$2=APPEL!$N$1,APPEL!O29,IF($B$2=APPEL!$Q$1,APPEL!R29,IF($B$2=APPEL!$T$1,APPEL!U29,IF($B$2=APPEL!$W$1,APPEL!X29,IF($B$2=APPEL!$Z$1,APPEL!AA29)))))))))","v":0},null,"",{"$f":"IFERROR(IF(AND($E$2=DEBUT!$F$5,A31=\"G\"),VLOOKUP(D31,DEBUT!$H$5:$J$99,3,1),IF(AND($E$2=DEBUT!$F$6,A31=\"G\"),VLOOKUP(D31,DEBUT!$AI$5:$AK$70,3,1),IF(AND($E$2=DEBUT!$F$5,$A$5,A31=\"F\"),VLOOKUP(D31,DEBUT!$I$5:$J$99,2,1),IF(AND($E$2=DEBUT!$F$6,A31=\"F\"),VLOOKUP(D31,DEBUT!$AJ$5:$AK$70,2,1))))),\" perf-sexe?\")","v":" perf-sexe?"},null,null,null,null,null,null,null,null,null,null,null,null,{"$f":"IF(ROWS($1:$1)<=COUNTIF(sprinteur,$B31),INDEX(metre,SMALL(IF(sprinteur=$B31,ROW(INDIRECT(\"1:\"&ROWS(metre)))),ROWS($1:$1))),\"\")","v":""},{"$f":"IF(ROWS($1:$2)<=COUNTIF(sprinteur,$B31),INDEX(metre,SMALL(IF(sprinteur=$B31,ROW(INDIRECT(\"1:\"&ROWS(metre)))),ROWS($1:$2))),\"\")","v":""},{"$f":"IF(ROWS($1:$3)<=COUNTIF(sprinteur,$B31),INDEX(metre,SMALL(IF(sprinteur=$B31,ROW(INDIRECT(\"1:\"&ROWS(metre)))),ROWS($1:$3))),\"\")","v":""},{"$f":"IF(ROWS($1:$4)<=COUNTIF(sprinteur,$B31),INDEX(metre,SMALL(IF(sprinteur=$B31,ROW(INDIRECT(\"1:\"&ROWS(metre)))),ROWS($1:$4))),\"\")","v":""},"","","",""]
[{"$f":"IF($B$2=APPEL!$B$1,VLOOKUP(B32,APPEL!$C$3:$D$38,2,FALSE),IF($B$2=APPEL!$E$1,VLOOKUP(B32,APPEL!$F$3:$G$38,2,FALSE),IF($B$2=APPEL!$H$1,VLOOKUP(B32,APPEL!$I$3:$J$38,2,FALSE),IF($B$2=APPEL!$K$1,VLOOKUP(B32,APPEL!$L$3:$M$38,2,FALSE),IF($B$2=APPEL!$N$1,VLOOKUP(B32,APPEL!$O$3:$P$38,2,FALSE),IF($B$2=APPEL!$Q$1,VLOOKUP(B32,APPEL!$R$3:$S$38,2,FALSE),IF($B$2=APPEL!$T$1,VLOOKUP(B32,APPEL!$U$3:$V$38,2,FALSE),IF($B$2=APPEL!$W$1,VLOOKUP(B32,APPEL!$X$3:$Y$38,2,FALSE),IF($B$2=APPEL!$Z$1,VLOOKUP(B32,APPEL!$AA$3:$AB$38,2,FALSE))))))))))","v":{"$error":"#N/A"}},{"$f":"IF($B$2=APPEL!$B$1,APPEL!C30,IF($B$2=APPEL!$E$1,APPEL!F30,IF($B$2=APPEL!$H$1,APPEL!I30,IF($B$2=APPEL!$K$1,APPEL!L30,IF($B$2=APPEL!$N$1,APPEL!O30,IF($B$2=APPEL!$Q$1,APPEL!R30,IF($B$2=APPEL!$T$1,APPEL!U30,IF($B$2=APPEL!$W$1,APPEL!X30,IF($B$2=APPEL!$Z$1,APPEL!AA30)))))))))","v":0},null,"",{"$f":"IFERROR(IF(AND($E$2=DEBUT!$F$5,A32=\"G\"),VLOOKUP(D32,DEBUT!$H$5:$J$99,3,1),IF(AND($E$2=DEBUT!$F$6,A32=\"G\"),VLOOKUP(D32,DEBUT!$AI$5:$AK$70,3,1),IF(AND($E$2=DEBUT!$F$5,$A$5,A32=\"F\"),VLOOKUP(D32,DEBUT!$I$5:$J$99,2,1),IF(AND($E$2=DEBUT!$F$6,A32=\"F\"),VLOOKUP(D32,DEBUT!$AJ$5:$AK$70,2,1))))),\" perf-sexe?\")","v":" perf-sexe?"},null,null,null,null,null,null,null,null,null,null,null,null,{"$f":"IF(ROWS($1:$1)<=COUNTIF(sprinteur,$B32),INDEX(metre,SMALL(IF(sprinteur=$B32,ROW(INDIRECT(\"1:\"&ROWS(metre)))),ROWS($1:$1))),\"\")","v":""},{"$f":"IF(ROWS($1:$2)<=COUNTIF(sprinteur,$B32),INDEX(metre,SMALL(IF(sprinteur=$B32,ROW(INDIRECT(\"1:\"&ROWS(metre)))),ROWS($1:$2))),\"\")","v":""},{"$f":"IF(ROWS($1:$3)<=COUNTIF(sprinteur,$B32),INDEX(metre,SMALL(IF(sprinteur=$B32,ROW(INDIRECT(\"1:\"&ROWS(metre)))),ROWS($1:$3))),\"\")","v":""},{"$f":"IF(ROWS($1:$4)<=COUNTIF(sprinteur,$B32),INDEX(metre,SMALL(IF(sprinteur=$B32,ROW(INDIRECT(\"1:\"&ROWS(metre)))),ROWS($1:$4))),\"\")","v":""},"","","",""]
[{"$f":"IF($B$2=APPEL!$B$1,VLOOKUP(B33,APPEL!$C$3:$D$38,2,FALSE),IF($B$2=APPEL!$E$1,VLOOKUP(B33,APPEL!$F$3:$G$38,2,FALSE),IF($B$2=APPEL!$H$1,VLOOKUP(B33,APPEL!$I$3:$J$38,2,FALSE),IF($B$2=APPEL!$K$1,VLOOKUP(B33,APPEL!$L$3:$M$38,2,FALSE),IF($B$2=APPEL!$N$1,VLOOKUP(B33,APPEL!$O$3:$P$38,2,FALSE),IF($B$2=APPEL!$Q$1,VLOOKUP(B33,APPEL!$R$3:$S$38,2,FALSE),IF($B$2=APPEL!$T$1,VLOOKUP(B33,APPEL!$U$3:$V$38,2,FALSE),IF($B$2=APPEL!$W$1,VLOOKUP(B33,APPEL!$X$3:$Y$38,2,FALSE),IF($B$2=APPEL!$Z$1,VLOOKUP(B33,APPEL!$AA$3:$AB$38,2,FALSE))))))))))","v":{"$error":"#N/A"}},{"$f":"IF($B$2=APPEL!$B$1,APPEL!C31,IF($B$2=APPEL!$E$1,APPEL!F31,IF($B$2=APPEL!$H$1,APPEL!I31,IF($B$2=APPEL!$K$1,APPEL!L31,IF($B$2=APPEL!$N$1,APPEL!O31,IF($B$2=APPEL!$Q$1,APPEL!R31,IF($B$2=APPEL!$T$1,APPEL!U31,IF($B$2=APPEL!$W$1,APPEL!X31,IF($B$2=APPEL!$Z$1,APPEL!AA31)))))))))","v":0},null,"",{"$f":"IFERROR(IF(AND($E$2=DEBUT!$F$5,A33=\"G\"),VLOOKUP(D33,DEBUT!$H$5:$J$99,3,1),IF(AND($E$2=DEBUT!$F$6,A33=\"G\"),VLOOKUP(D33,DEBUT!$AI$5:$AK$70,3,1),IF(AND($E$2=DEBUT!$F$5,$A$5,A33=\"F\"),VLOOKUP(D33,DEBUT!$I$5:$J$99,2,1),IF(AND($E$2=DEBUT!$F$6,A33=\"F\"),VLOOKUP(D33,DEBUT!$AJ$5:$AK$70,2,1))))),\" perf-sexe?\")","v":" perf-sexe?"},null,null,null,null,null,null,null,null,null,null,null,null,{"$f":"IF(ROWS($1:$1)<=COUNTIF(sprinteur,$B33),INDEX(metre,SMALL(IF(sprinteur=$B33,ROW(INDIRECT(\"1:\"&ROWS(metre)))),ROWS($1:$1))),\"\")","v":""},{"$f":"IF(ROWS($1:$2)<=COUNTIF(sprinteur,$B33),INDEX(metre,SMALL(IF(sprinteur=$B33,ROW(INDIRECT(\"1:\"&ROWS(metre)))),ROWS($1:$2))),\"\")","v":""},{"$f":"IF(ROWS($1:$3)<=COUNTIF(sprinteur,$B33),INDEX(metre,SMALL(IF(sprinteur=$B33,ROW(INDIRECT(\"1:\"&ROWS(metre)))),ROWS($1:$3))),\"\")","v":""},{"$f":"IF(ROWS($1:$4)<=COUNTIF(sprinteur,$B33),INDEX(metre,SMALL(IF(sprinteur=$B33,ROW(INDIRECT(\"1:\"&ROWS(metre)))),ROWS($1:$4))),\"\")","v":""},"","","",""]
[{"$f":"IF($B$2=APPEL!$B$1,VLOOKUP(B34,APPEL!$C$3:$D$38,2,FALSE),IF($B$2=APPEL!$E$1,VLOOKUP(B34,APPEL!$F$3:$G$38,2,FALSE),IF($B$2=APPEL!$H$1,VLOOKUP(B34,APPEL!$I$3:$J$38,2,FALSE),IF($B$2=APPEL!$K$1,VLOOKUP(B34,APPEL!$L$3:$M$38,2,FALSE),IF($B$2=APPEL!$N$1,VLOOKUP(B34,APPEL!$O$3:$P$38,2,FALSE),IF($B$2=APPEL!$Q$1,VLOOKUP(B34,APPEL!$R$3:$S$38,2,FALSE),IF($B$2=APPEL!$T$1,VLOOKUP(B34,APPEL!$U$3:$V$38,2,FALSE),IF($B$2=APPEL!$W$1,VLOOKUP(B34,APPEL!$X$3:$Y$38,2,FALSE),IF($B$2=APPEL!$Z$1,VLOOKUP(B34,APPEL!$AA$3:$AB$38,2,FALSE))))))))))","v":{"$error":"#N/A"}},{"$f":"IF($B$2=APPEL!$B$1,APPEL!C32,IF($B$2=APPEL!$E$1,APPEL!F32,IF($B$2=APPEL!$H$1,APPEL!I32,IF($B$2=APPEL!$K$1,APPEL!L32,IF($B$2=APPEL!$N$1,APPEL!O32,IF($B$2=APPEL!$Q$1,APPEL!R32,IF($B$2=APPEL!$T$1,APPEL!U32,IF($B$2=APPEL!$W$1,APPEL!X32,IF($B$2=APPEL!$Z$1,APPEL!AA32)))))))))","v":0},null,"",{"$f":"IFERROR(IF(AND($E$2=DEBUT!$F$5,A34=\"G\"),VLOOKUP(D34,DEBUT!$H$5:$J$99,3,1),IF(AND($E$2=DEBUT!$F$6,A34=\"G\"),VLOOKUP(D34,DEBUT!$AI$5:$AK$70,3,1),IF(AND($E$2=DEBUT!$F$5,$A$5,A34=\"F\"),VLOOKUP(D34,DEBUT!$I$5:$J$99,2,1),IF(AND($E$2=DEBUT!$F$6,A34=\"F\"),VLOOKUP(D34,DEBUT!$AJ$5:$AK$70,2,1))))),\" perf-sexe?\")","v":" perf-sexe?"},null,null,null,null,null,null,null,null,null,null,null,null,{"$f":"IF(ROWS($1:$1)<=COUNTIF(sprinteur,$B34),INDEX(metre,SMALL(IF(sprinteur=$B34,ROW(INDIRECT(\"1:\"&ROWS(metre)))),ROWS($1:$1))),\"\")","v":""},{"$f":"IF(ROWS($1:$2)<=COUNTIF(sprinteur,$B34),INDEX(metre,SMALL(IF(sprinteur=$B34,ROW(INDIRECT(\"1:\"&ROWS(metre)))),ROWS($1:$2))),\"\")","v":""},{"$f":"IF(ROWS($1:$3)<=COUNTIF(sprinteur,$B34),INDEX(metre,SMALL(IF(sprinteur=$B34,ROW(INDIRECT(\"1:\"&ROWS(metre)))),ROWS($1:$3))),\"\")","v":""},{"$f":"IF(ROWS($1:$4)<=COUNTIF(sprinteur,$B34),INDEX(metre,SMALL(IF(sprinteur=$B34,ROW(INDIRECT(\"1:\"&ROWS(metre)))),ROWS($1:$4))),\"\")","v":""},"","","",""]
[{"$f":"IF($B$2=APPEL!$B$1,VLOOKUP(B35,APPEL!$C$3:$D$38,2,FALSE),IF($B$2=APPEL!$E$1,VLOOKUP(B35,APPEL!$F$3:$G$38,2,FALSE),IF($B$2=APPEL!$H$1,VLOOKUP(B35,APPEL!$I$3:$J$38,2,FALSE),IF($B$2=APPEL!$K$1,VLOOKUP(B35,APPEL!$L$3:$M$38,2,FALSE),IF($B$2=APPEL!$N$1,VLOOKUP(B35,APPEL!$O$3:$P$38,2,FALSE),IF($B$2=APPEL!$Q$1,VLOOKUP(B35,APPEL!$R$3:$S$38,2,FALSE),IF($B$2=APPEL!$T$1,VLOOKUP(B35,APPEL!$U$3:$V$38,2,FALSE),IF($B$2=APPEL!$W$1,VLOOKUP(B35,APPEL!$X$3:$Y$38,2,FALSE),IF($B$2=APPEL!$Z$1,VLOOKUP(B35,APPEL!$AA$3:$AB$38,2,FALSE))))))))))","v":{"$error":"#N/A"}},{"$f":"IF($B$2=APPEL!$B$1,APPEL!C33,IF($B$2=APPEL!$E$1,APPEL!F33,IF($B$2=APPEL!$H$1,APPEL!I33,IF($B$2=APPEL!$K$1,APPEL!L33,IF($B$2=APPEL!$N$1,APPEL!O33,IF($B$2=APPEL!$Q$1,APPEL!R33,IF($B$2=APPEL!$T$1,APPEL!U33,IF($B$2=APPEL!$W$1,APPEL!X33,IF($B$2=APPEL!$Z$1,APPEL!AA33)))))))))","v":0},null,"",{"$f":"IFERROR(IF(AND($E$2=DEBUT!$F$5,A35=\"G\"),VLOOKUP(D35,DEBUT!$H$5:$J$99,3,1),IF(AND($E$2=DEBUT!$F$6,A35=\"G\"),VLOOKUP(D35,DEBUT!$AI$5:$AK$70,3,1),IF(AND($E$2=DEBUT!$F$5,$A$5,A35=\"F\"),VLOOKUP(D35,DEBUT!$I$5:$J$99,2,1),IF(AND($E$2=DEBUT!$F$6,A35=\"F\"),VLOOKUP(D35,DEBUT!$AJ$5:$AK$70,2,1))))),\" perf-sexe?\")","v":" perf-sexe?"},null,null,null,null,null,null,null,null,null,null,null,null,{"$f":"IF(ROWS($1:$1)<=COUNTIF(sprinteur,$B35),INDEX(metre,SMALL(IF(sprinteur=$B35,ROW(INDIRECT(\"1:\"&ROWS(metre)))),ROWS($1:$1))),\"\")","v":""},{"$f":"IF(ROWS($1:$2)<=COUNTIF(sprinteur,$B35),INDEX(metre,SMALL(IF(sprinteur=$B35,ROW(INDIRECT(\"1:\"&ROWS(metre)))),ROWS($1:$2))),\"\")","v":""},{"$f":"IF(ROWS($1:$3)<=COUNTIF(sprinteur,$B35),INDEX(metre,SMALL(IF(sprinteur=$B35,ROW(INDIRECT(\"1:\"&ROWS(metre)))),ROWS($1:$3))),\"\")","v":""},{"$f":"IF(ROWS($1:$4)<=COUNTIF(sprinteur,$B35),INDEX(metre,SMALL(IF(sprinteur=$B35,ROW(INDIRECT(\"1:\"&ROWS(metre)))),ROWS($1:$4))),\"\")","v":""},"","","",""]
[{"$f":"IF($B$2=APPEL!$B$1,VLOOKUP(B36,APPEL!$C$3:$D$38,2,FALSE),IF($B$2=APPEL!$E$1,VLOOKUP(B36,APPEL!$F$3:$G$38,2,FALSE),IF($B$2=APPEL!$H$1,VLOOKUP(B36,APPEL!$I$3:$J$38,2,FALSE),IF($B$2=APPEL!$K$1,VLOOKUP(B36,APPEL!$L$3:$M$38,2,FALSE),IF($B$2=APPEL!$N$1,VLOOKUP(B36,APPEL!$O$3:$P$38,2,FALSE),IF($B$2=APPEL!$Q$1,VLOOKUP(B36,APPEL!$R$3:$S$38,2,FALSE),IF($B$2=APPEL!$T$1,VLOOKUP(B36,APPEL!$U$3:$V$38,2,FALSE),IF($B$2=APPEL!$W$1,VLOOKUP(B36,APPEL!$X$3:$Y$38,2,FALSE),IF($B$2=APPEL!$Z$1,VLOOKUP(B36,APPEL!$AA$3:$AB$38,2,FALSE))))))))))","v":{"$error":"#N/A"}},{"$f":"IF($B$2=APPEL!$B$1,APPEL!C34,IF($B$2=APPEL!$E$1,APPEL!F34,IF($B$2=APPEL!$H$1,APPEL!I34,IF($B$2=APPEL!$K$1,APPEL!L34,IF($B$2=APPEL!$N$1,APPEL!O34,IF($B$2=APPEL!$Q$1,APPEL!R34,IF($B$2=APPEL!$T$1,APPEL!U34,IF($B$2=APPEL!$W$1,APPEL!X34,IF($B$2=APPEL!$Z$1,APPEL!AA34)))))))))","v":0},null,"",{"$f":"IFERROR(IF(AND($E$2=DEBUT!$F$5,A36=\"G\"),VLOOKUP(D36,DEBUT!$H$5:$J$99,3,1),IF(AND($E$2=DEBUT!$F$6,A36=\"G\"),VLOOKUP(D36,DEBUT!$AI$5:$AK$70,3,1),IF(AND($E$2=DEBUT!$F$5,$A$5,A36=\"F\"),VLOOKUP(D36,DEBUT!$I$5:$J$99,2,1),IF(AND($E$2=DEBUT!$F$6,A36=\"F\"),VLOOKUP(D36,DEBUT!$AJ$5:$AK$70,2,1))))),\" perf-sexe?\")","v":" perf-sexe?"},null,null,null,null,null,null,null,null,null,null,null,null,{"$f":"IF(ROWS($1:$1)<=COUNTIF(sprinteur,$B36),INDEX(metre,SMALL(IF(sprinteur=$B36,ROW(INDIRECT(\"1:\"&ROWS(metre)))),ROWS($1:$1))),\"\")","v":""},{"$f":"IF(ROWS($1:$2)<=COUNTIF(sprinteur,$B36),INDEX(metre,SMALL(IF(sprinteur=$B36,ROW(INDIRECT(\"1:\"&ROWS(metre)))),ROWS($1:$2))),\"\")","v":""},{"$f":"IF(ROWS($1:$3)<=COUNTIF(sprinteur,$B36),INDEX(metre,SMALL(IF(sprinteur=$B36,ROW(INDIRECT(\"1:\"&ROWS(metre)))),ROWS($1:$3))),\"\")","v":""},{"$f":"IF(ROWS($1:$4)<=COUNTIF(sprinteur,$B36),INDEX(metre,SMALL(IF(sprinteur=$B36,ROW(INDIRECT(\"1:\"&ROWS(metre)))),ROWS($1:$4))),\"\")","v":""},"","","",""]

{"sheet":"PERF 2x25m","index":1,"n_rows":63,"n_cols":9,"rows_kept":63,"cut":false,"hidden":false,"merged":[[30,4,31,4],[32,4,33,4],[34,4,35,4],[36,4,37,4],[38,4,39,4],[40,4,41,4],[42,4,43,4],[44,4,45,4],[46,4,47,4],[0,3,2,3],[6,0,7,0],[8,0,9,0],[10,0,11,0],[12,0,13,0],[14,0,15,0],[28,0,29,0],[30,0,31,0],[32,0,33,0],[36,0,37,0],[38,0,39,0],[16,0,17,0],[18,0,19,0],[12,3,13,3],[3,1,3,2],[4,1,4,2],[5,1,5,2],[6,1,6,2],[7,1,7,2],[38,1,38,2],[38,3,39,3],[22,3,23,3],[14,3,15,3],[4,3,5,3],[34,1,34,2],[35,1,35,2],[20,0,21,0],[22,0,23,0],[24,0,25,0],[26,0,27,0],[4,0,5,0],[34,0,35,0],[0,6,2,7],[34,3,35,3],[34,6,35,7],[34,8,35,8],[36,1,36,2],[36,3,37,3],[36,6,37,7],[36,8,37,8],[37,1,37,2],[30,3,31,3],[30,6,31,7],[30,8,31,8],[32,3,33,3],[32,6,33,7],[32,8,33,8],[26,3,27,3],[26,6,27,7],[26,8,27,8],[28,3,29,3],[28,6,29,7],[28,8,29,8],[24,8,25,8],[18,3,19,3],[18,6,19,7],[38,8,39,8],[39,1,39,2],[4,8,5,8],[4,6,5,7],[6,3,7,3],[6,6,7,7],[6,8,7,8],[8,3,9,3],[8,6,9,7],[32,1,32,2],[33,1,33,2],[13,1,13,2],[14,8,15,8],[16,3,17,3],[16,6,17,7],[16,8,17,8],[8,8,9,8],[10,3,11,3],[10,6,11,7],[10,8,11,8],[38,6,39,7],[22,6,23,7],[14,6,15,7],[12,6,13,7],[12,8,13,8],[22,8,23,8],[24,3,25,3],[24,6,25,7],[29,1,29,2],[30,1,30,2],[31,1,31,2],[20,1,20,2],[21,1,21,2],[22,1,22,2],[23,1,23,2],[24,1,24,2],[25,1,25,2],[18,8,19,8],[20,3,21,3],[20,6,21,7],[20,8,21,8],[12,4,13,4],[14,4,15,4],[16,4,17,4],[18,4,19,4],[20,4,21,4],[22,4,23,4],[24,4,25,4],[3,6,3,7],[26,1,26,2],[27,1,27,2],[28,1,28,2],[14,1,14,2],[15,1,15,2],[16,1,16,2],[17,1,17,2],[18,1,18,2],[19,1,19,2],[8,1,8,2],[9,1,9,2],[10,1,10,2],[11,1,11,2],[12,1,12,2],[4,4,5,4],[6,4,7,4],[8,4,9,4],[10,4,11,4],[26,4,27,4],[28,4,29,4],[40,0,41,0],[40,1,40,2],[40,3,41,3],[40,6,41,7],[40,8,41,8],[41,1,41,2],[42,0,43,0],[42,1,42,2],[42,3,43,3],[42,6,43,7],[42,8,43,8],[43,1,43,2],[44,0,45,0],[44,1,44,2],[44,3,45,3],[44,6,45,7],[44,8,45,8],[45,1,45,2],[46,0,47,0],[46,1,46,2],[46,3,47,3],[46,6,47,7],[46,8,47,8],[47,1,47,2],[48,0,49,0],[48,1,48,2],[48,3,49,3],[48,6,49,7],[48,8,49,8],[49,1,49,2],[50,0,51,0],[50,1,50,2],[50,3,51,3],[50,6,51,7],[50,8,51,8],[51,1,51,2],[48,4,49,4],[50,4,51,4],[52,0,53,0],[52,1,52,2],[52,3,53,3],[52,6,53,7],[52,8,53,8],[53,1,53,2],[54,0,55,0],[54,1,54,2],[54,3,55,3],[54,6,55,7],[54,8,55,8],[55,1,55,2],[52,4,53,4],[54,4,55,4],[56,0,57,0],[56,1,56,2],[56,3,57,3],[56,6,57,7],[56,8,57,8],[57,1,57,2],[58,0,59,0],[58,1,58,2],[58,3,59,3],[58,6,59,7],[58,8,59,8],[59,1,59,2],[56,4,57,4],[58,4,59,4],[60,0,61,0],[60,1,60,2],[60,3,61,3],[60,6,61,7],[60,8,61,8],[61,1,61,2],[62,0,63,0],[62,1,62,2],[62,3,63,3],[62,6,63,7],[62,8,63,8],[63,1,63,2],[60,4,61,4],[62,4,63,4]]}
[null,"Classe ",null,2,null,null,1]
[null,{"$f":"'PERF 50m'!B2","v":"1COMELEC"},null,null,null,"contre"]
[]
[null,"RELAIS",null,"2x25 m","Marques ",null,"SPRINTEUR",null,"50 m "]
[1,"Jairzhino",null,5.9,null,null,"Anthony",null,6.4]
[null,"Fatima-Zohra"]
[2]
[]
[3]
[]
[4]
[]
[5]
[]
[6]
[]
[7]
[]
[8]
[]
[9]
[]
[10]
[]
[11]
[]
[12]
[]
[13]
[]
[14]
[]
[15]
[]
[16]
[]
[17]
[]
[18]
[]
[19]
[]
[20]
[]
[21]
[]
[22]
[]
[23]
[]
[24]
[]
[25]
[]
[26]
[]
[27]
[]
[28]
[]
[29]
[]
[30]

{"sheet":"NOTEENDIRECT","index":2,"n_rows":18,"n_cols":100,"rows_kept":18,"cut":false,"hidden":false,"merged":[[8,74,8,75],[12,72,12,75],[13,72,13,75],[3,76,4,76],[3,77,4,77],[6,74,6,75],[6,76,6,77],[7,76,7,77],[8,60,8,61],[12,58,12,61],[13,58,13,61],[3,69,4,69],[3,70,4,70],[6,67,6,68],[6,69,6,70],[7,69,7,70],[8,67,8,68],[12,65,12,68],[13,65,13,68],[3,62,4,62],[3,63,4,63],[6,60,6,61],[6,62,6,63],[7,62,7,63],[8,46,8,47],[12,44,12,47],[13,44,13,47],[3,55,4,55],[3,56,4,56],[6,53,6,54],[6,55,6,56],[7,55,7,56],[8,53,8,54],[12,51,12,54],[13,51,13,54],[3,48,4,48],[3,49,4,49],[6,46,6,47],[6,48,6,49],[7,48,7,49],[8,32,8,33],[12,30,12,33],[13,30,13,33],[3,41,4,41],[3,42,4,42],[6,39,6,40],[6,41,6,42],[7,41,7,42],[8,39,8,40],[12,37,12,40],[13,37,13,40],[3,34,4,34],[3,35,4,35],[6,32,6,33],[6,34,6,35],[7,34,7,35],[8,18,8,19],[12,16,12,19],[13,16,13,19],[3,27,4,27],[3,28,4,28],[6,25,6,26],[6,27,6,28],[7,27,7,28],[8,25,8,26],[12,23,12,26],[13,23,13,26],[3,20,4,20],[3,21,4,21],[6,18,6,19],[6,20,6,21],[7,20,7,21],[8,11,8,12],[12,9,12,12],[13,9,13,12],[3,13,4,13],[3,14,4,14],[6,11,6,12],[6,13,6,14],[7,13,7,14],[12,2,12,5],[13,2,13,5],[3,6,4,6],[3,7,4,7],[6,6,6,7],[7,6,7,7],[6,4,6,5],[8,4,8,5],[8,95,8,96],[12,93,12,96],[13,93,13,96],[3,97,4,97],[3,98,4,98],[6,95,6,96],[6,97,6,98],[7,97,7,98],[8,81,8,82],[12,79,12,82],[13,79,13,82],[3,90,4,90],[3,91,4,91],[6,88,6,89],[6,90,6,91],[7,90,7,91],[8,88,8,89],[12,86,12,89],[13,86,13,89],[3,83,4,83],[3,84,4,84],[6,81,6,82],[6,83,6,84],[7,83,7,84]]}
[null,"Classe"]
[null,{"$f":"'PERF 50m'!B2","v":"1COMELEC"},null,null,null,null,"N3","F",null,null,null,null,null,"N3","F",null,null,null,null,null,"N3","F",null,null,null,null,null,"N3","F",null,null,null,null,null,"N3","F",null,null,null,null,null,"N3","F",null,null,null,null,null,"N3","F",null,null,null,null,null,"N3","F",null,null,null,null,null,"N3","F",null,null,null,null,null,"N3","F",null,null,null,null,null,"N3","F",null,null,null,null,null,"N3","F",null,null,null,null,null,"N3","F",null,null,null,null,null,"N3","F"]
[]
[null,"Coureurs","Coureur 1","Coureur 2","Coureur 3","Coureur 4","4x50m(1)","4x50m(2)",null,"Coureur 1","Coureur 2","Coureur 3","Coureur 4","4x50m(1)","4x50m(2)",null,"Coureur 1","Coureur 2","Coureur 3","Coureur 4","4x50m(1)","4x50m(2)",null,"Coureur 1","Coureur 2","Coureur 3","Coureur 4","4x50m(1)","4x50m(2)",null,"Coureur 1","Coureur 2","Coureur 3","Coureur 4","4x50m(1)","4x50m(2)",null,"Coureur 1","Coureur 2","Coureur 3","Coureur 4","4x50m(1)","4x50m(2)",null,"Coureur 1","Coureur 2","Coureur 3","Coureur 4","4x50m(1)","4x50m(2)",null,"Coureur 1","Coureur 2","Coureur 3","Coureur 4","4x50m(1)","4x50m(2)",null,"Coureur 1","Coureur 2","Coureur 3","Coureur 4","4x50m(1)","4x50m(2)",null,"Coureur 1","Coureur 2","Coureur 3","Coureur 4","4x50m(1)","4x50m(2)",null,"Coureur 1","Coureur 2","Coureur 3","Coureur 4","4x50m(1)","4x50m(2)",null,"Coureur 1","Coureur 2","Coureur 3","Coureur 4","4x50m(1)","4x50m(2)",null,"Coureur 1","Coureur 2","Coureur 3","Coureur 4","4x50m(1)","4x50m(2)",null,"Coureur 1","Coureur 2","Coureur 3","Coureur 4","4x50m(1)","4x50m(2)"]
[null,"Prénoms","Hamza","Hamza","Hamza","Hamza"]
[null,"Temps",{"$f":"VLOOKUP(C5,'PERF 50m'!$B$5:$D$36,3,FALSE)","v":5.8},{"$f":"VLOOKUP(D5,'PERF 50m'!$B$5:$D$36,3,FALSE)","v":5.8},{"$f":"VLOOKUP(E5,'PERF 50m'!$B$5:$D$36,3,FALSE)","v":5.8},{"$f":"VLOOKUP(F5,'PERF 50m'!$B$5:$D$36,3,FALSE)","v":5.8},22.2,39.299999999999997,null,{"$f":"VLOOKUP(J5,'PERF 50m'!$B$5:$D$36,3,FALSE)","v":""},{"$f":"VLOOKUP(K5,'PERF 50m'!$B$5:$D$36,3,FALSE)","v":""},{"$f":"VLOOKUP(L5,'PERF 50m'!$B$5:$D$36,3,FALSE)","v":""},{"$f":"VLOOKUP(M5,'PERF 50m'!$B$5:$D$36,3,FALSE)","v":""},null,null,null,{"$f":"VLOOKUP(Q5,'PERF 50m'!$B$5:$D$36,3,FALSE)","v":""},{"$f":"VLOOKUP(R5,'PERF 50m'!$B$5:$D$36,3,FALSE)","v":""},{"$f":"VLOOKUP(S5,'PERF 50m'!$B$5:$D$36,3,FALSE)","v":""},{"$f":"VLOOKUP(T5,'PERF 50m'!$B$5:$D$36,3,FALSE)","v":""},null,null,null,{"$f":"VLOOKUP(X5,'PERF 50m'!$B$5:$D$36,3,FALSE)","v":""},{"$f":"VLOOKUP(Y5,'PERF 50m'!$B$5:$D$36,3,FALSE)","v":""},{"$f":"VLOOKUP(Z5,'PERF 50m'!$B$5:$D$36,3,FALSE)","v":""},{"$f":"VLOOKUP(AA5,'PERF 50m'!$B$5:$D$36,3,FALSE)","v":""},null,null,null,{"$f":"VLOOKUP(AE5,'PERF 50m'!$B$5:$D$36,3,FALSE)","v":""},{"$f":"VLOOKUP(AF5,'PERF 50m'!$B$5:$D$36,3,FALSE)","v":""},{"$f":"VLOOKUP(AG5,'PERF 50m'!$B$5:$D$36,3,FALSE)","v":""},{"$f":"VLOOKUP(AH5,'PERF 50m'!$B$5:$D$36,3,FALSE)","v":""},null,null,null,{"$f":"VLOOKUP(AL5,'PERF 50m'!$B$5:$D$36,3,FALSE)","v":""},{"$f":"VLOOKUP(AM5,'PERF 50m'!$B$5:$D$36,3,FALSE)","v":""},{"$f":"VLOOKUP(AN5,'PERF 50m'!$B$5:$D$36,3,FALSE)","v":""},{"$f":"VLOOKUP(AO5,'PERF 50m'!$B$5:$D$36,3,FALSE)","v":""},null,null,null,{"$f":"VLOOKUP(AS5,'PERF 50m'!$B$5:$D$36,3,FALSE)","v":""},{"$f":"VLOOKUP(AT5,'PERF 50m'!$B$5:$D$36,3,FALSE)","v":""},{"$f":"VLOOKUP(AU5,'PERF 50m'!$B$5:$D$36,3,FALSE)","v":""},{"$f":"VLOOKUP(AV5,'PERF 50m'!$B$5:$D$36,3,FALSE)","v":""},null,null,null,{"$f":"VLOOKUP(AZ5,'PERF 50m'!$B$5:$D$36,3,FALSE)","v":""},{"$f":"VLOOKUP(BA5,'PERF 50m'!$B$5:$D$36,3,FALSE)","v":""},{"$f":"VLOOKUP(BB5,'PERF 50m'!$B$5:$D$36,3,FALSE)","v":""},{"$f":"VLOOKUP(BC5,'PERF 50m'!$B$5:$D$36,3,FALSE)","v":""},null,null,null,{"$f":"VLOOKUP(BG5,'PERF 50m'!$B$5:$D$36,3,FALSE)","v":""},{"$f":"VLOOKUP(BH5,'PERF 50m'!$B$5:$D$36,3,FALSE)","v":""},{"$f":"VLOOKUP(BI5,'PERF 50m'!$B$5:$D$36,3,FALSE)","v":""},{"$f":"VLOOKUP(BJ5,'PERF 50m'!$B$5:$D$36,3,FALSE)","v":""},null,null,null,{"$f":"VLOOKUP(BN5,'PERF 50m'!$B$5:$D$36,3,FALSE)","v":""},{"$f":"VLOOKUP(BO5,'PERF 50m'!$B$5:$D$36,3,FALSE)","v":""},{"$f":"VLOOKUP(BP5,'PERF 50m'!$B$5:$D$36,3,FALSE)","v":""},{"$f":"VLOOKUP(BQ5,'PERF 50m'!$B$5:$D$36,3,FALSE)","v":""},null,null,null,{"$f":"VLOOKUP(BU5,'PERF 50m'!$B$5:$D$36,3,FALSE)","v":""},{"$f":"VLOOKUP(BV5,'PERF 50m'!$B$5:$D$36,3,FALSE)","v":""},{"$f":"VLOOKUP(BW5,'PERF 50m'!$B$5:$D$36,3,FALSE)","v":""},{"$f":"VLOOKUP(BX5,'PERF 50m'!$B$5:$D$36,3,FALSE)","v":""},null,null,null,{"$f":"VLOOKUP(CB5,'PERF 50m'!$B$5:$D$36,3,FALSE)","v":""},{"$f":"VLOOKUP(CC5,'PERF 50m'!$B$5:$D$36,3,FALSE)","v":""},{"$f":"VLOOKUP(CD5,'PERF 50m'!$B$5:$D$36,3,FALSE)","v":""},{"$f":"VLOOKUP(CE5,'PERF 50m'!$B$5:$D$36,3,FALSE)","v":""},null,null,null,{"$f":"VLOOKUP(CI5,'PERF 50m'!$B$5:$D$36,3,FALSE)","v":""},{"$f":"VLOOKUP(CJ5,'PERF 50m'!$B$5:$D$36,3,FALSE)","v":""},{"$f":"VLOOKUP(CK5,'PERF 50m'!$B$5:$D$36,3,FALSE)","v":""},{"$f":"VLOOKUP(CL5,'PERF 50m'!$B$5:$D$36,3,FALSE)","v":""},null,null,null,{"$f":"VLOOKUP(CP5,'PERF 50m'!$B$5:$D$36,3,FALSE)","v":""},{"$f":"VLOOKUP(CQ5,'PERF 50m'!$B$5:$D$36,3,FALSE)","v":""},{"$f":"VLOOKUP(CR5,'PERF 50m'!$B$5:$D$36,3,FALSE)","v":""},{"$f":"VLOOKUP(CS5,'PERF 50m'!$B$5:$D$36,3,FALSE)","v":""}]
[null,null,null,null,"Somme théorique des 4x50m",null,{"$f":"SUM(C6:F6)","v":23.2},null,null,null,null,"Somme théorique des 4x50m",null,{"$f":"SUM(J6:M6)","v":0},null,null,null,null,"Somme théorique des 4x50m",null,{"$f":"SUM(Q6:T6)","v":0},null,null,null,null,"Somme théorique des 4x50m",null,{"$f":"SUM(X6:AA6)","v":0},null,null,null,null,"Somme théorique des 4x50m",null,{"$f":"SUM(AE6:AH6)","v":0},null,null,null,null,"Somme théorique des 4x50m",null,{"$f":"SUM(AL6:AO6)","v":0},null,null,null,null,"Somme théorique des 4x50m",null,{"$f":"SUM(AS6:AV6)","v":0},null,null,null,null,"Somme théorique des 4x50m",null,{"$f":"SUM(AZ6:BC6)","v":0},null,null,null,null,"Somme théorique des 4x50m",null,{"$f":"SUM(BG6:BJ6)","v":0},null,null,null,null,"Somme théorique des 4x50m",null,{"$f":"SUM(BN6:BQ6)","v":0},null,null,null,null,"Somme théorique des 4x50m",null,{"$f":"SUM(BU6:BX6)","v":0},null,null,null,null,"Somme théorique des 4x50m",null,{"$f":"SUM(CB6:CE6)","v":0},null,null,null,null,"Somme théorique des 4x50m",null,{"$f":"SUM(CI6:CL6)","v":0},null,null,null,null,"Somme théorique des 4x50m",null,{"$f":"SUM(CP6:CS6)","v":0}]
[null,null,null,null,null,"Temps cumulés des 2 4x50m",{"$f":"SUM(G6:H6)","v":61.5},null,null,null,null,null,"Temps cumulés des 2 4x50m",{"$f":"SUM(N6:O6)","v":0},null,null,null,null,null,"Temps cumulés des 2 4x50m",{"$f":"SUM(U6:V6)","v":0},null,null,null,null,null,"Temps cumulés des 2 4x50m",{"$f":"SUM(AB6:AC6)","v":0},null,null,null,null,null,"Temps cumulés des 2 4x50m",{"$f":"SUM(AI6:AJ6)","v":0},null,null,null,null,null,"Temps cumulés des 2 4x50m",{"$f":"SUM(AP6:AQ6)","v":0},null,null,null,null,null,"Temps cumulés des 2 4x50m",{"$f":"SUM(AW6:AX6)","v":0},null,null,null,null,null,"Temps cumulés des 2 4x50m",{"$f":"SUM(BD6:BE6)","v":0},null,null,null,null,null,"Temps cumulés des 2 4x50m",{"$f":"SUM(BK6:BL6)","v":0},null,null,null,null,null,"Temps cumulés des 2 4x50m",{"$f":"SUM(BR6:BS6)","v":0},null,null,null,null,null,"Temps cumulés des 2 4x50m",{"$f":"SUM(BY6:BZ6)","v":0},null,null,null,null,null,"Temps cumulés des 2 4x50m",{"$f":"SUM(CF6:CG6)","v":0},null,null,null,null,null,"Temps cumulés des 2 4x50m",{"$f":"SUM(CM6:CN6)","v":0},null,null,null,null,null,"Temps cumulés des 2 4x50m",{"$f":"SUM(CT6:CU6)","v":0}]
[null,null,null,null,"Indice de transmission",null,{"$f":"G6-G7","v":-1},{"$f":"H6-G7","v":16.099999999999998},{"$f":"SMALL(G9:H9,1)","v":-1},null,null,"Indice de transmission",null,{"$f":"N6-N7","v":0},{"$f":"O6-N7","v":0},{"$f":"SMALL(N9:O9,1)","v":0},null,null,"Indice de transmission",null,{"$f":"U6-U7","v":0},{"$f":"V6-U7","v":0},{"$f":"SMALL(U9:V9,1)","v":0},null,null,"Indice de transmission",null,{"$f":"AB6-AB7","v":0},{"$f":"AC6-AB7","v":0},{"$f":"SMALL(AB9:AC9,1)","v":0},null,null,"Indice de transmission",null,{"$f":"AI6-AI7","v":0},{"$f":"AJ6-AI7","v":0},{"$f":"SMALL(AI9:AJ9,1)","v":0},null,null,"Indice de transmission",null,{"$f":"AP6-AP7","v":0},{"$f":"AQ6-AP7","v":0},{"$f":"SMALL(AP9:AQ9,1)","v":0},null,null,"Indice de transmission",null,{"$f":"AW6-AW7","v":0},{"$f":"AX6-AW7","v":0},{"$f":"SMALL(AW9:AX9,1)","v":0},null,null,"Indice de transmission",null,{"$f":"BD6-BD7","v":0},{"$f":"BE6-BD7","v":0},{"$f":"SMALL(BD9:BE9,1)","v":0},null,null,"Indice de transmission",null,{"$f":"BK6-BK7","v":0},{"$f":"BL6-BK7","v":0},{"$f":"SMALL(BK9:BL9,1)","v":0},null,null,"Indice de transmission",null,{"$f":"BR6-BR7","v":0},{"$f":"BS6-BR7","v":0},{"$f":"SMALL(BR9:BS9,1)","v":0},null,null,"Indice de transmission",null,{"$f":"BY6-BY7","v":0},{"$f":"BZ6-BY7","v":0},{"$f":"SMALL(BY9:BZ9,1)","v":0},null,null,"Indice de transmission",null,{"$f":"CF6-CF7","v":0},{"$f":"CG6-CF7","v":0},{"$f":"SMALL(CF9:CG9,1)","v":0},null,null,"Indice de transmission",null,{"$f":"CM6-CM7","v":0},{"$f":"CN6-CM7","v":0},{"$f":"SMALL(CM9:CN9,1)","v":0},null,null,"Indice de transmission",null,{"$f":"CT6-CT7","v":0},{"$f":"CU6-CT7","v":0},{"$f":"SMALL(CT9:CU9,1)","v":0}]
[null,"Transmission valide","Chaque coureur concerné par trois charnières de relais réalise trois transmissions valides"]
[null,"Préparation et récupération après effort","Echauffement léger, étirements légers ou inexistants, pas ou peu de vérification de marques. Pas de récupération après les efforts."]
[]
[null,"Note de perf collective /5",{"$f":"IF(AND(G2=DEBUT!$F$5,H2=DEBUT!$B$6),VLOOKUP(G8,DEBUT!$P$5:$R$111,3,1),IF(AND(G2=DEBUT!$F$6,H2=DEBUT!$B$6),VLOOKUP(G8,DEBUT!$AQ$5:$AS$74,3,1),IF(AND(G2=DEBUT!$F$5,H2=DEBUT!$B$5),VLOOKUP(G8,DEBUT!$Q$5:$R$111,2,1),IF(AND(G2=DEBUT!$F$6,H2=DEBUT!$B$5),VLOOKUP(G8,DEBUT!$AR$5:$AS$74,2,1)))))","v":5},null,null,null,null,null,null,{"$f":"IF(AND(N2=DEBUT!$F$5,O2=DEBUT!$B$6),VLOOKUP(N8,DEBUT!$P$5:$R$111,3,1),IF(AND(N2=DEBUT!$F$6,O2=DEBUT!$B$6),VLOOKUP(N8,DEBUT!$AQ$5:$AS$74,3,1),IF(AND(N2=DEBUT!$F$5,O2=DEBUT!$B$5),VLOOKUP(N8,DEBUT!$Q$5:$R$111,2,1),IF(AND(N2=DEBUT!$F$6,O2=DEBUT!$B$5),VLOOKUP(N8,DEBUT!$AR$5:$AS$74,2,1)))))","v":{"$error":"#N/A"}},null,null,null,null,null,null,{"$f":"IF(AND(U2=DEBUT!$F$5,V2=DEBUT!$B$6),VLOOKUP(U8,DEBUT!$P$5:$R$111,3,1),IF(AND(U2=DEBUT!$F$6,V2=DEBUT!$B$6),VLOOKUP(U8,DEBUT!$AQ$5:$AS$74,3,1),IF(AND(U2=DEBUT!$F$5,V2=DEBUT!$B$5),VLOOKUP(U8,DEBUT!$Q$5:$R$111,2,1),IF(AND(U2=DEBUT!$F$6,V2=DEBUT!$B$5),VLOOKUP(U8,DEBUT!$AR$5:$AS$74,2,1)))))","v":{"$error":"#N/A"}},null,null,null,null,null,null,{"$f":"IF(AND(AB2=DEBUT!$F$5,AC2=DEBUT!$B$6),VLOOKUP(AB8,DEBUT!$P$5:$R$111,3,1),IF(AND(AB2=DEBUT!$F$6,AC2=DEBUT!$B$6),VLOOKUP(AB8,DEBUT!$AQ$5:$AS$74,3,1),IF(AND(AB2=DEBUT!$F$5,AC2=DEBUT!$B$5),VLOOKUP(AB8,DEBUT!$Q$5:$R$111,2,1),IF(AND(AB2=DEBUT!$F$6,AC2=DEBUT!$B$5),VLOOKUP(AB8,DEBUT!$AR$5:$AS$74,2,1)))))","v":{"$error":"#N/A"}},null,null,null,null,null,null,{"$f":"IF(AND(AI2=DEBUT!$F$5,AJ2=DEBUT!$B$6),VLOOKUP(AI8,DEBUT!$P$5:$R$111,3,1),IF(AND(AI2=DEBUT!$F$6,AJ2=DEBUT!$B$6),VLOOKUP(AI8,DEBUT!$AQ$5:$AS$74,3,1),IF(AND(AI2=DEBUT!$F$5,AJ2=DEBUT!$B$5),VLOOKUP(AI8,DEBUT!$Q$5:$R$111,2,1),IF(AND(AI2=DEBUT!$F$6,AJ2=DEBUT!$B$5),VLOOKUP(AI8,DEBUT!$AR$5:$AS$74,2,1)))))","v":{"$error":"#N/A"}},null,null,null,null,null,null,{"$f":"IF(AND(AP2=DEBUT!$F$5,AQ2=DEBUT!$B$6),VLOOKUP(AP8,DEBUT!$P$5:$R$111,3,1),IF(AND(AP2=DEBUT!$F$6,AQ2=DEBUT!$B$6),VLOOKUP(AP8,DEBUT!$AQ$5:$AS$74,3,1),IF(AND(AP2=DEBUT!$F$5,AQ2=DEBUT!$B$5),VLOOKUP(AP8,DEBUT!$Q$5:$R$111,2,1),IF(AND(AP2=DEBUT!$F$6,AQ2=DEBUT!$B$5),VLOOKUP(AP8,DEBUT!$AR$5:$AS$74,2,1)))))","v":{"$error":"#N/A"}},null,null,null,null,null,null,{"$f":"IF(AND(AW2=DEBUT!$F$5,AX2=DEBUT!$B$6),VLOOKUP(AW8,DEBUT!$P$5:$R$111,3,1),IF(AND(AW2=DEBUT!$F$6,AX2=DEBUT!$B$6),VLOOKUP(AW8,DEBUT!$AQ$5:$AS$74,3,1),IF(AND(AW2=DEBUT!$F$5,AX2=DEBUT!$B$5),VLOOKUP(AW8,DEBUT!$Q$5:$R$111,2,1),IF(AND(AW2=DEBUT!$F$6,AX2=DEBUT!$B$5),VLOOKUP(AW8,DEBUT!$AR$5:$AS$74,2,1)))))","v":{"$error":"#N/A"}},null,null,null,null,null,null,{"$f":"IF(AND(BD2=DEBUT!$F$5,BE2=DEBUT!$B$6),VLOOKUP(BD8,DEBUT!$P$5:$R$111,3,1),IF(AND(BD2=DEBUT!$F$6,BE2=DEBUT!$B$6),VLOOKUP(BD8,DEBUT!$AQ$5:$AS$74,3,1),IF(AND(BD2=DEBUT!$F$5,BE2=DEBUT!$B$5),VLOOKUP(BD8,DEBUT!$Q$5:$R$111,2,1),IF(AND(BD2=DEBUT!$F$6,BE2=DEBUT!$B$5),VLOOKUP(BD8,DEBUT!$AR$5:$AS$74,2,1)))))","v":{"$error":"#N/A"}},null,null,null,null,null,null,{"$f":"IF(AND(BK2=DEBUT!$F$5,BL2=DEBUT!$B$6),VLOOKUP(BK8,DEBUT!$P$5:$R$111,3,1),IF(AND(BK2=DEBUT!$F$6,BL2=DEBUT!$B$6),VLOOKUP(BK8,DEBUT!$AQ$5:$AS$74,3,1),IF(AND(BK2=DEBUT!$F$5,BL2=DEBUT!$B$5),VLOOKUP(BK8,DEBUT!$Q$5:$R$111,2,1),IF(AND(BK2=DEBUT!$F$6,BL2=DEBUT!$B$5),VLOOKUP(BK8,DEBUT!$AR$5:$AS$74,2,1)))))","v":{"$error":"#N/A"}},null,null,null,null,null,null,{"$f":"IF(AND(BR2=DEBUT!$F$5,BS2=DEBUT!$B$6),VLOOKUP(BR8,DEBUT!$P$5:$R$111,3,1),IF(AND(BR2=DEBUT!$F$6,BS2=DEBUT!$B$6),VLOOKUP(BR8,DEBUT!$AQ$5:$AS$74,3,1),IF(AND(BR2=DEBUT!$F$5,BS2=DEBUT!$B$5),VLOOKUP(BR8,DEBUT!$Q$5:$R$111,2,1),IF(AND(BR2=DEBUT!$F$6,BS2=DEBUT!$B$5),VLOOKUP(BR8,DEBUT!$AR$5:$AS$74,2,1)))))","v":{"$error":"#N/A"}},null,null,null,null,null,null,{"$f":"IF(AND(BY2=DEBUT!$F$5,BZ2=DEBUT!$B$6),VLOOKUP(BY8,DEBUT!$P$5:$R$111,3,1),IF(AND(BY2=DEBUT!$F$6,BZ2=DEBUT!$B$6),VLOOKUP(BY8,DEBUT!$AQ$5:$AS$74,3,1),IF(AND(BY2=DEBUT!$F$5,BZ2=DEBUT!$B$5),VLOOKUP(BY8,DEBUT!$Q$5:$R$111,2,1),IF(AND(BY2=DEBUT!$F$6,BZ2=DEBUT!$B$5),VLOOKUP(BY8,DEBUT!$AR$5:$AS$74,2,1)))))","v":{"$error":"#N/A"}},null,null,null,null,null,null,{"$f":"IF(AND(CF2=DEBUT!$F$5,CG2=DEBUT!$B$6),VLOOKUP(CF8,DEBUT!$P$5:$R$111,3,1),IF(AND(CF2=DEBUT!$F$6,CG2=DEBUT!$B$6),VLOOKUP(CF8,DEBUT!$AQ$5:$AS$74,3,1),IF(AND(CF2=DEBUT!$F$5,CG2=DEBUT!$B$5),VLOOKUP(CF8,DEBUT!$Q$5:$R$111,2,1),IF(AND(CF2=DEBUT!$F$6,CG2=DEBUT!$B$5),VLOOKUP(CF8,DEBUT!$AR$5:$AS$74,2,1)))))","v":{"$error":"#N/A"}},null,null,null,null,null,null,{"$f":"IF(AND(CM2=DEBUT!$F$5,CN2=DEBUT!$B$6),VLOOKUP(CM8,DEBUT!$P$5:$R$111,3,1),IF(AND(CM2=DEBUT!$F$6,CN2=DEBUT!$B$6),VLOOKUP(CM8,DEBUT!$AQ$5:$AS$74,3,1),IF(AND(CM2=DEBUT!$F$5,CN2=DEBUT!$B$5),VLOOKUP(CM8,DEBUT!$Q$5:$R$111,2,1),IF(AND(CM2=DEBUT!$F$6,CN2=DEBUT!$B$5),VLOOKUP(CM8,DEBUT!$AR$5:$AS$74,2,1)))))","v":{"$error":"#N/A"}},null,null,null,null,null,null,{"$f":"IF(AND(CT2=DEBUT!$F$5,CU2=DEBUT!$B$6),VLOOKUP(CT8,DEBUT!$P$5:$R$111,3,1),IF(AND(CT2=DEBUT!$F$6,CU2=DEBUT!$B$6),VLOOKUP(CT8,DEBUT!$AQ$5:$AS$74,3,1),IF(AND(CT2=DEBUT!$F$5,CU2=DEBUT!$B$5),VLOOKUP(CT8,DEBUT!$Q$5:$R$111,2,1),IF(AND(CT2=DEBUT!$F$6,CU2=DEBUT!$B$5),VLOOKUP(CT8,DEBUT!$AR$5:$AS$74,2,1)))))","v":{"$error":"#N/A"}}]
[null,"Indice de transmission /5",{"$f":"IF(G2=DEBUT!$F$5,VLOOKUP(I9,DEBUT!$L$5:$M$67,2,TRUE),VLOOKUP(I9,DEBUT!$AM$5:$AN$39,2,TRUE))","v":2.5},null,null,null,null,null,null,{"$f":"IF(N2=DEBUT!$F$5,VLOOKUP(P9,DEBUT!$L$5:$M$67,2,TRUE),VLOOKUP(P9,DEBUT!$AM$5:$AN$39,2,TRUE))","v":1.5},null,null,null,null,null,null,{"$f":"IF(U2=DEBUT!$F$5,VLOOKUP(W9,DEBUT!$L$5:$M$67,2,TRUE),VLOOKUP(W9,DEBUT!$AM$5:$AN$39,2,TRUE))","v":1.5},null,null,null,null,null,null,{"$f":"IF(AB2=DEBUT!$F$5,VLOOKUP(AD9,DEBUT!$L$5:$M$67,2,TRUE),VLOOKUP(AD9,DEBUT!$AM$5:$AN$39,2,TRUE))","v":1.5},null,null,null,null,null,null,{"$f":"IF(AI2=DEBUT!$F$5,VLOOKUP(AK9,DEBUT!$L$5:$M$67,2,TRUE),VLOOKUP(AK9,DEBUT!$AM$5:$AN$39,2,TRUE))","v":1.5},null,null,null,null,null,null,{"$f":"IF(AP2=DEBUT!$F$5,VLOOKUP(AR9,DEBUT!$L$5:$M$67,2,TRUE),VLOOKUP(AR9,DEBUT!$AM$5:$AN$39,2,TRUE))","v":1.5},null,null,null,null,null,null,{"$f":"IF(AW2=DEBUT!$F$5,VLOOKUP(AY9,DEBUT!$L$5:$M$67,2,TRUE),VLOOKUP(AY9,DEBUT!$AM$5:$AN$39,2,TRUE))","v":1.5},null,null,null,null,null,null,{"$f":"IF(BD2=DEBUT!$F$5,VLOOKUP(BF9,DEBUT!$L$5:$M$67,2,TRUE),VLOOKUP(BF9,DEBUT!$AM$5:$AN$39,2,TRUE))","v":1.5},null,null,null,null,null,null,{"$f":"IF(BK2=DEBUT!$F$5,VLOOKUP(BM9,DEBUT!$L$5:$M$67,2,TRUE),VLOOKUP(BM9,DEBUT!$AM$5:$AN$39,2,TRUE))","v":1.5},null,null,null,null,null,null,{"$f":"IF(BR2=DEBUT!$F$5,VLOOKUP(BT9,DEBUT!$L$5:$M$67,2,TRUE),VLOOKUP(BT9,DEBUT!$AM$5:$AN$39,2,TRUE))","v":1.5},null,null,null,null,null,null,{"$f":"IF(BY2=DEBUT!$F$5,VLOOKUP(CA9,DEBUT!$L$5:$M$67,2,TRUE),VLOOKUP(CA9,DEBUT!$AM$5:$AN$39,2,TRUE))","v":1.5},null,null,null,null,null,null,{"$f":"IF(CF2=DEBUT!$F$5,VLOOKUP(CH9,DEBUT!$L$5:$M$67,2,TRUE),VLOOKUP(CH9,DEBUT!$AM$5:$AN$39,2,TRUE))","v":1.5},null,null,null,null,null,null,{"$f":"IF(CM2=DEBUT!$F$5,VLOOKUP(CO9,DEBUT!$L$5:$M$67,2,TRUE),VLOOKUP(CO9,DEBUT!$AM$5:$AN$39,2,TRUE))","v":1.5},null,null,null,null,null,null,{"$f":"IF(CT2=DEBUT!$F$5,VLOOKUP(CV9,DEBUT!$L$5:$M$67,2,TRUE),VLOOKUP(CV9,DEBUT!$AM$5:$AN$39,2,TRUE))","v":1.5}]
[null,"Note de perf individuelle /5",{"$f":"IF(AND(G2=DEBUT!$F$5,H2=\"G\"),VLOOKUP(C6,DEBUT!$H$5:$J$99,3,1),IF(AND(G2=DEBUT!$F$6,H2=\"G\"),VLOOKUP(C6,DEBUT!$AI$5:$AK$70,3,1),IF(AND(G2=DEBUT!$F$5,H2=\"F\"),VLOOKUP(C6,DEBUT!$I$5:$J$99,2,1),IF(AND(G2=DEBUT!$F$6,H2=\"F\"),VLOOKUP(C6,DEBUT!$AJ$5:$AK$70,2,1)))))","v":5},{"$f":"IF(AND(G2=DEBUT!$F$5,H2=\"G\"),VLOOKUP(D6,DEBUT!$H$5:$J$99,3,1),IF(AND(G2=DEBUT!$F$6,H2=\"G\"),VLOOKUP(D6,DEBUT!$AI$5:$AK$70,3,1),IF(AND(G2=DEBUT!$F$5,H2=\"F\"),VLOOKUP(D6,DEBUT!$I$5:$J$99,2,1),IF(AND(G2=DEBUT!$F$6,H2=\"F\"),VLOOKUP(D6,DEBUT!$AJ$5:$AK$70,2,1)))))","v":5},{"$f":"IF(AND(G2=DEBUT!$F$5,H2=\"G\"),VLOOKUP(E6,DEBUT!$H$5:$J$99,3,1),IF(AND(G2=DEBUT!$F$6,H2=\"G\"),VLOOKUP(E6,DEBUT!$AI$5:$AK$70,3,1),IF(AND(G2=DEBUT!$F$5,H2=\"F\"),VLOOKUP(E6,DEBUT!$I$5:$J$99,2,1),IF(AND(G2=DEBUT!$F$6,H2=\"F\"),VLOOKUP(E6,DEBUT!$AJ$5:$AK$70,2,1)))))","v":5},{"$f":"IF(AND(G2=DEBUT!$F$5,H2=\"G\"),VLOOKUP(F6,DEBUT!$H$5:$J$99,3,1),IF(AND(G2=DEBUT!$F$6,H2=\"G\"),VLOOKUP(F6,DEBUT!$AI$5:$AK$70,3,1),IF(AND(G2=DEBUT!$F$5,H2=\"F\"),VLOOKUP(F6,DEBUT!$I$5:$J$99,2,1),IF(AND(G2=DEBUT!$F$6,H2=\"F\"),VLOOKUP(F6,DEBUT!$AJ$5:$AK$70,2,1)))))","v":5},null,null,null,{"$f":"IF(AND(N2=DEBUT!$F$5,O2=\"G\"),VLOOKUP(J6,DEBUT!$H$5:$J$99,3,1),IF(AND(N2=DEBUT!$F$6,O2=\"G\"),VLOOKUP(J6,DEBUT!$AI$5:$AK$70,3,1),IF(AND(N2=DEBUT!$F$5,O2=\"F\"),VLOOKUP(J6,DEBUT!$I$5:$J$99,2,1),IF(AND(N2=DEBUT!$F$6,O2=\"F\"),VLOOKUP(J6,DEBUT!$AJ$5:$AK$70,2,1)))))","v":{"$error":"#N/A"}},{"$f":"IF(AND(N2=DEBUT!$F$5,O2=\"G\"),VLOOKUP(K6,DEBUT!$H$5:$J$99,3,1),IF(AND(N2=DEBUT!$F$6,O2=\"G\"),VLOOKUP(K6,DEBUT!$AI$5:$AK$70,3,1),IF(AND(N2=DEBUT!$F$5,O2=\"F\"),VLOOKUP(K6,DEBUT!$I$5:$J$99,2,1),IF(AND(N2=DEBUT!$F$6,O2=\"F\"),VLOOKUP(K6,DEBUT!$AJ$5:$AK$70,2,1)))))","v":{"$error":"#N/A"}},{"$f":"IF(AND(N2=DEBUT!$F$5,O2=\"G\"),VLOOKUP(L6,DEBUT!$H$5:$J$99,3,1),IF(AND(N2=DEBUT!$F$6,O2=\"G\"),VLOOKUP(L6,DEBUT!$AI$5:$AK$70,3,1),IF(AND(N2=DEBUT!$F$5,O2=\"F\"),VLOOKUP(L6,DEBUT!$I$5:$J$99,2,1),IF(AND(N2=DEBUT!$F$6,O2=\"F\"),VLOOKUP(L6,DEBUT!$AJ$5:$AK$70,2,1)))))","v":{"$error":"#N/A"}},{"$f":"IF(AND(N2=DEBUT!$F$5,O2=\"G\"),VLOOKUP(M6,DEBUT!$H$5:$J$99,3,1),IF(AND(N2=DEBUT!$F$6,O2=\"G\"),VLOOKUP(M6,DEBUT!$AI$5:$AK$70,3,1),IF(AND(N2=DEBUT!$F$5,O2=\"F\"),VLOOKUP(M6,DEBUT!$I$5:$J$99,2,1),IF(AND(N2=DEBUT!$F$6,O2=\"F\"),VLOOKUP(M6,DEBUT!$AJ$5:$AK$70,2,1)))))","v":{"$error":"#N/A"}},null,null,null,{"$f":"IF(AND(U2=DEBUT!$F$5,V2=\"G\"),VLOOKUP(Q6,DEBUT!$H$5:$J$99,3,1),IF(AND(U2=DEBUT!$F$6,V2=\"G\"),VLOOKUP(Q6,DEBUT!$AI$5:$AK$70,3,1),IF(AND(U2=DEBUT!$F$5,V2=\"F\"),VLOOKUP(Q6,DEBUT!$I$5:$J$99,2,1),IF(AND(U2=DEBUT!$F$6,V2=\"F\"),VLOOKUP(Q6,DEBUT!$AJ$5:$AK$70,2,1)))))","v":{"$error":"#N/A"}},{"$f":"IF(AND(U2=DEBUT!$F$5,V2=\"G\"),VLOOKUP(R6,DEBUT!$H$5:$J$99,3,1),IF(AND(U2=DEBUT!$F$6,V2=\"G\"),VLOOKUP(R6,DEBUT!$AI$5:$AK$70,3,1),IF(AND(U2=DEBUT!$F$5,V2=\"F\"),VLOOKUP(R6,DEBUT!$I$5:$J$99,2,1),IF(AND(U2=DEBUT!$F$6,V2=\"F\"),VLOOKUP(R6,DEBUT!$AJ$5:$AK$70,2,1)))))","v":{"$error":"#N/A"}},{"$f":"IF(AND(U2=DEBUT!$F$5,V2=\"G\"),VLOOKUP(S6,DEBUT!$H$5:$J$99,3,1),IF(AND(U2=DEBUT!$F$6,V2=\"G\"),VLOOKUP(S6,DEBUT!$AI$5:$AK$70,3,1),IF(AND(U2=DEBUT!$F$5,V2=\"F\"),VLOOKUP(S6,DEBUT!$I$5:$J$99,2,1),IF(AND(U2=DEBUT!$F$6,V2=\"F\"),VLOOKUP(S6,DEBUT!$AJ$5:$AK$70,2,1)))))","v":{"$error":"#N/A"}},{"$f":"IF(AND(U2=DEBUT!$F$5,V2=\"G\"),VLOOKUP(T6,DEBUT!$H$5:$J$99,3,1),IF(AND(U2=DEBUT!$F$6,V2=\"G\"),VLOOKUP(T6,DEBUT!$AI$5:$AK$70,3,1),IF(AND(U2=DEBUT!$F$5,V2=\"F\"),VLOOKUP(T6,DEBUT!$I$5:$J$99,2,1),IF(AND(U2=DEBUT!$F$6,V2=\"F\"),VLOOKUP(T6,DEBUT!$AJ$5:$AK$70,2,1)))))","v":{"$error":"#N/A"}},null,null,null,{"$f":"IF(AND(AB2=DEBUT!$F$5,AC2=\"G\"),VLOOKUP(X6,DEBUT!$H$5:$J$99,3,1),IF(AND(AB2=DEBUT!$F$6,AC2=\"G\"),VLOOKUP(X6,DEBUT!$AI$5:$AK$70,3,1),IF(AND(AB2=DEBUT!$F$5,AC2=\"F\"),VLOOKUP(X6,DEBUT!$I$5:$J$99,2,1),IF(AND(AB2=DEBUT!$F$6,AC2=\"F\"),VLOOKUP(X6,DEBUT!$AJ$5:$AK$70,2,1)))))","v":{"$error":"#N/A"}},{"$f":"IF(AND(AB2=DEBUT!$F$5,AC2=\"G\"),VLOOKUP(Y6,DEBUT!$H$5:$J$99,3,1),IF(AND(AB2=DEBUT!$F$6,AC2=\"G\"),VLOOKUP(Y6,DEBUT!$AI$5:$AK$70,3,1),IF(AND(AB2=DEBUT!$F$5,AC2=\"F\"),VLOOKUP(Y6,DEBUT!$I$5:$J$99,2,1),IF(AND(AB2=DEBUT!$F$6,AC2=\"F\"),VLOOKUP(Y6,DEBUT!$AJ$5:$AK$70,2,1)))))","v":{"$error":"#N/A"}},{"$f":"IF(AND(AB2=DEBUT!$F$5,AC2=\"G\"),VLOOKUP(Z6,DEBUT!$H$5:$J$99,3,1),IF(AND(AB2=DEBUT!$F$6,AC2=\"G\"),VLOOKUP(Z6,DEBUT!$AI$5:$AK$70,3,1),IF(AND(AB2=DEBUT!$F$5,AC2=\"F\"),VLOOKUP(Z6,DEBUT!$I$5:$J$99,2,1),IF(AND(AB2=DEBUT!$F$6,AC2=\"F\"),VLOOKUP(Z6,DEBUT!$AJ$5:$AK$70,2,1)))))","v":{"$error":"#N/A"}},{"$f":"IF(AND(AB2=DEBUT!$F$5,AC2=\"G\"),VLOOKUP(AA6,DEBUT!$H$5:$J$99,3,1),IF(AND(AB2=DEBUT!$F$6,AC2=\"G\"),VLOOKUP(AA6,DEBUT!$AI$5:$AK$70,3,1),IF(AND(AB2=DEBUT!$F$5,AC2=\"F\"),VLOOKUP(AA6,DEBUT!$I$5:$J$99,2,1),IF(AND(AB2=DEBUT!$F$6,AC2=\"F\"),VLOOKUP(AA6,DEBUT!$AJ$5:$AK$70,2,1)))))","v":{"$error":"#N/A"}},null,null,null,{"$f":"IF(AND(AI2=DEBUT!$F$5,AJ2=\"G\"),VLOOKUP(AE6,DEBUT!$H$5:$J$99,3,1),IF(AND(AI2=DEBUT!$F$6,AJ2=\"G\"),VLOOKUP(AE6,DEBUT!$AI$5:$AK$70,3,1),IF(AND(AI2=DEBUT!$F$5,AJ2=\"F\"),VLOOKUP(AE6,DEBUT!$I$5:$J$99,2,1),IF(AND(AI2=DEBUT!$F$6,AJ2=\"F\"),VLOOKUP(AE6,DEBUT!$AJ$5:$AK$70,2,1)))))","v":{"$error":"#N/A"}},{"$f":"IF(AND(AI2=DEBUT!$F$5,AJ2=\"G\"),VLOOKUP(AF6,DEBUT!$H$5:$J$99,3,1),IF(AND(AI2=DEBUT!$F$6,AJ2=\"G\"),VLOOKUP(AF6,DEBUT!$AI$5:$AK$70,3,1),IF(AND(AI2=DEBUT!$F$5,AJ2=\"F\"),VLOOKUP(AF6,DEBUT!$I$5:$J$99,2,1),IF(AND(AI2=DEBUT!$F$6,AJ2=\"F\"),VLOOKUP(AF6,DEBUT!$AJ$5:$AK$70,2,1)))))","v":{"$error":"#N/A"}},{"$f":"IF(AND(AI2=DEBUT!$F$5,AJ2=\"G\"),VLOOKUP(AG6,DEBUT!$H$5:$J$99,3,1),IF(AND(AI2=DEBUT!$F$6,AJ2=\"G\"),VLOOKUP(AG6,DEBUT!$AI$5:$AK$70,3,1),IF(AND(AI2=DEBUT!$F$5,AJ2=\"F\"),VLOOKUP(AG6,DEBUT!$I$5:$J$99,2,1),IF(AND(AI2=DEBUT!$F$6,AJ2=\"F\"),VLOOKUP(AG6,DEBUT!$AJ$5:$AK$70,2,1)))))","v":{"$error":"#N/A"}},{"$f":"IF(AND(AI2=DEBUT!$F$5,AJ2=\"G\"),VLOOKUP(AH6,DEBUT!$H$5:$J$99,3,1),IF(AND(AI2=DEBUT!$F$6,AJ2=\"G\"),VLOOKUP(AH6,DEBUT!$AI$5:$AK$70,3,1),IF(AND(AI2=DEBUT!$F$5,AJ2=\"F\"),VLOOKUP(AH6,DEBUT!$I$5:$J$99,2,1),IF(AND(AI2=DEBUT!$F$6,AJ2=\"F\"),VLOOKUP(AH6,DEBUT!$AJ$5:$AK$70,2,1)))))","v":{"$error":"#N/A"}},null,null,null,{"$f":"IF(AND(AP2=DEBUT!$F$5,AQ2=\"G\"),VLOOKUP(AL6,DEBUT!$H$5:$J$99,3,1),IF(AND(AP2=DEBUT!$F$6,AQ2=\"G\"),VLOOKUP(AL6,DEBUT!$AI$5:$AK$70,3,1),IF(AND(AP2=DEBUT!$F$5,AQ2=\"F\"),VLOOKUP(AL6,DEBUT!$I$5:$J$99,2,1),IF(AND(AP2=DEBUT!$F$6,AQ2=\"F\"),VLOOKUP(AL6,DEBUT!$AJ$5:$AK$70,2,1)))))","v":{"$error":"#N/A"}},{"$f":"IF(AND(AP2=DEBUT!$F$5,AQ2=\"G\"),VLOOKUP(AM6,DEBUT!$H$5:$J$99,3,1),IF(AND(AP2=DEBUT!$F$6,AQ2=\"G\"),VLOOKUP(AM6,DEBUT!$AI$5:$AK$70,3,1),IF(AND(AP2=DEBUT!$F$5,AQ2=\"F\"),VLOOKUP(AM6,DEBUT!$I$5:$J$99,2,1),IF(AND(AP2=DEBUT!$F$6,AQ2=\"F\"),VLOOKUP(AM6,DEBUT!$AJ$5:$AK$70,2,1)))))","v":{"$error":"#N/A"}},{"$f":"IF(AND(AP2=DEBUT!$F$5,AQ2=\"G\"),VLOOKUP(AN6,DEBUT!$H$5:$J$99,3,1),IF(AND(AP2=DEBUT!$F$6,AQ2=\"G\"),VLOOKUP(AN6,DEBUT!$AI$5:$AK$70,3,1),IF(AND(AP2=DEBUT!$F$5,AQ2=\"F\"),VLOOKUP(AN6,DEBUT!$I$5:$J$99,2,1),IF(AND(AP2=DEBUT!$F$6,AQ2=\"F\"),VLOOKUP(AN6,DEBUT!$AJ$5:$AK$70,2,1)))))","v":{"$error":"#N/A"}},{"$f":"IF(AND(AP2=DEBUT!$F$5,AQ2=\"G\"),VLOOKUP(AO6,DEBUT!$H$5:$J$99,3,1),IF(AND(AP2=DEBUT!$F$6,AQ2=\"G\"),VLOOKUP(AO6,DEBUT!$AI$5:$AK$70,3,1),IF(AND(AP2=DEBUT!$F$5,AQ2=\"F\"),VLOOKUP(AO6,DEBUT!$I$5:$J$99,2,1),IF(AND(AP2=DEBUT!$F$6,AQ2=\"F\"),VLOOKUP(AO6,DEBUT!$AJ$5:$AK$70,2,1)))))","v":{"$error":"#N/A"}},null,null,null,{"$f":"IF(AND(AW2=DEBUT!$F$5,AX2=\"G\"),VLOOKUP(AS6,DEBUT!$H$5:$J$99,3,1),IF(AND(AW2=DEBUT!$F$6,AX2=\"G\"),VLOOKUP(AS6,DEBUT!$AI$5:$AK$70,3,1),IF(AND(AW2=DEBUT!$F$5,AX2=\"F\"),VLOOKUP(AS6,DEBUT!$I$5:$J$99,2,1),IF(AND(AW2=DEBUT!$F$6,AX2=\"F\"),VLOOKUP(AS6,DEBUT!$AJ$5:$AK$70,2,1)))))","v":{"$error":"#N/A"}},{"$f":"IF(AND(AW2=DEBUT!$F$5,AX2=\"G\"),VLOOKUP(AT6,DEBUT!$H$5:$J$99,3,1),IF(AND(AW2=DEBUT!$F$6,AX2=\"G\"),VLOOKUP(AT6,DEBUT!$AI$5:$AK$70,3,1),IF(AND(AW2=DEBUT!$F$5,AX2=\"F\"),VLOOKUP(AT6,DEBUT!$I$5:$J$99,2,1),IF(AND(AW2=DEBUT!$F$6,AX2=\"F\"),VLOOKUP(AT6,DEBUT!$AJ$5:$AK$70,2,1)))))","v":{"$error":"#N/A"}},{"$f":"IF(AND(AW2=DEBUT!$F$5,AX2=\"G\"),VLOOKUP(AU6,DEBUT!$H$5:$J$99,3,1),IF(AND(AW2=DEBUT!$F$6,AX2=\"G\"),VLOOKUP(AU6,DEBUT!$AI$5:$AK$70,3,1),IF(AND(AW2=DEBUT!$F$5,AX2=\"F\"),VLOOKUP(AU6,DEBUT!$I$5:$J$99,2,1),IF(AND(AW2=DEBUT!$F$6,AX2=\"F\"),VLOOKUP(AU6,DEBUT!$AJ$5:$AK$70,2,1)))))","v":{"$error":"#N/A"}},{"$f":"IF(AND(AW2=DEBUT!$F$5,AX2=\"G\"),VLOOKUP(AV6,DEBUT!$H$5:$J$99,3,1),IF(AND(AW2=DEBUT!$F$6,AX2=\"G\"),VLOOKUP(AV6,DEBUT!$AI$5:$AK$70,3,1),IF(AND(AW2=DEBUT!$F$5,AX2=\"F\"),VLOOKUP(AV6,DEBUT!$I$5:$J$99,2,1),IF(AND(AW2=DEBUT!$F$6,AX2=\"F\"),VLOOKUP(AV6,DEBUT!$AJ$5:$AK$70,2,1)))))","v":{"$error":"#N/A"}},null,null,null,{"$f":"IF(AND(BD2=DEBUT!$F$5,BE2=\"G\"),VLOOKUP(AZ6,DEBUT!$H$5:$J$99,3,1),IF(AND(BD2=DEBUT!$F$6,BE2=\"G\"),VLOOKUP(AZ6,DEBUT!$AI$5:$AK$70,3,1),IF(AND(BD2=DEBUT!$F$5,BE2=\"F\"),VLOOKUP(AZ6,DEBUT!$I$5:$J$99,2,1),IF(AND(BD2=DEBUT!$F$6,BE2=\"F\"),VLOOKUP(AZ6,DEBUT!$AJ$5:$AK$70,2,1)))))","v":{"$error":"#N/A"}},{"$f":"IF(AND(BD2=DEBUT!$F$5,BE2=\"G\"),VLOOKUP(BA6,DEBUT!$H$5:$J$99,3,1),IF(AND(BD2=DEBUT!$F$6,BE2=\"G\"),VLOOKUP(BA6,DEBUT!$AI$5:$AK$70,3,1),IF(AND(BD2=DEBUT!$F$5,BE2=\"F\"),VLOOKUP(BA6,DEBUT!$I$5:$J$99,2,1),IF(AND(BD2=DEBUT!$F$6,BE2=\"F\"),VLOOKUP(BA6,DEBUT!$AJ$5:$AK$70,2,1)))))","v":{"$error":"#N/A"}},{"$f":"IF(AND(BD2=DEBUT!$F$5,BE2=\"G\"),VLOOKUP(BB6,DEBUT!$H$5:$J$99,3,1),IF(AND(BD2=DEBUT!$F$6,BE2=\"G\"),VLOOKUP(BB6,DEBUT!$AI$5:$AK$70,3,1),IF(AND(BD2=DEBUT!$F$5,BE2=\"F\"),VLOOKUP(BB6,DEBUT!$I$5:$J$99,2,1),IF(AND(BD2=DEBUT!$F$6,BE2=\"F\"),VLOOKUP(BB6,DEBUT!$AJ$5:$AK$70,2,1)))))","v":{"$error":"#N/A"}},{"$f":"IF(AND(BD2=DEBUT!$F$5,BE2=\"G\"),VLOOKUP(BC6,DEBUT!$H$5:$J$99,3,1),IF(AND(BD2=DEBUT!$F$6,BE2=\"G\"),VLOOKUP(BC6,DEBUT!$AI$5:$AK$70,3,1),IF(AND(BD2=DEBUT!$F$5,BE2=\"F\"),VLOOKUP(BC6,DEBUT!$I$5:$J$99,2,1),IF(AND(BD2=DEBUT!$F$6,BE2=\"F\"),VLOOKUP(BC6,DEBUT!$AJ$5:$AK$70,2,1)))))","v":{"$error":"#N/A"}},null,null,null,{"$f":"IF(AND(BK2=DEBUT!$F$5,BL2=\"G\"),VLOOKUP(BG6,DEBUT!$H$5:$J$99,3,1),IF(AND(BK2=DEBUT!$F$6,BL2=\"G\"),VLOOKUP(BG6,DEBUT!$AI$5:$AK$70,3,1),IF(AND(BK2=DEBUT!$F$5,BL2=\"F\"),VLOOKUP(BG6,DEBUT!$I$5:$J$99,2,1),IF(AND(BK2=DEBUT!$F$6,BL2=\"F\"),VLOOKUP(BG6,DEBUT!$AJ$5:$AK$70,2,1)))))","v":{"$error":"#N/A"}},{"$f":"IF(AND(BK2=DEBUT!$F$5,BL2=\"G\"),VLOOKUP(BH6,DEBUT!$H$5:$J$99,3,1),IF(AND(BK2=DEBUT!$F$6,BL2=\"G\"),VLOOKUP(BH6,DEBUT!$AI$5:$AK$70,3,1),IF(AND(BK2=DEBUT!$F$5,BL2=\"F\"),VLOOKUP(BH6,DEBUT!$I$5:$J$99,2,1),IF(AND(BK2=DEBUT!$F$6,BL2=\"F\"),VLOOKUP(BH6,DEBUT!$AJ$5:$AK$70,2,1)))))","v":{"$error":"#N/A"}},{"$f":"IF(AND(BK2=DEBUT!$F$5,BL2=\"G\"),VLOOKUP(BI6,DEBUT!$H$5:$J$99,3,1),IF(AND(BK2=DEBUT!$F$6,BL2=\"G\"),VLOOKUP(BI6,DEBUT!$AI$5:$AK$70,3,1),IF(AND(BK2=DEBUT!$F$5,BL2=\"F\"),VLOOKUP(BI6,DEBUT!$I$5:$J$99,2,1),IF(AND(BK2=DEBUT!$F$6,BL2=\"F\"),VLOOKUP(BI6,DEBUT!$AJ$5:$AK$70,2,1)))))","v":{"$error":"#N/A"}},{"$f":"IF(AND(BK2=DEBUT!$F$5,BL2=\"G\"),VLOOKUP(BJ6,DEBUT!$H$5:$J$99,3,1),IF(AND(BK2=DEBUT!$F$6,BL2=\"G\"),VLOOKUP(BJ6,DEBUT!$AI$5:$AK$70,3,1),IF(AND(BK2=DEBUT!$F$5,BL2=\"F\"),VLOOKUP(BJ6,DEBUT!$I$5:$J$99,2,1),IF(AND(BK2=DEBUT!$F$6,BL2=\"F\"),VLOOKUP(BJ6,DEBUT!$AJ$5:$AK$70,2,1)))))","v":{"$error":"#N/A"}},null,null,null,{"$f":"IF(AND(BR2=DEBUT!$F$5,BS2=\"G\"),VLOOKUP(BN6,DEBUT!$H$5:$J$99,3,1),IF(AND(BR2=DEBUT!$F$6,BS2=\"G\"),VLOOKUP(BN6,DEBUT!$AI$5:$AK$70,3,1),IF(AND(BR2=DEBUT!$F$5,BS2=\"F\"),VLOOKUP(BN6,DEBUT!$I$5:$J$99,2,1),IF(AND(BR2=DEBUT!$F$6,BS2=\"F\"),VLOOKUP(BN6,DEBUT!$AJ$5:$AK$70,2,1)))))","v":{"$error":"#N/A"}},{"$f":"IF(AND(BR2=DEBUT!$F$5,BS2=\"G\"),VLOOKUP(BO6,DEBUT!$H$5:$J$99,3,1),IF(AND(BR2=DEBUT!$F$6,BS2=\"G\"),VLOOKUP(BO6,DEBUT!$AI$5:$AK$70,3,1),IF(AND(BR2=DEBUT!$F$5,BS2=\"F\"),VLOOKUP(BO6,DEBUT!$I$5:$J$99,2,1),IF(AND(BR2=DEBUT!$F$6,BS2=\"F\"),VLOOKUP(BO6,DEBUT!$AJ$5:$AK$70,2,1)))))","v":{"$error":"#N/A"}},{"$f":"IF(AND(BR2=DEBUT!$F$5,BS2=\"G\"),VLOOKUP(BP6,DEBUT!$H$5:$J$99,3,1),IF(AND(BR2=DEBUT!$F$6,BS2=\"G\"),VLOOKUP(BP6,DEBUT!$AI$5:$AK$70,3,1),IF(AND(BR2=DEBUT!$F$5,BS2=\"F\"),VLOOKUP(BP6,DEBUT!$I$5:$J$99,2,1),IF(AND(BR2=DEBUT!$F$6,BS2=\"F\"),VLOOKUP(BP6,DEBUT!$AJ$5:$AK$70,2,1)))))","v":{"$error":"#N/A"}},{"$f":"IF(AND(BR2=DEBUT!$F$5,BS2=\"G\"),VLOOKUP(BQ6,DEBUT!$H$5:$J$99,3,1),IF(AND(BR2=DEBUT!$F$6,BS2=\"G\"),VLOOKUP(BQ6,DEBUT!$AI$5:$AK$70,3,1),IF(AND(BR2=DEBUT!$F$5,BS2=\"F\"),VLOOKUP(BQ6,DEBUT!$I$5:$J$99,2,1),IF(AND(BR2=DEBUT!$F$6,BS2=\"F\"),VLOOKUP(BQ6,DEBUT!$AJ$5:$AK$70,2,1)))))","v":{"$error":"#N/A"}},null,null,null,{"$f":"IF(AND(BY2=DEBUT!$F$5,BZ2=\"G\"),VLOOKUP(BU6,DEBUT!$H$5:$J$99,3,1),IF(AND(BY2=DEBUT!$F$6,BZ2=\"G\"),VLOOKUP(BU6,DEBUT!$AI$5:$AK$70,3,1),IF(AND(BY2=DEBUT!$F$5,BZ2=\"F\"),VLOOKUP(BU6,DEBUT!$I$5:$J$99,2,1),IF(AND(BY2=DEBUT!$F$6,BZ2=\"F\"),VLOOKUP(BU6,DEBUT!$AJ$5:$AK$70,2,1)))))","v":{"$error":"#N/A"}},{"$f":"IF(AND(BY2=DEBUT!$F$5,BZ2=\"G\"),VLOOKUP(BV6,DEBUT!$H$5:$J$99,3,1),IF(AND(BY2=DEBUT!$F$6,BZ2=\"G\"),VLOOKUP(BV6,DEBUT!$AI$5:$AK$70,3,1),IF(AND(BY2=DEBUT!$F$5,BZ2=\"F\"),VLOOKUP(BV6,DEBUT!$I$5:$J$99,2,1),IF(AND(BY2=DEBUT!$F$6,BZ2=\"F\"),VLOOKUP(BV6,DEBUT!$AJ$5:$AK$70,2,1)))))","v":{"$error":"#N/A"}},{"$f":"IF(AND(BY2=DEBUT!$F$5,BZ2=\"G\"),VLOOKUP(BW6,DEBUT!$H$5:$J$99,3,1),IF(AND(BY2=DEBUT!$F$6,BZ2=\"G\"),VLOOKUP(BW6,DEBUT!$AI$5:$AK$70,3,1),IF(AND(BY2=DEBUT!$F$5,BZ2=\"F\"),VLOOKUP(BW6,DEBUT!$I$5:$J$99,2,1),IF(AND(BY2=DEBUT!$F$6,BZ2=\"F\"),VLOOKUP(BW6,DEBUT!$AJ$5:$AK$70,2,1)))))","v":{"$error":"#N/A"}},{"$f":"IF(AND(BY2=DEBUT!$F$5,BZ2=\"G\"),VLOOKUP(BX6,DEBUT!$H$5:$J$99,3,1),IF(AND(BY2=DEBUT!$F$6,BZ2=\"G\"),VLOOKUP(BX6,DEBUT!$AI$5:$AK$70,3,1),IF(AND(BY2=DEBUT!$F$5,BZ2=\"F\"),VLOOKUP(BX6,DEBUT!$I$5:$J$99,2,1),IF(AND(BY2=DEBUT!$F$6,BZ2=\"F\"),VLOOKUP(BX6,DEBUT!$AJ$5:$AK$70,2,1)))))","v":{"$error":"#N/A"}},null,null,null,{"$f":"IF(AND(CF2=DEBUT!$F$5,CG2=\"G\"),VLOOKUP(CB6,DEBUT!$H$5:$J$99,3,1),IF(AND(CF2=DEBUT!$F$6,CG2=\"G\"),VLOOKUP(CB6,DEBUT!$AI$5:$AK$70,3,1),IF(AND(CF2=DEBUT!$F$5,CG2=\"F\"),VLOOKUP(CB6,DEBUT!$I$5:$J$99,2,1),IF(AND(CF2=DEBUT!$F$6,CG2=\"F\"),VLOOKUP(CB6,DEBUT!$AJ$5:$AK$70,2,1)))))","v":{"$error":"#N/A"}},{"$f":"IF(AND(CF2=DEBUT!$F$5,CG2=\"G\"),VLOOKUP(CC6,DEBUT!$H$5:$J$99,3,1),IF(AND(CF2=DEBUT!$F$6,CG2=\"G\"),VLOOKUP(CC6,DEBUT!$AI$5:$AK$70,3,1),IF(AND(CF2=DEBUT!$F$5,CG2=\"F\"),VLOOKUP(CC6,DEBUT!$I$5:$J$99,2,1),IF(AND(CF2=DEBUT!$F$6,CG2=\"F\"),VLOOKUP(CC6,DEBUT!$AJ$5:$AK$70,2,1)))))","v":{"$error":"#N/A"}},{"$f":"IF(AND(CF2=DEBUT!$F$5,CG2=\"G\"),VLOOKUP(CD6,DEBUT!$H$5:$J$99,3,1),IF(AND(CF2=DEBUT!$F$6,CG2=\"G\"),VLOOKUP(CD6,DEBUT!$AI$5:$AK$70,3,1),IF(AND(CF2=DEBUT!$F$5,CG2=\"F\"),VLOOKUP(CD6,DEBUT!$I$5:$J$99,2,1),IF(AND(CF2=DEBUT!$F$6,CG2=\"F\"),VLOOKUP(CD6,DEBUT!$AJ$5:$AK$70,2,1)))))","v":{"$error":"#N/A"}},{"$f":"IF(AND(CF2=DEBUT!$F$5,CG2=\"G\"),VLOOKUP(CE6,DEBUT!$H$5:$J$99,3,1),IF(AND(CF2=DEBUT!$F$6,CG2=\"G\"),VLOOKUP(CE6,DEBUT!$AI$5:$AK$70,3,1),IF(AND(CF2=DEBUT!$F$5,CG2=\"F\"),VLOOKUP(CE6,DEBUT!$I$5:$J$99,2,1),IF(AND(CF2=DEBUT!$F$6,CG2=\"F\"),VLOOKUP(CE6,DEBUT!$AJ$5:$AK$70,2,1)))))","v":{"$error":"#N/A"}},null,null,null,{"$f":"IF(AND(CM2=DEBUT!$F$5,CN2=\"G\"),VLOOKUP(CI6,DEBUT!$H$5:$J$99,3,1),IF(AND(CM2=DEBUT!$F$6,CN2=\"G\"),VLOOKUP(CI6,DEBUT!$AI$5:$AK$70,3,1),IF(AND(CM2=DEBUT!$F$5,CN2=\"F\"),VLOOKUP(CI6,DEBUT!$I$5:$J$99,2,1),IF(AND(CM2=DEBUT!$F$6,CN2=\"F\"),VLOOKUP(CI6,DEBUT!$AJ$5:$AK$70,2,1)))))","v":{"$error":"#N/A"}},{"$f":"IF(AND(CM2=DEBUT!$F$5,CN2=\"G\"),VLOOKUP(CJ6,DEBUT!$H$5:$J$99,3,1),IF(AND(CM2=DEBUT!$F$6,CN2=\"G\"),VLOOKUP(CJ6,DEBUT!$AI$5:$AK$70,3,1),IF(AND(CM2=DEBUT!$F$5,CN2=\"F\"),VLOOKUP(CJ6,DEBUT!$I$5:$J$99,2,1),IF(AND(CM2=DEBUT!$F$6,CN2=\"F\"),VLOOKUP(CJ6,DEBUT!$AJ$5:$AK$70,2,1)))))","v":{"$error":"#N/A"}},{"$f":"IF(AND(CM2=DEBUT!$F$5,CN2=\"G\"),VLOOKUP(CK6,DEBUT!$H$5:$J$99,3,1),IF(AND(CM2=DEBUT!$F$6,CN2=\"G\"),VLOOKUP(CK6,DEBUT!$AI$5:$AK$70,3,1),IF(AND(CM2=DEBUT!$F$5,CN2=\"F\"),VLOOKUP(CK6,DEBUT!$I$5:$J$99,2,1),IF(AND(CM2=DEBUT!$F$6,CN2=\"F\"),VLOOKUP(CK6,DEBUT!$AJ$5:$AK$70,2,1)))))","v":{"$error":"#N/A"}},{"$f":"IF(AND(CM2=DEBUT!$F$5,CN2=\"G\"),VLOOKUP(CL6,DEBUT!$H$5:$J$99,3,1),IF(AND(CM2=DEBUT!$F$6,CN2=\"G\"),VLOOKUP(CL6,DEBUT!$AI$5:$AK$70,3,1),IF(AND(CM2=DEBUT!$F$5,CN2=\"F\"),VLOOKUP(CL6,DEBUT!$I$5:$J$99,2,1),IF(AND(CM2=DEBUT!$F$6,CN2=\"F\"),VLOOKUP(CL6,DEBUT!$AJ$5:$AK$70,2,1)))))","v":{"$error":"#N/A"}},null,null,null,{"$f":"IF(AND(CT2=DEBUT!$F$5,CU2=\"G\"),VLOOKUP(CP6,DEBUT!$H$5:$J$99,3,1),IF(AND(CT2=DEBUT!$F$6,CU2=\"G\"),VLOOKUP(CP6,DEBUT!$AI$5:$AK$70,3,1),IF(AND(CT2=DEBUT!$F$5,CU2=\"F\"),VLOOKUP(CP6,DEBUT!$I$5:$J$99,2,1),IF(AND(CT2=DEBUT!$F$6,CU2=\"F\"),VLOOKUP(CP6,DEBUT!$AJ$5:$AK$70,2,1)))))","v":{"$error":"#N/A"}},{"$f":"IF(AND(CT2=DEBUT!$F$5,CU2=\"G\"),VLOOKUP(CQ6,DEBUT!$H$5:$J$99,3,1),IF(AND(CT2=DEBUT!$F$6,CU2=\"G\"),VLOOKUP(CQ6,DEBUT!$AI$5:$AK$70,3,1),IF(AND(CT2=DEBUT!$F$5,CU2=\"F\"),VLOOKUP(CQ6,DEBUT!$I$5:$J$99,2,1),IF(AND(CT2=DEBUT!$F$6,CU2=\"F\"),VLOOKUP(CQ6,DEBUT!$AJ$5:$AK$70,2,1)))))","v":{"$error":"#N/A"}},{"$f":"IF(AND(CT2=DEBUT!$F$5,CU2=\"G\"),VLOOKUP(CR6,DEBUT!$H$5:$J$99,3,1),IF(AND(CT2=DEBUT!$F$6,CU2=\"G\"),VLOOKUP(CR6,DEBUT!$AI$5:$AK$70,3,1),IF(AND(CT2=DEBUT!$F$5,CU2=\"F\"),VLOOKUP(CR6,DEBUT!$I$5:$J$99,2,1),IF(AND(CT2=DEBUT!$F$6,CU2=\"F\"),VLOOKUP(CR6,DEBUT!$AJ$5:$AK$70,2,1)))))","v":{"$error":"#N/A"}},{"$f":"IF(AND(CT2=DEBUT!$F$5,CU2=\"G\"),VLOOKUP(CS6,DEBUT!$H$5:$J$99,3,1),IF(AND(CT2=DEBUT!$F$6,CU2=\"G\"),VLOOKUP(CS6,DEBUT!$AI$5:$AK$70,3,1),IF(AND(CT2=DEBUT!$F$5,CU2=\"F\"),VLOOKUP(CS6,DEBUT!$I$5:$J$99,2,1),IF(AND(CT2=DEBUT!$F$6,CU2=\"F\"),VLOOKUP(CS6,DEBUT!$AJ$5:$AK$70,2,1)))))","v":{"$error":"#N/A"}}]
[null,"Tranmission valide /2,5",{"$f":"IF(G2=DEBUT!$F$5,VLOOKUP(C10,DEBUT!$W$5:$X$22,2,FALSE),VLOOKUP(C10,DEBUT!$AX$5:$AY$19,2,FALSE))","v":2.5},{"$f":"IF(G2=DEBUT!$F$5,VLOOKUP(D10,DEBUT!$W$5:$X$22,2,FALSE),VLOOKUP(D10,DEBUT!$AX$5:$AY$19,2,FALSE))","v":{"$error":"#N/A"}},{"$f":"IF(G2=DEBUT!$F$5,VLOOKUP(E10,DEBUT!$W$5:$X$22,2,FALSE),VLOOKUP(E10,DEBUT!$AX$5:$AY$19,2,FALSE))","v":{"$error":"#N/A"}},{"$f":"IF(G2=DEBUT!$F$5,VLOOKUP(F10,DEBUT!$W$5:$X$22,2,FALSE),VLOOKUP(F10,DEBUT!$AX$5:$AY$19,2,FALSE))","v":{"$error":"#N/A"}},null,null,null,{"$f":"IF(N2=DEBUT!$F$5,VLOOKUP(J10,DEBUT!$W$5:$X$22,2,FALSE),VLOOKUP(J10,DEBUT!$AX$5:$AY$19,2,FALSE))","v":{"$error":"#N/A"}},{"$f":"IF(N2=DEBUT!$F$5,VLOOKUP(K10,DEBUT!$W$5:$X$22,2,FALSE),VLOOKUP(K10,DEBUT!$AX$5:$AY$19,2,FALSE))","v":{"$error":"#N/A"}},{"$f":"IF(N2=DEBUT!$F$5,VLOOKUP(L10,DEBUT!$W$5:$X$22,2,FALSE),VLOOKUP(L10,DEBUT!$AX$5:$AY$19,2,FALSE))","v":{"$error":"#N/A"}},{"$f":"IF(N2=DEBUT!$F$5,VLOOKUP(M10,DEBUT!$W$5:$X$22,2,FALSE),VLOOKUP(M10,DEBUT!$AX$5:$AY$19,2,FALSE))","v":{"$error":"#N/A"}},null,null,null,{"$f":"IF(U2=DEBUT!$F$5,VLOOKUP(Q10,DEBUT!$W$5:$X$22,2,FALSE),VLOOKUP(Q10,DEBUT!$AX$5:$AY$19,2,FALSE))","v":{"$error":"#N/A"}},{"$f":"IF(U2=DEBUT!$F$5,VLOOKUP(R10,DEBUT!$W$5:$X$22,2,FALSE),VLOOKUP(R10,DEBUT!$AX$5:$AY$19,2,FALSE))","v":{"$error":"#N/A"}},{"$f":"IF(U2=DEBUT!$F$5,VLOOKUP(S10,DEBUT!$W$5:$X$22,2,FALSE),VLOOKUP(S10,DEBUT!$AX$5:$AY$19,2,FALSE))","v":{"$error":"#N/A"}},{"$f":"IF(U2=DEBUT!$F$5,VLOOKUP(T10,DEBUT!$W$5:$X$22,2,FALSE),VLOOKUP(T10,DEBUT!$AX$5:$AY$19,2,FALSE))","v":{"$error":"#N/A"}},null,null,null,{"$f":"IF(AB2=DEBUT!$F$5,VLOOKUP(X10,DEBUT!$W$5:$X$22,2,FALSE),VLOOKUP(X10,DEBUT!$AX$5:$AY$19,2,FALSE))","v":{"$error":"#N/A"}},{"$f":"IF(AB2=DEBUT!$F$5,VLOOKUP(Y10,DEBUT!$W$5:$X$22,2,FALSE),VLOOKUP(Y10,DEBUT!$AX$5:$AY$19,2,FALSE))","v":{"$error":"#N/A"}},{"$f":"IF(AB2=DEBUT!$F$5,VLOOKUP(Z10,DEBUT!$W$5:$X$22,2,FALSE),VLOOKUP(Z10,DEBUT!$AX$5:$AY$19,2,FALSE))","v":{"$error":"#N/A"}},{"$f":"IF(AB2=DEBUT!$F$5,VLOOKUP(AA10,DEBUT!$W$5:$X$22,2,FALSE),VLOOKUP(AA10,DEBUT!$AX$5:$AY$19,2,FALSE))","v":{"$error":"#N/A"}},null,null,null,{"$f":"IF(AI2=DEBUT!$F$5,VLOOKUP(AE10,DEBUT!$W$5:$X$22,2,FALSE),VLOOKUP(AE10,DEBUT!$AX$5:$AY$19,2,FALSE))","v":{"$error":"#N/A"}},{"$f":"IF(AI2=DEBUT!$F$5,VLOOKUP(AF10,DEBUT!$W$5:$X$22,2,FALSE),VLOOKUP(AF10,DEBUT!$AX$5:$AY$19,2,FALSE))","v":{"$error":"#N/A"}},{"$f":"IF(AI2=DEBUT!$F$5,VLOOKUP(AG10,DEBUT!$W$5:$X$22,2,FALSE),VLOOKUP(AG10,DEBUT!$AX$5:$AY$19,2,FALSE))","v":{"$error":"#N/A"}},{"$f":"IF(AI2=DEBUT!$F$5,VLOOKUP(AH10,DEBUT!$W$5:$X$22,2,FALSE),VLOOKUP(AH10,DEBUT!$AX$5:$AY$19,2,FALSE))","v":{"$error":"#N/A"}},null,null,null,{"$f":"IF(AP2=DEBUT!$F$5,VLOOKUP(AL10,DEBUT!$W$5:$X$22,2,FALSE),VLOOKUP(AL10,DEBUT!$AX$5:$AY$19,2,FALSE))","v":{"$error":"#N/A"}},{"$f":"IF(AP2=DEBUT!$F$5,VLOOKUP(AM10,DEBUT!$W$5:$X$22,2,FALSE),VLOOKUP(AM10,DEBUT!$AX$5:$AY$19,2,FALSE))","v":{"$error":"#N/A"}},{"$f":"IF(AP2=DEBUT!$F$5,VLOOKUP(AN10,DEBUT!$W$5:$X$22,2,FALSE),VLOOKUP(AN10,DEBUT!$AX$5:$AY$19,2,FALSE))","v":{"$error":"#N/A"}},{"$f":"IF(AP2=DEBUT!$F$5,VLOOKUP(AO10,DEBUT!$W$5:$X$22,2,FALSE),VLOOKUP(AO10,DEBUT!$AX$5:$AY$19,2,FALSE))","v":{"$error":"#N/A"}},null,null,null,{"$f":"IF(AW2=DEBUT!$F$5,VLOOKUP(AS10,DEBUT!$W$5:$X$22,2,FALSE),VLOOKUP(AS10,DEBUT!$AX$5:$AY$19,2,FALSE))","v":{"$error":"#N/A"}},{"$f":"IF(AW2=DEBUT!$F$5,VLOOKUP(AT10,DEBUT!$W$5:$X$22,2,FALSE),VLOOKUP(AT10,DEBUT!$AX$5:$AY$19,2,FALSE))","v":{"$error":"#N/A"}},{"$f":"IF(AW2=DEBUT!$F$5,VLOOKUP(AU10,DEBUT!$W$5:$X$22,2,FALSE),VLOOKUP(AU10,DEBUT!$AX$5:$AY$19,2,FALSE))","v":{"$error":"#N/A"}},{"$f":"IF(AW2=DEBUT!$F$5,VLOOKUP(AV10,DEBUT!$W$5:$X$22,2,FALSE),VLOOKUP(AV10,DEBUT!$AX$5:$AY$19,2,FALSE))","v":{"$error":"#N/A"}},null,null,null,{"$f":"IF(BD2=DEBUT!$F$5,VLOOKUP(AZ10,DEBUT!$W$5:$X$22,2,FALSE),VLOOKUP(AZ10,DEBUT!$AX$5:$AY$19,2,FALSE))","v":{"$error":"#N/A"}},{"$f":"IF(BD2=DEBUT!$F$5,VLOOKUP(BA10,DEBUT!$W$5:$X$22,2,FALSE),VLOOKUP(BA10,DEBUT!$AX$5:$AY$19,2,FALSE))","v":{"$error":"#N/A"}},{"$f":"IF(BD2=DEBUT!$F$5,VLOOKUP(BB10,DEBUT!$W$5:$X$22,2,FALSE),VLOOKUP(BB10,DEBUT!$AX$5:$AY$19,2,FALSE))","v":{"$error":"#N/A"}},{"$f":"IF(BD2=DEBUT!$F$5,VLOOKUP(BC10,DEBUT!$W$5:$X$22,2,FALSE),VLOOKUP(BC10,DEBUT!$AX$5:$AY$19,2,FALSE))","v":{"$error":"#N/A"}},null,null,null,{"$f":"IF(BK2=DEBUT!$F$5,VLOOKUP(BG10,DEBUT!$W$5:$X$22,2,FALSE),VLOOKUP(BG10,DEBUT!$AX$5:$AY$19,2,FALSE))","v":{"$error":"#N/A"}},{"$f":"IF(BK2=DEBUT!$F$5,VLOOKUP(BH10,DEBUT!$W$5:$X$22,2,FALSE),VLOOKUP(BH10,DEBUT!$AX$5:$AY$19,2,FALSE))","v":{"$error":"#N/A"}},{"$f":"IF(BK2=DEBUT!$F$5,VLOOKUP(BI10,DEBUT!$W$5:$X$22,2,FALSE),VLOOKUP(BI10,DEBUT!$AX$5:$AY$19,2,FALSE))","v":{"$error":"#N/A"}},{"$f":"IF(BK2=DEBUT!$F$5,VLOOKUP(BJ10,DEBUT!$W$5:$X$22,2,FALSE),VLOOKUP(BJ10,DEBUT!$AX$5:$AY$19,2,FALSE))","v":{"$error":"#N/A"}},null,null,null,{"$f":"IF(BR2=DEBUT!$F$5,VLOOKUP(BN10,DEBUT!$W$5:$X$22,2,FALSE),VLOOKUP(BN10,DEBUT!$AX$5:$AY$19,2,FALSE))","v":{"$error":"#N/A"}},{"$f":"IF(BR2=DEBUT!$F$5,VLOOKUP(BO10,DEBUT!$W$5:$X$22,2,FALSE),VLOOKUP(BO10,DEBUT!$AX$5:$AY$19,2,FALSE))","v":{"$error":"#N/A"}},{"$f":"IF(BR2=DEBUT!$F$5,VLOOKUP(BP10,DEBUT!$W$5:$X$22,2,FALSE),VLOOKUP(BP10,DEBUT!$AX$5:$AY$19,2,FALSE))","v":{"$error":"#N/A"}},{"$f":"IF(BR2=DEBUT!$F$5,VLOOKUP(BQ10,DEBUT!$W$5:$X$22,2,FALSE),VLOOKUP(BQ10,DEBUT!$AX$5:$AY$19,2,FALSE))","v":{"$error":"#N/A"}},null,null,null,{"$f":"IF(BY2=DEBUT!$F$5,VLOOKUP(BU10,DEBUT!$W$5:$X$22,2,FALSE),VLOOKUP(BU10,DEBUT!$AX$5:$AY$19,2,FALSE))","v":{"$error":"#N/A"}},{"$f":"IF(BY2=DEBUT!$F$5,VLOOKUP(BV10,DEBUT!$W$5:$X$22,2,FALSE),VLOOKUP(BV10,DEBUT!$AX$5:$AY$19,2,FALSE))","v":{"$error":"#N/A"}},{"$f":"IF(BY2=DEBUT!$F$5,VLOOKUP(BW10,DEBUT!$W$5:$X$22,2,FALSE),VLOOKUP(BW10,DEBUT!$AX$5:$AY$19,2,FALSE))","v":{"$error":"#N/A"}},{"$f":"IF(BY2=DEBUT!$F$5,VLOOKUP(BX10,DEBUT!$W$5:$X$22,2,FALSE),VLOOKUP(BX10,DEBUT!$AX$5:$AY$19,2,FALSE))","v":{"$error":"#N/A"}},null,null,null,{"$f":"IF(CF2=DEBUT!$F$5,VLOOKUP(CB10,DEBUT!$W$5:$X$22,2,FALSE),VLOOKUP(CB10,DEBUT!$AX$5:$AY$19,2,FALSE))","v":{"$error":"#N/A"}},{"$f":"IF(CF2=DEBUT!$F$5,VLOOKUP(CC10,DEBUT!$W$5:$X$22,2,FALSE),VLOOKUP(CC10,DEBUT!$AX$5:$AY$19,2,FALSE))","v":{"$error":"#N/A"}},{"$f":"IF(CF2=DEBUT!$F$5,VLOOKUP(CD10,DEBUT!$W$5:$X$22,2,FALSE),VLOOKUP(CD10,DEBUT!$AX$5:$AY$19,2,FALSE))","v":{"$error":"#N/A"}},{"$f":"IF(CF2=DEBUT!$F$5,VLOOKUP(CE10,DEBUT!$W$5:$X$22,2,FALSE),VLOOKUP(CE10,DEBUT!$AX$5:$AY$19,2,FALSE))","v":{"$error":"#N/A"}},null,null,null,{"$f":"IF(CM2=DEBUT!$F$5,VLOOKUP(CI10,DEBUT!$W$5:$X$22,2,FALSE),VLOOKUP(CI10,DEBUT!$AX$5:$AY$19,2,FALSE))","v":{"$error":"#N/A"}},{"$f":"IF(CM2=DEBUT!$F$5,VLOOKUP(CJ10,DEBUT!$W$5:$X$22,2,FALSE),VLOOKUP(CJ10,DEBUT!$AX$5:$AY$19,2,FALSE))","v":{"$error":"#N/A"}},{"$f":"IF(CM2=DEBUT!$F$5,VLOOKUP(CK10,DEBUT!$W$5:$X$22,2,FALSE),VLOOKUP(CK10,DEBUT!$AX$5:$AY$19,2,FALSE))","v":{"$error":"#N/A"}},{"$f":"IF(CM2=DEBUT!$F$5,VLOOKUP(CL10,DEBUT!$W$5:$X$22,2,FALSE),VLOOKUP(CL10,DEBUT!$AX$5:$AY$19,2,FALSE))","v":{"$error":"#N/A"}},null,null,null,{"$f":"IF(CT2=DEBUT!$F$5,VLOOKUP(CP10,DEBUT!$W$5:$X$22,2,FALSE),VLOOKUP(CP10,DEBUT!$AX$5:$AY$19,2,FALSE))","v":{"$error":"#N/A"}},{"$f":"IF(CT2=DEBUT!$F$5,VLOOKUP(CQ10,DEBUT!$W$5:$X$22,2,FALSE),VLOOKUP(CQ10,DEBUT!$AX$5:$AY$19,2,FALSE))","v":{"$error":"#N/A"}},{"$f":"IF(CT2=DEBUT!$F$5,VLOOKUP(CR10,DEBUT!$W$5:$X$22,2,FALSE),VLOOKUP(CR10,DEBUT!$AX$5:$AY$19,2,FALSE))","v":{"$error":"#N/A"}},{"$f":"IF(CT2=DEBUT!$F$5,VLOOKUP(CS10,DEBUT!$W$5:$X$22,2,FALSE),VLOOKUP(CS10,DEBUT!$AX$5:$AY$19,2,FALSE))","v":{"$error":"#N/A"}}]
[null,"Préparation et récupération après effort /2,5",{"$f":"IF(G2=DEBUT!$F$5,VLOOKUP(C11,DEBUT!$T$5:$U$22,2,FALSE),VLOOKUP(C11,DEBUT!$AU$5:$AV$42,2,FALSE))","v":1},{"$f":"IF(G2=DEBUT!$F$5,VLOOKUP(D11,DEBUT!$T$5:$U$22,2,FALSE),VLOOKUP(D11,DEBUT!$AU$5:$AV$42,2,FALSE))","v":{"$error":"#N/A"}},{"$f":"IF(G2=DEBUT!$F$5,VLOOKUP(E11,DEBUT!$T$5:$U$22,2,FALSE),VLOOKUP(E11,DEBUT!$AU$5:$AV$42,2,FALSE))","v":{"$error":"#N/A"}},{"$f":"IF(G2=DEBUT!$F$5,VLOOKUP(F11,DEBUT!$T$5:$U$22,2,FALSE),VLOOKUP(F11,DEBUT!$AU$5:$AV$42,2,FALSE))","v":{"$error":"#N/A"}},null,null,null,{"$f":"IF(N2=DEBUT!$F$5,VLOOKUP(J11,DEBUT!$T$5:$U$22,2,FALSE),VLOOKUP(J11,DEBUT!$AU$5:$AV$42,2,FALSE))","v":{"$error":"#N/A"}},{"$f":"IF(N2=DEBUT!$F$5,VLOOKUP(K11,DEBUT!$T$5:$U$22,2,FALSE),VLOOKUP(K11,DEBUT!$AU$5:$AV$42,2,FALSE))","v":{"$error":"#N/A"}},{"$f":"IF(N2=DEBUT!$F$5,VLOOKUP(L11,DEBUT!$T$5:$U$22,2,FALSE),VLOOKUP(L11,DEBUT!$AU$5:$AV$42,2,FALSE))","v":{"$error":"#N/A"}},{"$f":"IF(N2=DEBUT!$F$5,VLOOKUP(M11,DEBUT!$T$5:$U$22,2,FALSE),VLOOKUP(M11,DEBUT!$AU$5:$AV$42,2,FALSE))","v":{"$error":"#N/A"}},null,null,null,{"$f":"IF(U2=DEBUT!$F$5,VLOOKUP(Q11,DEBUT!$T$5:$U$22,2,FALSE),VLOOKUP(Q11,DEBUT!$AU$5:$AV$42,2,FALSE))","v":{"$error":"#N/A"}},{"$f":"IF(U2=DEBUT!$F$5,VLOOKUP(R11,DEBUT!$T$5:$U$22,2,FALSE),VLOOKUP(R11,DEBUT!$AU$5:$AV$42,2,FALSE))","v":{"$error":"#N/A"}},{"$f":"IF(U2=DEBUT!$F$5,VLOOKUP(S11,DEBUT!$T$5:$U$22,2,FALSE),VLOOKUP(S11,DEBUT!$AU$5:$AV$42,2,FALSE))","v":{"$error":"#N/A"}},{"$f":"IF(U2=DEBUT!$F$5,VLOOKUP(T11,DEBUT!$T$5:$U$22,2,FALSE),VLOOKUP(T11,DEBUT!$AU$5:$AV$42,2,FALSE))","v":{"$error":"#N/A"}},null,null,null,{"$f":"IF(AB2=DEBUT!$F$5,VLOOKUP(X11,DEBUT!$T$5:$U$22,2,FALSE),VLOOKUP(X11,DEBUT!$AU$5:$AV$42,2,FALSE))","v":{"$error":"#N/A"}},{"$f":"IF(AB2=DEBUT!$F$5,VLOOKUP(Y11,DEBUT!$T$5:$U$22,2,FALSE),VLOOKUP(Y11,DEBUT!$AU$5:$AV$42,2,FALSE))","v":{"$error":"#N/A"}},{"$f":"IF(AB2=DEBUT!$F$5,VLOOKUP(Z11,DEBUT!$T$5:$U$22,2,FALSE),VLOOKUP(Z11,DEBUT!$AU$5:$AV$42,2,FALSE))","v":{"$error":"#N/A"}},{"$f":"IF(AB2=DEBUT!$F$5,VLOOKUP(AA11,DEBUT!$T$5:$U$22,2,FALSE),VLOOKUP(AA11,DEBUT!$AU$5:$AV$42,2,FALSE))","v":{"$error":"#N/A"}},null,null,null,{"$f":"IF(AI2=DEBUT!$F$5,VLOOKUP(AE11,DEBUT!$T$5:$U$22,2,FALSE),VLOOKUP(AE11,DEBUT!$AU$5:$AV$42,2,FALSE))","v":{"$error":"#N/A"}},{"$f":"IF(AI2=DEBUT!$F$5,VLOOKUP(AF11,DEBUT!$T$5:$U$22,2,FALSE),VLOOKUP(AF11,DEBUT!$AU$5:$AV$42,2,FALSE))","v":{"$error":"#N/A"}},{"$f":"IF(AI2=DEBUT!$F$5,VLOOKUP(AG11,DEBUT!$T$5:$U$22,2,FALSE),VLOOKUP(AG11,DEBUT!$AU$5:$AV$42,2,FALSE))","v":{"$error":"#N/A"}},{"$f":"IF(AI2=DEBUT!$F$5,VLOOKUP(AH11,DEBUT!$T$5:$U$22,2,FALSE),VLOOKUP(AH11,DEBUT!$AU$5:$AV$42,2,FALSE))","v":{"$error":"#N/A"}},null,null,null,{"$f":"IF(AP2=DEBUT!$F$5,VLOOKUP(AL11,DEBUT!$T$5:$U$22,2,FALSE),VLOOKUP(AL11,DEBUT!$AU$5:$AV$42,2,FALSE))","v":{"$error":"#N/A"}},{"$f":"IF(AP2=DEBUT!$F$5,VLOOKUP(AM11,DEBUT!$T$5:$U$22,2,FALSE),VLOOKUP(AM11,DEBUT!$AU$5:$AV$42,2,FALSE))","v":{"$error":"#N/A"}},{"$f":"IF(AP2=DEBUT!$F$5,VLOOKUP(AN11,DEBUT!$T$5:$U$22,2,FALSE),VLOOKUP(AN11,DEBUT!$AU$5:$AV$42,2,FALSE))","v":{"$error":"#N/A"}},{"$f":"IF(AP2=DEBUT!$F$5,VLOOKUP(AO11,DEBUT!$T$5:$U$22,2,FALSE),VLOOKUP(AO11,DEBUT!$AU$5:$AV$42,2,FALSE))","v":{"$error":"#N/A"}},null,null,null,{"$f":"IF(AW2=DEBUT!$F$5,VLOOKUP(AS11,DEBUT!$T$5:$U$22,2,FALSE),VLOOKUP(AS11,DEBUT!$AU$5:$AV$42,2,FALSE))","v":{"$error":"#N/A"}},{"$f":"IF(AW2=DEBUT!$F$5,VLOOKUP(AT11,DEBUT!$T$5:$U$22,2,FALSE),VLOOKUP(AT11,DEBUT!$AU$5:$AV$42,2,FALSE))","v":{"$error":"#N/A"}},{"$f":"IF(AW2=DEBUT!$F$5,VLOOKUP(AU11,DEBUT!$T$5:$U$22,2,FALSE),VLOOKUP(AU11,DEBUT!$AU$5:$AV$42,2,FALSE))","v":{"$error":"#N/A"}},{"$f":"IF(AW2=DEBUT!$F$5,VLOOKUP(AV11,DEBUT!$T$5:$U$22,2,FALSE),VLOOKUP(AV11,DEBUT!$AU$5:$AV$42,2,FALSE))","v":{"$error":"#N/A"}},null,null,null,{"$f":"IF(BD2=DEBUT!$F$5,VLOOKUP(AZ11,DEBUT!$T$5:$U$22,2,FALSE),VLOOKUP(AZ11,DEBUT!$AU$5:$AV$42,2,FALSE))","v":{"$error":"#N/A"}},{"$f":"IF(BD2=DEBUT!$F$5,VLOOKUP(BA11,DEBUT!$T$5:$U$22,2,FALSE),VLOOKUP(BA11,DEBUT!$AU$5:$AV$42,2,FALSE))","v":{"$error":"#N/A"}},{"$f":"IF(BD2=DEBUT!$F$5,VLOOKUP(BB11,DEBUT!$T$5:$U$22,2,FALSE),VLOOKUP(BB11,DEBUT!$AU$5:$AV$42,2,FALSE))","v":{"$error":"#N/A"}},{"$f":"IF(BD2=DEBUT!$F$5,VLOOKUP(BC11,DEBUT!$T$5:$U$22,2,FALSE),VLOOKUP(BC11,DEBUT!$AU$5:$AV$42,2,FALSE))","v":{"$error":"#N/A"}},null,null,null,{"$f":"IF(BK2=DEBUT!$F$5,VLOOKUP(BG11,DEBUT!$T$5:$U$22,2,FALSE),VLOOKUP(BG11,DEBUT!$AU$5:$AV$42,2,FALSE))","v":{"$error":"#N/A"}},{"$f":"IF(BK2=DEBUT!$F$5,VLOOKUP(BH11,DEBUT!$T$5:$U$22,2,FALSE),VLOOKUP(BH11,DEBUT!$AU$5:$AV$42,2,FALSE))","v":{"$error":"#N/A"}},{"$f":"IF(BK2=DEBUT!$F$5,VLOOKUP(BI11,DEBUT!$T$5:$U$22,2,FALSE),VLOOKUP(BI11,DEBUT!$AU$5:$AV$42,2,FALSE))","v":{"$error":"#N/A"}},{"$f":"IF(BK2=DEBUT!$F$5,VLOOKUP(BJ11,DEBUT!$T$5:$U$22,2,FALSE),VLOOKUP(BJ11,DEBUT!$AU$5:$AV$42,2,FALSE))","v":{"$error":"#N/A"}},null,null,null,{"$f":"IF(BR2=DEBUT!$F$5,VLOOKUP(BN11,DEBUT!$T$5:$U$22,2,FALSE),VLOOKUP(BN11,DEBUT!$AU$5:$AV$42,2,FALSE))","v":{"$error":"#N/A"}},{"$f":"IF(BR2=DEBUT!$F$5,VLOOKUP(BO11,DEBUT!$T$5:$U$22,2,FALSE),VLOOKUP(BO11,DEBUT!$AU$5:$AV$42,2,FALSE))","v":{"$error":"#N/A"}},{"$f":"IF(BR2=DEBUT!$F$5,VLOOKUP(BP11,DEBUT!$T$5:$U$22,2,FALSE),VLOOKUP(BP11,DEBUT!$AU$5:$AV$42,2,FALSE))","v":{"$error":"#N/A"}},{"$f":"IF(BR2=DEBUT!$F$5,VLOOKUP(BQ11,DEBUT!$T$5:$U$22,2,FALSE),VLOOKUP(BQ11,DEBUT!$AU$5:$AV$42,2,FALSE))","v":{"$error":"#N/A"}},null,null,null,{"$f":"IF(BY2=DEBUT!$F$5,VLOOKUP(BU11,DEBUT!$T$5:$U$22,2,FALSE),VLOOKUP(BU11,DEBUT!$AU$5:$AV$42,2,FALSE))","v":{"$error":"#N/A"}},{"$f":"IF(BY2=DEBUT!$F$5,VLOOKUP(BV11,DEBUT!$T$5:$U$22,2,FALSE),VLOOKUP(BV11,DEBUT!$AU$5:$AV$42,2,FALSE))","v":{"$error":"#N/A"}},{"$f":"IF(BY2=DEBUT!$F$5,VLOOKUP(BW11,DEBUT!$T$5:$U$22,2,FALSE),VLOOKUP(BW11,DEBUT!$AU$5:$AV$42,2,FALSE))","v":{"$error":"#N/A"}},{"$f":"IF(BY2=DEBUT!$F$5,VLOOKUP(BX11,DEBUT!$T$5:$U$22,2,FALSE),VLOOKUP(BX11,DEBUT!$AU$5:$AV$42,2,FALSE))","v":{"$error":"#N/A"}},null,null,null,{"$f":"IF(CF2=DEBUT!$F$5,VLOOKUP(CB11,DEBUT!$T$5:$U$22,2,FALSE),VLOOKUP(CB11,DEBUT!$AU$5:$AV$42,2,FALSE))","v":{"$error":"#N/A"}},{"$f":"IF(CF2=DEBUT!$F$5,VLOOKUP(CC11,DEBUT!$T$5:$U$22,2,FALSE),VLOOKUP(CC11,DEBUT!$AU$5:$AV$42,2,FALSE))","v":{"$error":"#N/A"}},{"$f":"IF(CF2=DEBUT!$F$5,VLOOKUP(CD11,DEBUT!$T$5:$U$22,2,FALSE),VLOOKUP(CD11,DEBUT!$AU$5:$AV$42,2,FALSE))","v":{"$error":"#N/A"}},{"$f":"IF(CF2=DEBUT!$F$5,VLOOKUP(CE11,DEBUT!$T$5:$U$22,2,FALSE),VLOOKUP(CE11,DEBUT!$AU$5:$AV$42,2,FALSE))","v":{"$error":"#N/A"}},null,null,null,{"$f":"IF(CM2=DEBUT!$F$5,VLOOKUP(CI11,DEBUT!$T$5:$U$22,2,FALSE),VLOOKUP(CI11,DEBUT!$AU$5:$AV$42,2,FALSE))","v":{"$error":"#N/A"}},{"$f":"IF(CM2=DEBUT!$F$5,VLOOKUP(CJ11,DEBUT!$T$5:$U$22,2,FALSE),VLOOKUP(CJ11,DEBUT!$AU$5:$AV$42,2,FALSE))","v":{"$error":"#N/A"}},{"$f":"IF(CM2=DEBUT!$F$5,VLOOKUP(CK11,DEBUT!$T$5:$U$22,2,FALSE),VLOOKUP(CK11,DEBUT!$AU$5:$AV$42,2,FALSE))","v":{"$error":"#N/A"}},{"$f":"IF(CM2=DEBUT!$F$5,VLOOKUP(CL11,DEBUT!$T$5:$U$22,2,FALSE),VLOOKUP(CL11,DEBUT!$AU$5:$AV$42,2,FALSE))","v":{"$error":"#N/A"}},null,null,null,{"$f":"IF(CT2=DEBUT!$F$5,VLOOKUP(CP11,DEBUT!$T$5:$U$22,2,FALSE),VLOOKUP(CP11,DEBUT!$AU$5:$AV$42,2,FALSE))","v":{"$error":"#N/A"}},{"$f":"IF(CT2=DEBUT!$F$5,VLOOKUP(CQ11,DEBUT!$T$5:$U$22,2,FALSE),VLOOKUP(CQ11,DEBUT!$AU$5:$AV$42,2,FALSE))","v":{"$error":"#N/A"}},{"$f":"IF(CT2=DEBUT!$F$5,VLOOKUP(CR11,DEBUT!$T$5:$U$22,2,FALSE),VLOOKUP(CR11,DEBUT!$AU$5:$AV$42,2,FALSE))","v":{"$error":"#N/A"}},{"$f":"IF(CT2=DEBUT!$F$5,VLOOKUP(CS11,DEBUT!$T$5:$U$22,2,FALSE),VLOOKUP(CS11,DEBUT!$AU$5:$AV$42,2,FALSE))","v":{"$error":"#N/A"}}]
[null,"NOTE FINALE /20",{"$f":"SUM(C13+C14+C15+C17+C16)","v":16},{"$f":"SUM(C13+C14+D15+D17+D16)","v":{"$error":"#N/A"}},{"$f":"SUM(C13+C14+E15+E17+E16)","v":{"$error":"#N/A"}},{"$f":"SUM(C13+C14+F15+F17+F16)","v":{"$error":"#N/A"}},null,null,null,{"$f":"SUM(J13+J14+J15+J17+J16)","v":{"$error":"#N/A"}},{"$f":"SUM(J13+J14+K15+K17+K16)","v":{"$error":"#N/A"}},{"$f":"SUM(J13+J14+L15+L17+L16)","v":{"$error":"#N/A"}},{"$f":"SUM(J13+J14+M15+M17+M16)","v":{"$error":"#N/A"}},null,null,null,{"$f":"SUM(Q13+Q14+Q15+Q17+Q16)","v":{"$error":"#N/A"}},{"$f":"SUM(Q13+Q14+R15+R17+R16)","v":{"$error":"#N/A"}},{"$f":"SUM(Q13+Q14+S15+S17+S16)","v":{"$error":"#N/A"}},{"$f":"SUM(Q13+Q14+T15+T17+T16)","v":{"$error":"#N/A"}},null,null,null,{"$f":"SUM(X13+X14+X15+X17+X16)","v":{"$error":"#N/A"}},{"$f":"SUM(X13+X14+Y15+Y17+Y16)","v":{"$error":"#N/A"}},{"$f":"SUM(X13+X14+Z15+Z17+Z16)","v":{"$error":"#N/A"}},{"$f":"SUM(X13+X14+AA15+AA17+AA16)","v":{"$error":"#N/A"}},null,null,null,{"$f":"SUM(AE13+AE14+AE15+AE17+AE16)","v":{"$error":"#N/A"}},{"$f":"SUM(AE13+AE14+AF15+AF17+AF16)","v":{"$error":"#N/A"}},{"$f":"SUM(AE13+AE14+AG15+AG17+AG16)","v":{"$error":"#N/A"}},{"$f":"SUM(AE13+AE14+AH15+AH17+AH16)","v":{"$error":"#N/A"}},null,null,null,{"$f":"SUM(AL13+AL14+AL15+AL17+AL16)","v":{"$error":"#N/A"}},{"$f":"SUM(AL13+AL14+AM15+AM17+AM16)","v":{"$error":"#N/A"}},{"$f":"SUM(AL13+AL14+AN15+AN17+AN16)","v":{"$error":"#N/A"}},{"$f":"SUM(AL13+AL14+AO15+AO17+AO16)","v":{"$error":"#N/A"}},null,null,null,{"$f":"SUM(AS13+AS14+AS15+AS17+AS16)","v":{"$error":"#N/A"}},{"$f":"SUM(AS13+AS14+AT15+AT17+AT16)","v":{"$error":"#N/A"}},{"$f":"SUM(AS13+AS14+AU15+AU17+AU16)","v":{"$error":"#N/A"}},{"$f":"SUM(AS13+AS14+AV15+AV17+AV16)","v":{"$error":"#N/A"}},null,null,null,{"$f":"SUM(AZ13+AZ14+AZ15+AZ17+AZ16)","v":{"$error":"#N/A"}},{"$f":"SUM(AZ13+AZ14+BA15+BA17+BA16)","v":{"$error":"#N/A"}},{"$f":"SUM(AZ13+AZ14+BB15+BB17+BB16)","v":{"$error":"#N/A"}},{"$f":"SUM(AZ13+AZ14+BC15+BC17+BC16)","v":{"$error":"#N/A"}},null,null,null,{"$f":"SUM(BG13+BG14+BG15+BG17+BG16)","v":{"$error":"#N/A"}},{"$f":"SUM(BG13+BG14+BH15+BH17+BH16)","v":{"$error":"#N/A"}},{"$f":"SUM(BG13+BG14+BI15+BI17+BI16)","v":{"$error":"#N/A"}},{"$f":"SUM(BG13+BG14+BJ15+BJ17+BJ16)","v":{"$error":"#N/A"}},null,null,null,{"$f":"SUM(BN13+BN14+BN15+BN17+BN16)","v":{"$error":"#N/A"}},{"$f":"SUM(BN13+BN14+BO15+BO17+BO16)","v":{"$error":"#N/A"}},{"$f":"SUM(BN13+BN14+BP15+BP17+BP16)","v":{"$error":"#N/A"}},{"$f":"SUM(BN13+BN14+BQ15+BQ17+BQ16)","v":{"$error":"#N/A"}},null,null,null,{"$f":"SUM(BU13+BU14+BU15+BU17+BU16)","v":{"$error":"#N/A"}},{"$f":"SUM(BU13+BU14+BV15+BV17+BV16)","v":{"$error":"#N/A"}},{"$f":"SUM(BU13+BU14+BW15+BW17+BW16)","v":{"$error":"#N/A"}},{"$f":"SUM(BU13+BU14+BX15+BX17+BX16)","v":{"$error":"#N/A"}},null,null,null,{"$f":"SUM(CB13+CB14+CB15+CB17+CB16)","v":{"$error":"#N/A"}},{"$f":"SUM(CB13+CB14+CC15+CC17+CC16)","v":{"$error":"#N/A"}},{"$f":"SUM(CB13+CB14+CD15+CD17+CD16)","v":{"$error":"#N/A"}},{"$f":"SUM(CB13+CB14+CE15+CE17+CE16)","v":{"$error":"#N/A"}},null,null,null,{"$f":"SUM(CI13+CI14+CI15+CI17+CI16)","v":{"$error":"#N/A"}},{"$f":"SUM(CI13+CI14+CJ15+CJ17+CJ16)","v":{"$error":"#N/A"}},{"$f":"SUM(CI13+CI14+CK15+CK17+CK16)","v":{"$error":"#N/A"}},{"$f":"SUM(CI13+CI14+CL15+CL17+CL16)","v":{"$error":"#N/A"}},null,null,null,{"$f":"SUM(CP13+CP14+CP15+CP17+CP16)","v":{"$error":"#N/A"}},{"$f":"SUM(CP13+CP14+CQ15+CQ17+CQ16)","v":{"$error":"#N/A"}},{"$f":"SUM(CP13+CP14+CR15+CR17+CR16)","v":{"$error":"#N/A"}},{"$f":"SUM(CP13+CP14+CS15+CS17+CS16)","v":{"$error":"#N/A"}}]

{"sheet":"REFERENTIELS","index":3,"n_rows":86,"n_cols":25,"rows_kept":86,"cut":false,"hidden":false,"merged":[[10,21,10,22],[11,12,11,13],[11,14,11,15],[11,17,11,18],[11,19,11,20],[11,21,11,22],[3,2,3,7],[3,8,3,24],[4,2,4,7],[4,8,4,24],[5,4,5,11],[5,12,5,24],[8,21,8,22],[9,12,9,13],[9,14,9,15],[9,17,9,18],[9,19,9,20],[9,21,9,22],[6,21,6,22],[7,12,7,13],[7,14,7,15],[7,17,7,18],[7,19,7,20],[7,21,7,22],[6,12,6,13],[6,14,6,15],[6,17,6,18],[6,19,6,20],[8,12,8,13],[8,14,8,15],[16,13,16,14],[16,15,16,17],[16,18,16,19],[8,17,8,18],[8,19,8,20],[10,12,10,13],[10,14,10,15],[10,17,10,18],[10,19,10,20],[20,17,20,18],[20,19,20,20],[20,21,20,22],[12,12,12,13],[12,14,12,15],[12,17,12,18],[12,19,12,20],[12,21,12,22],[13,3,18,3],[13,4,18,7],[13,10,13,11],[13,13,13,14],[13,15,13,17],[6,3,12,3],[13,18,13,19],[13,20,13,21],[13,22,13,24],[14,10,14,11],[14,13,14,14],[14,15,14,17],[14,18,14,19],[14,20,14,21],[14,22,14,24],[16,10,16,11],[19,17,19,18],[19,19,19,20],[19,21,19,22],[17,10,17,11],[17,13,17,14],[17,15,17,17],[17,18,17,19],[17,20,17,21],[17,22,17,24],[21,12,21,13],[21,14,21,15],[21,17,21,18],[21,19,21,20],[21,21,21,22],[18,10,18,11],[18,12,18,17],[18,18,18,24],[6,2,12,2],[13,2,18,2],[20,12,20,13],[20,14,20,15],[16,20,16,21],[16,22,16,24],[15,10,15,11],[15,13,15,14],[15,15,15,17],[15,18,15,19],[15,20,15,21],[15,22,15,24],[19,2,25,2],[19,3,25,3],[19,12,19,13],[19,14,19,15],[24,12,24,13],[24,14,24,15],[24,17,24,18],[24,19,24,20],[24,21,24,22],[25,12,25,13],[25,14,25,15],[25,17,25,18],[25,19,25,20],[25,21,25,22],[22,12,22,13],[22,14,22,15],[22,17,22,18],[22,19,22,20],[22,21,22,22],[23,12,23,13],[23,14,23,15],[23,17,23,18],[23,19,23,20],[23,21,23,22],[35,2,35,7],[35,8,35,24],[36,2,36,7],[36,8,36,24],[37,4,37,11],[37,12,37,24],[26,4,26,7],[26,8,26,11],[26,12,26,17],[26,18,26,24],[40,21,40,22],[41,12,41,13],[41,14,41,15],[41,17,41,18],[41,19,41,20],[41,21,41,22],[38,21,38,22],[39,12,39,13],[39,14,39,15],[39,17,39,18],[39,19,39,20],[39,21,39,22],[38,12,38,13],[38,14,38,15],[38,17,38,18],[38,19,38,20],[40,12,40,13],[40,14,40,15],[40,17,40,18],[40,19,40,20],[42,12,42,13],[42,14,42,15],[42,17,42,18],[42,19,42,20],[42,21,42,22],[43,12,43,13],[43,14,43,15],[43,17,43,18],[43,19,43,20],[43,21,43,22],[44,12,44,13],[44,14,44,15],[44,17,44,18],[44,19,44,20],[44,21,44,22],[45,3,50,3],[45,4,50,7],[45,10,45,11],[45,13,45,14],[45,15,45,17],[38,3,44,3],[47,10,47,11],[47,13,47,14],[47,15,47,17],[47,18,47,19],[47,20,47,21],[47,22,47,24],[45,18,45,19],[45,20,45,21],[45,22,45,24],[46,10,46,11],[46,13,46,14],[46,15,46,17],[46,18,46,19],[46,20,46,21],[46,22,46,24],[49,10,49,11],[49,13,49,14],[49,15,49,17],[49,18,49,19],[49,20,49,21],[49,22,49,24],[48,10,48,11],[48,13,48,14],[48,15,48,17],[48,18,48,19],[48,20,48,21],[48,22,48,24],[51,3,57,3],[51,12,51,13],[51,14,51,15],[51,17,51,18],[51,19,51,20],[51,21,51,22],[55,19,55,20],[55,21,55,22],[52,12,52,13],[52,14,52,15],[52,17,52,18],[52,19,52,20],[52,21,52,22],[53,12,53,13],[53,14,53,15],[53,17,53,18],[53,19,53,20],[53,21,53,22],[38,2,44,2],[45,2,50,2],[56,12,56,13],[56,14,56,15],[56,17,56,18],[56,19,56,20],[56,21,56,22],[57,12,57,13],[57,14,57,15],[57,17,57,18],[57,19,57,20],[57,21,57,22],[54,12,54,13],[54,14,54,15],[54,17,54,18],[54,19,54,20],[54,21,54,22],[55,12,55,13],[55,14,55,15],[55,17,55,18],[50,10,50,11],[50,12,50,17],[50,18,50,24],[51,2,57,2],[63,2,63,7],[63,8,63,24],[64,4,64,11],[64,12,64,24],[65,2,71,2],[65,3,71,3],[58,4,58,7],[58,8,58,11],[58,12,58,17],[58,18,58,24],[65,4,65,5],[65,6,65,7],[65,8,65,9],[65,10,65,11],[65,12,65,15],[65,16,65,18],[65,19,65,22],[65,23,65,24],[66,4,71,5],[66,6,71,7],[66,8,71,9],[66,12,71,15],[66,10,71,11],[66,16,71,18],[72,4,77,7],[72,10,72,11],[72,13,72,14],[72,15,72,17],[72,18,72,19],[72,20,72,21],[72,22,72,24],[73,10,73,11],[73,13,73,14],[73,15,73,17],[73,18,73,19],[73,20,73,21],[73,22,73,24],[74,10,74,11],[74,13,74,14],[74,15,74,17],[74,18,74,19],[74,20,74,21],[74,22,74,24],[75,10,75,11],[75,13,75,14],[75,15,75,17],[75,18,75,19],[75,20,75,21],[78,17,78,18],[78,19,78,20],[78,21,78,22],[79,12,79,13],[79,14,79,15],[79,17,79,18],[79,19,79,20],[79,21,79,22],[80,12,80,13],[80,14,80,15],[80,17,80,18],[80,19,80,20],[80,21,80,22],[81,12,81,13],[81,14,81,15],[81,17,81,18],[81,19,81,20],[72,2,77,2],[72,3,77,3],[66,19,71,22],[66,23,71,24],[81,21,81,22],[77,10,77,11],[77,12,77,17],[75,22,75,24],[76,10,76,11],[76,13,76,14],[76,15,76,17],[76,18,76,19],[76,20,76,21],[76,22,76,24],[77,18,77,24],[78,2,84,2],[78,3,84,3],[78,12,78,13],[78,14,78,15],[84,12,84,13],[84,14,84,15],[84,17,84,18],[84,19,84,20],[84,21,84,22],[85,4,85,7],[85,8,85,11],[85,12,85,17],[85,18,85,24],[82,12,82,13],[82,14,82,15],[82,17,82,18],[82,19,82,20],[82,21,82,22],[83,12,83,13],[83,14,83,15],[83,17,83,18],[83,19,83,20],[83,21,83,22]]}
[]
[]
[null,null,"RELAIS-VITESSE N3"]
[null,null,"COMPETENCES ATTENDUES",null,null,null,null,null,"PRINCIPES D’ELABORATION DE L’EPREUVE"]
[null,null,"NIVEAU 3 :\nPour produire la meilleure performance, coordonner les vitesses de course du donneur et du receveur et assurer une transmission valide dans une course sécurisée.",null,null,null,null,null,"1. Chaque élève réalise un 50 mètres départ en starting-blocks commandé par un signal extérieur (2 essais sont possibles).\n2. Les équipes de relais (1) effectuent chacune 2 parcours de 4 x 50 mètres, départ en starting-blocks  commandé. Lors de la 2ième tentative les coureurs changent de place de la façon suivante :le poste 1passe au 2 , le poste 4 passe au 3 et réciproquement. Lorsque le témoin ne franchit pas la ligne d’arrivée, un essai supplémentaire est accordé afin de pouvoir comparer les 2  tentatives (et ceci  dans chacun des cas).\nLes zones de transmissions et d’élan sont les zones conventionnelles fédérales (10 m d’élan, 20 m de transmission). Chaque élève est noté selon les critères suivants :\nPour 25 % sur sa performance sur 50 mètres individuel.\nPour 25 % sur la différence entre la somme des temps réalisés sur 50 m. des 4 relayeurs, et le meilleur  temps des 2 relais effectués. Pour 25 % sur la somme des 2  performances réalisées lors des 2 parcours de relais, dont l’un avec changement des postes 1-2/3-4. Pour 25 % sur l’échauffement avant l’épreuve,  la récupération après l’effort, et  la validation des zones de transmission."]
[null,null,"POINTS A AFFECTER","ELEMENTS A EVALUER","COMPETENCE DE NIVEAU 3 EN COURS D’ACQUISITION\nDe 0 à 09 pts",null,null,null,null,null,null,null,"COMPETENCE DE NIVEAU 3 ACQUISE\nDe 10 à 20 pts"]
[null,null,"05 Points","Performance Individuelle sur 50m.\nTemps individuel sur 50 mètres","Temps filles","Temps garçons","Note\n/ 05","Note\n/ 20","Temps filles","Temps garçons","Note\n/ 05","Note\n/ 20","Temps ) filles",null,"Temps garçons",null,"Note\n/ 05","Note\n/ 20",null,"Temps filles",null,"Temps garçons",null,"Note\n/ 05","Note/ 20"]
[null,null,null,null,11,9.9,0,0,9.5,8.1,1.3,5,9,null,7.6,null,2.5,10,null,8.4,null,7,null,4,16]
[null,null,null,null,10.5,9.5,0.3,1,9.4,8,1.5,6,8.9,null,7.5,null,2.8,11,null,8.3000000000000007,null,6.9,null,4.3,17]
[null,null,null,null,10.199999999999999,9,0.5,2,9.3000000000000007,7.9,1.8,7,8.8000000000000007,null,7.4,null,3,12,null,8.1999999999999993,null,6.8,null,4.5,18]
[null,null,null,null,9.8000000000000007,8.6,0.8,3,9.1999999999999993,7.8,2,8,8.6999999999999993,null,7.3,null,3.3,13,null,8.1,null,6.7,null,4.8,19]
[null,null,null,null,9.6,8.3000000000000007,1,4,9.1,7.7,2.2999999999999998,9,8.6,null,7.2,null,3.5,14,null,8,null,6.6,null,5,20]
[null,null,null,null,null,null,null,null,null,null,null,null,8.5,null,7.1,null,3.8,15]
[null,null,"05 Points","Indice de transmission. Différence entre  le meilleur temps réalisé sur 4x50 mètres (2) et la somme des temps des 4 coureurs sur 50m",null,null,null,null,"Note\n/ 20","Note\n/ 05","Ecart en secondes T relais – T ind",null,"Note\n/ 20","Note\n/ 05",null,"Ecart en secondes T relais – T ind",null,null,"Note\n/ 20",null,"Note\n/ 05",null,"Ecart en secondes T relais – T ind"]
[null,null,null,null,null,null,null,null,0,0,"T relais >+ 0 .8"]
[null,null,null,null,null,null,null,null,2,0.5,"T relais > +0.4",null,10,2.5,null,-1,null,null,16,null,4,null,"- 1. 6"]
[null,null,null,null,null,null,null,null,4,1,"même temps",null,12,3,null,-1.3,null,null,18,null,4.5,null,"- 1. 8"]
[null,null,null,null,null,null,null,null,6,1.5,"- 0. 4",null,14,3.5,null,-1.5,null,null,20,null,5,null,"> à – 2.0"]
[null,null,null,null,null,null,null,null,8,2,"- 0. 8"]
[null,null,"05 Points","Performances sur 4X50m.\nTemps cumulés des 2 4x50m, sans et avec changement de rôle (3)","Temps filles","Temps garçons","Note\n/ 05","Note\n/ 20","Temps filles","Temps garçons","Note\n/ 05","Note\n/ 20","Temps ) filles",null,"Temps garçons",null,"Note\n/ 05","Note\n/ 20",null,"Temps filles",null,"Temps garçons",null,"Note\n/ 05","Note/ 20"]
[null,null,null,null,77,63.8,0,0,74,61.8,1.3,5,71,null,59.8,null,2.5,10,null,67.400000000000006,null,57,null,4,16]
[null,null,null,null,76.400000000000006,63.4,0.3,1,73.400000000000006,61.4,1.5,6,70.400000000000006,null,59.4,null,2.8,11,null,66.8,null,56.4,null,4.3,17]
[null,null,null,null,75.8,63,0.5,2,72.8,61,1.8,7,69.8,null,59,null,3,12,null,66.2,null,55.8,null,4.5,18]
[null,null,null,null,75.2,62.6,0.8,3,72.2,60.6,2,8,69.2,null,58.6,null,3.3,13,null,65.599999999999994,null,55.2,null,4.8,19]
[null,null,null,null,74.599999999999994,62.2,1,4,71.599999999999994,60.2,2.2999999999999998,9,68.599999999999994,null,58.2,null,3.5,14,null,65,null,54.6,null,5,20]
[null,null,null,null,null,null,null,null,null,null,null,null,68,null,57.6,null,3.8,15]
[null,null,"05 Points","Préparation avant l’épreuve et récupération après l’effort.\nEtre capable d’assurer une transmission valide\n(zone de transmission respectée).",null,null,null,null,"Echauffement léger, étirements légers ou inexistants, pas ou peu de vérification de marques. Pas de récupération après les efforts.\n1\nChaque coureur concerné par  trois charnières de relais réalise  aucune ou une seule transmission valide.\n1",null,null,null,"Echauffement pertinent, étirements présents mais succincts, peu de vérification de marques. Récupération après l’effort sous forme de trotting léger.\n1,5\nChaque coureur concerné par  trois charnières de relais réalise  deux transmissions valides\n1,5",null,null,null,null,null,"Echauffement progressif, étirements appropriés, vérification des marques de passages. Récupération active après les efforts (étirements, trottin).\n2,5\nChaque coureur concerné par trois charnières de relais réalise  trois transmissions valides 2,5"]
[null,null,"COMMENTAIRES"]
[null,null,"(1)    Regrouper les élèves par rapport aux temps réalisés sur 50 mètres, et constituer des équipes de relayeurs de temps identiques. Ne pas chercher à faire des équipes équilibrées, plus les écarts sont importants et plus les régulations de vitesses sont difficiles à réaliser. Les équipes peuvent être mixtes."]
[null,null,"(2)    Le temps du relais doit être inférieur à la somme des temps additionnés, ce qui traduit le temps gagné lors des 3 passages de témoin grâce au départ lancé."]
[null,null,"(3)    L’enseignant fait la somme des deux performances réalisées par la même équipe. Lors de la seconde prestation les rôles de relayeurs postes 1 et 4 sont échangés dans l’ordre avec les postes 2 et 3 .Le changement de rôles permet de vérifier la faculté de s’adapter à différentes places possibles dans un relais. (départ- arrivée, deuxième et troisième relais)."]
[]
[]
[]
[null,null,"RELAIS-VITESSE N4"]
[null,null,"COMPETENCES ATTENDUES",null,null,null,null,null,"PRINCIPES D’ELABORATION DE L’EPREUVE"]
[null,null,"NIVEAU 4 :\nPour produire la meilleure performance optimiser les vitesses de course du donneur et du receveur en assurant une transmission efficace et valide, grâce à un repérage et un code de communication stabilisés.",null,null,null,null,null,"1. Chaque élève réalise un 50 mètres départ en starting-blocks commandé par un signal extérieur (2 essais sont possibles).\n2. Les équipes de relais (1) effectuent chacune 2 parcours de 4 x 50 mètres, départ en starting-blocks  commandé. Lors de la 2ième tentative les coureurs changent de place de la façon suivante : le poste 1passe au 2 et le poste 4 au 3 et réciproquement. Lorsque le témoin ne franchit pas la ligne d’arrivée, un essai supplémentaire est accordé afin de pouvoir comparer les 2  tentatives (et ceci  dans chacun des cas).\nLes zones de transmission et d’élan sont les zones conventionnelles fédérales (10m d’élan , 20m de transmission ). Chaque élève est noté selon les critères suivants :\nPour 25% sur sa performance sur 50m individuel.\nPour 25% sur la différence entre la somme des temps réalisés sur 50m des 4 relayeurs et le meilleur temps des 2 relais effectués. Pour 25%  sur la somme des 2 performances réalisées lors des 2 parcours de relais dont l’un avec changement des postes 1-2 / 3-4. Pour 25% sur la validité et l’efficacité des transmissions."]
[null,null,"POINTS A AFFECTER","ELEMENTS A EVALUER","COMPETENCE DE NIVEAU 4 EN COURS D’ACQUISITION\nDe 0 à 09 pts",null,null,null,null,null,null,null,"COMPETENCE DE NIVEAU 4 ACQUISE\nDe 10 à 20 pts"]
[null,null,"05 Points","Performance Individuelle sur 50m.\nTemps individuel sur 50 mètres.","Temps filles","Temps garçons","Note\n/ 05","Note\n/ 20","Temps filles","Temps garçons","Note\n/ 05","Note\n/ 20","Temps ) filles",null,"Temps garçons",null,"Note\n/ 05","Note\n/ 20",null,"Temps filles",null,"Temps garçons",null,"Note\n/ 05","Note/ 20"]
[null,null,null,null,10.199999999999999,9,0,0,9.3000000000000007,7.9,1.3,5,8.8000000000000007,null,7.4,null,2.5,10,null,8.1999999999999993,null,6.8,null,4,16]
[null,null,null,null,9.8000000000000007,8.6,0.3,1,9.1999999999999993,7.8,1.5,6,8.6999999999999993,null,7.3,null,2.8,11,null,8.1,null,6.7,null,4.3,17]
[null,null,null,null,9.6,8.3000000000000007,0.5,2,9.1,7.7,1.8,7,8.6,null,7.2,null,3,12,null,8,null,6.6,null,4.5,18]
[null,null,null,null,9.5,8.1,0.8,3,9,7.6,2,8,8.5,null,7.1,null,3.3,13,null,7.9,null,6.5,null,4.8,19]
[null,null,null,null,9.4,8,1,4,8.9,7.5,2.2999999999999998,9,8.4,null,7,null,3.5,14,null,7.8,null,6.4,null,5,20]
[null,null,null,null,null,null,null,null,null,null,null,null,8.3000000000000007,null,6.9,null,3.8,15]
[null,null,"05 Points","Indice de transmission\nDifférence entre  le meilleur temps réalisé sur 4x50 mètres (2) et la somme des temps des 4 coureurs sur 50m .",null,null,null,null,"Note\n/ 20","Note\n/ 05","Ecart en secondes T relais – T ind",null,"Note\n/ 20","Note\n/ 05",null,"Ecart en secondes T relais – T ind",null,null,"Note\n/ 20",null,"Note\n/ 05",null,"Ecart en secondes T relais – T ind"]
[null,null,null,null,null,null,null,null,0,0,"- 0. 2"]
[null,null,null,null,null,null,null,null,2,0.5,"- 0. 4",null,10,2.5,null,-1.3,null,null,16,null,4,null,"- 1. 8"]
[null,null,null,null,null,null,null,null,4,1,"- 0. 8",null,12,3,null,-1.5,null,null,18,null,4.5,null,"– 2.0"]
[null,null,null,null,null,null,null,null,6,1.5,-1,null,14,3.5,null,"- 1. 6",null,null,20,null,5,null,"> à - 2.2"]
[null,null,null,null,null,null,null,null,8,2,-1.2]
[null,null,"05 Points","Performances sur 4X50m\nTemps cumulés des 2 4x50m,sans et avec changement de rôle (3).","Temps filles","Temps garçons","Note\n/ 05","Note\n/ 20","Temps filles","Temps garçons","Note\n/ 05","Note\n/ 20","Temps) filles",null,"Temps garçons",null,"Note\n/ 05","Note\n/ 20",null,"Temps filles",null,"Temps garçons",null,"Note\n/ 05","Note/ 20"]
[null,null,null,null,75.8,63,0,0,72.8,61,1.3,5,69.8,null,59,null,2.5,10,null,66.2,null,55.8,null,4,16]
[null,null,null,null,75.2,62.6,0.3,1,72.2,60.6,1.5,6,69.2,null,58.6,null,2.8,11,null,65.599999999999994,null,55.2,null,4.3,17]
[null,null,null,null,74.599999999999994,62.2,0.5,2,71.599999999999994,60.2,1.8,7,68.599999999999994,null,58.2,null,3,12,null,65,null,54.6,null,4.5,18]
[null,null,null,null,74,61.8,0.8,3,71,59.8,2,8,68,null,57.6,null,3.3,13,null,64.400000000000006,null,54,null,4.8,19]
[null,null,null,null,73.400000000000006,61.4,1,4,70.400000000000006,59.4,2.2999999999999998,9,67.400000000000006,null,57,null,3.5,14,null,63.8,null,53.4,null,5,20]
[null,null,null,null,null,null,null,null,null,null,null,null,66.8,null,56.4,null,3.8,15]
[null,null,"05 Points","Etre capable d’assurer une transmission valide (4)\nEtre capable d’assurer une transmission efficace (4)",null,null,null,null,"Chaque coureur concerné par trois charnières de relais réalise une transmission valide\n0,5pt\nTransmission réalisée sans tampon (5) mais avec un  ralentissement net du receveur\n1,5pt",null,null,null,"Chaque coureur concerné par trois charnières de relais réalise deux transmissions valides\n1pt\nTransmission réalisée avec un léger ralentissement du témoin\n2,5pt",null,null,null,null,null,"Chaque coureur concerné par trois charnières de relais réalise tois transmissions valides\n2pts\nTransmission réalisée avec une synchronisation des vitesses des deux coureurs\n3pts"]
[]
[]
[]
[null,null,"EVALUATION CYCLE"]
[null,null,"Etre capable de courir, observer, s'échauffer régulièrement et s'organiser collectivement pour progresser.",null,null,null,null,null,"Chaque élève doit courir plusieurs fois pour tenter de réaliser des perfs, il doit poiuvoir analyser sa performance et celle de ses camarades, s'échauffer correctement pour réduire les risques d eblessures et s'orgnaiser au sein d'un groupe pour réaliser une situation et un relais coordonnée."]
[null,null,"POINTS A AFFECTER","ELEMENTS A EVALUER","COMPETENCE DE NIVEAU 4 EN COURS D’ACQUISITION\nDe 0 à 09 pts",null,null,null,null,null,null,null,"COMPETENCE DE NIVEAU 4 ACQUISE\nDe 10 à 20 pts"]
[null,null,"05 Points","S'échauffer correctement"]
[null,null,null,null,"A definir en 2017"]
[]
[]
[]
[]
[]
[null,null,"05 Points","Courir régulièrement"]
[]
[]
[]
[]
[]
[null,null,"05 Points","Observer régulièrement"]
[]
[]
[]
[]
[]
[]
[null,null,"05 Points","S'organiser collectivement"]

{"sheet":"APPEL","index":4,"n_rows":38,"n_cols":28,"rows_kept":38,"cut":false,"hidden":false,"merged":[[0,19,0,20],[0,22,0,23],[0,25,0,26],[0,1,0,2],[0,4,0,5],[0,7,0,8],[0,10,0,11],[0,13,0,14],[0,16,0,17]]}
[null,"1TU-GA",null,null,"1TU-GA2",null,null,"1COMELEC",null,null,"TTU TELEC",null,null,"1GA",null,null,"1TU",null,null,"STAGE"]
[null,"NOMS","PRENOMS","sexe","NOMS","PRENOMS","sexe","NOMS","PRENOMS","sexe","NOMS","PRENOMS","sexe","NOMS","PRENOMS","sexe","NOMS","PRENOMS","sexe","NOMS","PRENOMS","sexe","NOMS","PRENOMS","sexe","NOMS","PRENOMS","sexe"]
[1,null,"Abraham","g",null,"Ali Malek","g",null,"Abdelmalik","g",null,"Amir","g"]
[2,null,"Aimane","f",null,"Aline","f",null,"Hamza","g",null,"Yacine","g"]
[3,null,"Amel","f",null,"Alya","f",null,"Wassim","g",null,"Emre","g"]
[4,null,"Amira","f",null,"Amine","g",null,"Erol","g",null,"Emin","g"]
[5,null,"Anis","g",null,"Badis","g",null,"Rayan","g",null,"Mouhamadou","g"]
[6,null,"Beyza","f",null,"Jean-Michaël","g",null,"Ismail","g",null,"Hedi","g"]
[7,null,"Clarky","g",null,"Jessica","f",null,"Aslem","g",null,"Badrane","g"]
[8,null,"Djamel","g",null,"Kaïna","f",null,"Dounia","f",null,"Willy","g"]
[9,null,"Dounia","f",null,"Katy","f",null,"Daya","g",null,"Sombate","g"]
[10,null,"Eyat","g",null,"Léonard","g",null,"Erwan","g",null,"Yohann","g"]
[11,null,"Fatima-Zohra","f",null,"Marinho","g",null,"Marwan","g",null,"Badis","g"]
[12,null,"Hana","f",null,"Mervé","f",null,null,null,null,"Mustafa","g"]
[13,null,"Ikram","f",null,"Mouhamadou Moustapha","g"]
[14,null,"Jairzhino","g",null,"Rayane","g"]
[15,null,"Mergim","f",null,"Sania","f"]
[16,null,"Myriam","f",null,"Sonia","f"]
[17,null,"Serone","f",null,"Suzana","f"]
[18,null,"Suha","f",null,"Thomas","g"]
[19,null,"Yassine","g"]
[20]
[21]
[22]
[23]
[24]
[25]
[26]
[27]
[28]
[29]
[30]
[31]
[32]
[33]
[34]
[35]
[36]

{"sheet":"DEBUT","index":5,"n_rows":305,"n_cols":51,"rows_kept":305,"cut":false,"hidden":false,"merged":[]}
[]
[]
[]
[null,"Sexe",null,"PERF /50m",null,"Niveau",null,"Temps G","Temps F","Note","/","Indice transmission","Note IT","x","1 seule Perf 4x50","Perf cumulées 4x50 G","Perf cumulées 4x50 F","Note 4x50 F","*","Echauffement","Note Echauffement","-","Transmission valide","Note transmission",null,"MARQUES","TRANSMISSION","POSTE",null,"PIEDS",null,"PERF",null,null,"Temps G","Temps F","Note","/","Indice transmission","Note IT","x","1 seule Perf 4x50","Perf cumulées 4x50 G","Perf cumulées 4x50 F","Note 4x50","*","Echauffement","Note Echauffement","-","Transmission valide","Note transmission"]
[null,"F",null,null,null,"N3",null,null,null,null,null,-30,5,null,20,38,38,5,null,"Echauffement progressif, étirements appropriés, vérification des marques de passages. Récupération active après les efforts (étirements, trottin).",2.5,null,"Chaque coureur concerné par trois charnières de relais réalise trois transmissions valides",2.5,null,"aucune","Ratée","aucune position",null,0,null,0,null,null,null,null,null,null,-30,5,null,null,30,30,5,null,"Echauffement progressif, étirements appropriés, vérification des marques de passages. Récupération active après les efforts (étirements, trottin).",2.5,null,"Chaque coureur concerné par trois charnières de relais réalise trois transmissions valides",2.5]
[null,"G",null,5.8,null,"N4",null,4,4,5,null,-2,5,null,20.100000000000001,43.5,null,5,null,"Echauffement pertinent, étirements présents mais succincts, peu de vérification de marques. Récupération après l’effort sous forme de trotting léger.",1.5,null,"Chaque coureur concerné par trois charnières de relais réalise deux transmissions valides",1.5,null,"inadaptées","Tamponne ou double","Position indéquate",null,1,null,1,null,null,4,4,5,null,-2,5,null,20.100000000000001,51.6,58.399999999999899,5,null,"Echauffement pertinent, étirements présents mais succincts, peu de vérification de marques. Récupération après l’effort sous forme de trotting léger.",1.5,null,"Chaque coureur concerné par trois charnières de relais réalise deux transmissions valides",1.5]
[null,null,null,5.9,null,null,null,5.3,6.7,5,null,-1.9,4.5,null,20.2,44,null,5,null,"Echauffement léger, étirements légers ou inexistants, pas ou peu de vérification de marques. Pas de récupération après les efforts.",1,null,"Chaque coureur concerné par trois charnières de relais réalise aucune ou\nune seule transmission valide.",1,null,"respectées","Lente","Poste efficace",null,2,null,2,null,null,6,7.4,5,null,-1.9,4.5,null,20.2,51.8,58.999999999999901,5,null,"Echauffement léger, étirements légers ou inexistants, pas ou peu de vérification de marques. Pas de récupération après les efforts.",1,null,"Chaque coureur concerné par trois charnières de relais réalise aucune ou\nune seule transmission valide.",1]
[null,null,null,6,null,null,null,5.4,6.8,5,null,-1.8,4.5,null,20.3,44.5,null,5,null,null,null,null,null,null,null,"évolutives","Imprécise","Capable d'occuper 2 postes",null,3,null,3,null,null,6.1,7.5,5,null,-1.8,4.5,null,20.3,52,59.599999999999902,5]
[null,null,null,6.1,null,null,null,5.5,6.9,5,null,-1.7,4,null,20.399999999999999,45,null,5,null,null,null,null,null,null,null,null,"Fluide",null,null,4,null,4,null,null,6.2,7.6,5,null,-1.7,4,null,20.399999999999999,52.2,60.199999999999903,5]
[null,null,null,6.2,null,null,null,5.6,7,5,null,-1.6,4,null,20.5,45.5,null,5,null,null,null,null,null,null,null,null,null,null,null,5,null,5,null,null,6.3,7.7,5,null,-1.6,4,null,20.5,52.4,60.8,5]
[null,null,null,6.3,null,null,null,5.7,7.1,5,null,-1.5,3.5,null,20.6,46,null,5,null,null,null,null,null,null,null,null,null,null,null,6,null,6,null,null,6.4,7.8,5,null,-1.5,3.5,null,20.6,52.6,61.4,5]
[null,null,null,6.4,null,null,null,5.8,7.2,5,null,-1.4,3,null,20.7,46.5,null,5,null,null,null,null,null,null,null,null,null,null,null,7,null,7,null,null,6.5,7.9,4.8,null,-1.4,3,null,20.7,52.8,62,5]
[null,null,null,6.5,null,null,null,5.9,7.3,5,null,-1.3,3,null,20.8,47,null,5,null,null,null,null,null,null,null,null,null,null,null,8,null,8,null,null,6.6,8,4.5,null,-1.3,3,null,20.8,53,62.6,5]
[null,null,null,6.6,null,null,null,6,7.4,5,null,-1.2,2.5,null,20.9,47.5,null,5,null,null,null,null,null,null,null,null,null,null,null,9,null,9,null,null,6.7,8.1,4.3,null,-1.2,2.5,null,20.9,53.2,63.2,5]
[null,null,null,6.7,null,null,null,6.1,7.5,5,null,-1.1000000000000001,2.5,null,21,48,null,5,null,null,null,null,null,null,null,null,null,null,null,10,null,10,null,null,6.8,8.1999999999999993,4,null,-1.1000000000000001,2.5,null,21,53.4,63.8,5]
[null,null,null,6.8,null,null,null,6.2,7.6,5,null,-1,2.5,null,21.1,48.5,null,5,null,null,null,null,null,null,null,null,null,null,null,11,null,11,null,null,6.9,8.3000000000000007,3.8,null,-1,2.5,null,21.1,54,64.400000000000006,4.8]
[null,null,null,6.9,null,null,null,6.3,7.7,5,null,-0.9,2,null,21.2,48.8,null,5,null,null,null,null,null,null,null,null,null,null,null,12,null,12,null,null,7,8.4,3.5,null,-0.9,2,null,21.2,54.6,65,4.5]
[null,null,null,7,null,null,null,6.4,7.8,5,null,-0.8,2,null,21.3,54,null,5,null,null,null,null,null,null,null,null,null,null,null,13,null,13,null,null,7.1,8.5,3.3,null,-0.8,2,null,21.3,55.2,65.599999999999994,4.3]
[null,null,null,7.1,null,null,null,6.5,7.9,5,null,-0.7,2,null,21.4,54.2,null,5,null,null,null,null,null,null,null,null,null,null,null,14,null,14,null,null,7.2,8.6,3,null,-0.7,2,null,21.4,55.8,66.2,4]
[null,null,null,7.2,null,null,null,6.6,8,5,null,-0.6,2,null,21.5,54.6,65,5,null,null,null,null,null,null,null,null,null,null,null,15,null,15,null,null,7.3,8.6999999999999993,2.8,null,-0.6,2,null,21.5,56.4,66.8,3.8]
[null,null,null,7.3,null,null,null,6.7,8.1,4.8,null,-0.5,2,null,21.6,55.2,65.599999999999994,4.8,null,null,null,null,null,null,null,null,null,null,null,16,null,16,null,null,7.4,8.8000000000000007,2.5,null,-0.5,2,null,21.6,57,67.400000000000006,3.5]
[null,null,null,7.3999999999999897,null,null,null,6.8,8.1999999999999993,4.5,null,-0.4,1.5,null,21.7,55.8,66.2,4.5,null,null,null,null,null,null,null,null,null,null,null,17,null,17,null,null,7.5,8.9,2.2999999999999998,null,-0.4,1.5,null,21.7,57.6,68,3.3]
[null,null,null,7.4999999999999902,null,null,null,6.9,8.3000000000000007,4.3,null,-0.3,1.5,null,21.8,56.4,66.8,4.3,null,null,null,null,null,null,null,null,null,null,null,18,null,18,null,null,7.6,9,2,null,-0.3,1.5,null,21.8,58.2,68.599999999999994,3]
[null,null,null,7.5999999999999899,null,null,null,7,8.4,4,null,-0.2,1.5,null,21.9,57,67.400000000000006,4,null,null,null,null,null,null,null,null,null,null,null,19,null,19,null,null,7.7,9.1,1.8,null,-0.2,1.5,null,21.9,58.6,69.2,2.8]
[null,null,null,7.6999999999999904,null,null,null,7.1,8.5,3.8,null,-0.1,1.5,null,22,57.6,68,3.8,null,null,null,null,null,null,null,null,null,null,null,20,null,20,null,null,7.8,9.1999999999999993,1.5,null,-0.1,1.5,null,22,59,69.8,2.5]
[null,null,null,7.7999999999999901,null,null,null,7.2,8.6,3.5,null,0,1.5,null,22.1,58.2,68.599999999999994,3.5,null,null,null,null,null,null,null,null,null,null,null,21,null,21,null,null,7.9,9.3000000000000007,1.3,null,0,1.5,null,22.1,59.4,70.400000000000006,2.2999999999999998]
[null,null,null,7.8999999999999897,null,null,null,7.3,8.6999999999999993,3.3,null,0.1,1,null,22.2,58.6,69.2,3.3,null,null,null,null,null,null,null,null,null,null,null,22,null,22,null,null,8,9.4,1,null,0.1,1,null,22.2,59.8,71,2]
[null,null,null,7.9999999999999902,null,null,null,7.4,8.8000000000000007,3,null,0.2,1,null,22.3,59,69.8,3,null,null,null,null,null,null,null,null,null,null,null,23,null,23,null,null,8.1,9.5,0.8,null,0.2,1,null,22.3,60.2,71.599999999999994,1.8]
[null,null,null,8.0999999999999908,null,null,null,7.5,8.9,2.8,null,0.3,1,null,22.4,59.4,70.400000000000006,2.8,null,null,null,null,null,null,null,null,null,null,null,24,null,24,null,null,8.3000000000000007,9.6,0.5,null,0.3,1,null,22.4,60.6,72.2,1.5]
[null,null,null,8.1999999999999904,null,null,null,7.6,9,2.5,null,0.4,0.5,null,22.5,59.8,71,2.5,null,null,null,null,null,null,null,null,null,null,null,25,null,25,null,null,8.6,9.8000000000000007,0.3,null,0.4,0.5,null,22.5,61,72.8,1.3]
[null,null,null,8.2999999999999901,null,null,null,7.7,9.1,2.2999999999999998,null,0.5,0.5,null,22.6,60.2,71.599999999999994,2.2999999999999998,null,null,null,null,null,null,null,null,null,null,null,26,null,26,null,null,9,10.199999999999999,0,null,0.5,0.5,null,22.6,61.4,73.400000000000006,1]
[null,null,null,8.3999999999999897,null,null,null,7.8,9.1999999999999993,2,null,0.6,0.5,null,22.7,60.6,72.2,2,null,null,null,null,null,null,null,null,null,null,null,27,null,27,null,null,9.5,10.5,0,null,0.6,0.5,null,22.7,61.8,74,0.8]
[null,null,null,8.4999999999999893,null,null,null,7.9,9.3000000000000007,1.8,null,0.7,0.5,null,22.8,61,72.8,1.8,null,null,null,null,null,null,null,null,null,null,null,28,null,28,null,null,9.9,11,0,null,0.7,0.5,null,22.8,62.2,74.599999999999994,0.5]
[null,null,null,8.5999999999999908,null,null,null,8,9.4,1.5,null,0.8,0,null,22.9,61.4,73.400000000000006,1.5,null,null,null,null,null,null,null,null,null,null,null,29,null,29,null,null,null,null,null,null,0.8,0,null,22.9,62.6,75.2,0.3]
[null,null,null,8.6999999999999904,null,null,null,8.1,9.5,1.3,null,0.9,0,null,23,61.8,74,1.3,null,null,null,null,null,null,null,null,null,null,null,30,null,30,null,null,null,null,null,null,0.9,0,null,23,63,75.8,0]
[null,null,null,8.7999999999999901,null,null,null,8.3000000000000007,9.6,1,null,null,null,null,23.1,62.2,74.599999999999994,1,null,null,null,null,null,null,null,null,null,null,null,31,null,31,null,null,null,null,null,null,null,null,null,23.1,63.4,76.400000000000006,0]
[null,null,null,8.8999999999999897,null,null,null,8.6,9.8000000000000007,0.8,null,null,null,null,23.2,62.6,75.2,0.8,null,null,null,null,null,null,null,null,null,null,null,32,null,32,null,null,null,null,null,null,null,null,null,23.2,63.8,77,0]
[null,null,null,8.9999999999999893,null,null,null,9,10.199999999999999,0.5,null,null,null,null,23.3,63,75.8,0.5,null,null,null,null,null,null,null,null,null,null,null,33,null,33,null,null,null,null,null,null,null,null,null,23.3,64.2,75.8,0]
[null,null,null,9.0999999999999908,null,null,null,9.5,10.5,0.3,null,null,null,null,23.4,63.4,76.400000000000006,0.3,null,null,null,null,null,null,null,null,null,null,null,34,null,34,null,null,null,null,null,null,null,null,null,23.4]
[null,null,null,9.1999999999999904,null,null,null,9.9,11,0,null,null,null,null,23.5,63.8,77,0,null,null,null,null,null,null,null,null,null,null,null,35,null,35,null,null,null,null,null,null,null,null,null,23.5]
[null,null,null,9.2999999999999901,null,null,null,null,null,null,null,null,null,null,23.6,null,null,null,null,null,null,null,null,null,null,null,null,null,null,36,null,36,null,null,null,null,null,null,null,null,null,23.6]
[null,null,null,9.3999999999999897,null,null,null,null,null,null,null,null,null,null,23.7,null,null,null,null,null,null,null,null,null,null,null,null,null,null,37,null,37,null,null,null,null,null,null,null,null,null,23.7]
[null,null,null,9.4999999999999893,null,null,null,null,null,null,null,null,null,null,23.8,null,null,null,null,null,null,null,null,null,null,null,null,null,null,38,null,38,null,null,null,null,null,null,null,null,null,23.8]
[null,null,null,9.5999999999999908,null,null,null,null,null,null,null,null,null,null,23.9,null,null,null,null,null,null,null,null,null,null,null,null,null,null,39,null,39,null,null,null,null,null,null,null,null,null,23.9]
[null,null,null,9.6999999999999904,null,null,null,null,null,null,null,null,null,null,24,null,null,null,null,null,null,null,null,null,null,null,null,null,null,40,null,40,null,null,null,null,null,null,null,null,null,24]
[null,null,null,9.7999999999999901,null,null,null,null,null,null,null,null,null,null,24.1,null,null,null,null,null,null,null,null,null,null,null,null,null,null,41,null,41,null,null,null,null,null,null,null,null,null,24.1]
[null,null,null,9.8999999999999897,null,null,null,null,null,null,null,null,null,null,24.2,null,null,null,null,null,null,null,null,null,null,null,null,null,null,42,null,42,null,null,null,null,null,null,null,null,null,24.2]
[null,null,null,9.9999999999999893,null,null,null,null,null,null,null,null,null,null,24.3,null,null,null,null,null,null,null,null,null,null,null,null,null,null,43,null,43,null,null,null,null,null,null,null,null,null,24.3]
[null,null,null,10.1,null,null,null,null,null,null,null,null,null,null,24.4,null,null,null,null,null,null,null,null,null,null,null,null,null,null,44,null,44,null,null,null,null,null,null,null,null,null,24.4]
[null,null,null,10.199999999999999,null,null,null,null,null,null,null,null,null,null,24.5,null,null,null,null,null,null,null,null,null,null,null,null,null,null,45,null,45,null,null,null,null,null,null,null,null,null,24.5]
[null,null,null,10.3,null,null,null,null,null,null,null,null,null,null,24.6,null,null,null,null,null,null,null,null,null,null,null,null,null,null,46,null,46,null,null,null,null,null,null,null,null,null,24.6]
[null,null,null,10.4,null,null,null,null,null,null,null,null,null,null,24.7,null,null,null,null,null,null,null,null,null,null,null,null,null,null,47,null,47,null,null,null,null,null,null,null,null,null,24.7]
[null,null,null,10.5,null,null,null,null,null,null,null,null,null,null,24.8,null,null,null,null,null,null,null,null,null,null,null,null,null,null,48,null,48,null,null,null,null,null,null,null,null,null,24.8]
[null,null,null,10.6,null,null,null,null,null,null,null,null,null,null,24.9,null,null,null,null,null,null,null,null,null,null,null,null,null,null,49,null,49,null,null,null,null,null,null,null,null,null,24.9]
[null,null,null,10.7,null,null,null,null,null,null,null,null,null,null,25,null,null,null,null,null,null,null,null,null,null,null,null,null,null,null,null,50,null,null,null,null,null,null,null,null,null,25]
[null,null,null,10.8,null,null,null,null,null,null,null,null,null,null,25.1,null,null,null,null,null,null,null,null,null,null,null,null,null,null,null,null,51,null,null,null,null,null,null,null,null,null,25.1]
[null,null,null,10.9,null,null,null,null,null,null,null,null,null,null,25.2,null,null,null,null,null,null,null,null,null,null,null,null,null,null,null,null,52,null,null,null,null,null,null,null,null,null,25.2]
[null,null,null,11,null,null,null,null,null,null,null,null,null,null,25.3,null,null,null,null,null,null,null,null,null,null,null,null,null,null,null,null,53,null,null,null,null,null,null,null,null,null,25.3]
[null,null,null,11.1,null,null,null,null,null,null,null,null,null,null,25.4,null,null,null,null,null,null,null,null,null,null,null,null,null,null,null,null,54,null,null,null,null,null,null,null,null,null,25.4]
[null,null,null,11.2,null,null,null,null,null,null,null,null,null,null,25.5,null,null,null,null,null,null,null,null,null,null,null,null,null,null,null,null,55,null,null,null,null,null,null,null,null,null,25.5]
[null,null,null,11.3,null,null,null,null,null,null,null,null,null,null,25.6,null,null,null,null,null,null,null,null,null,null,null,null,null,null,null,null,56,null,null,null,null,null,null,null,null,null,25.6]
[null,null,null,11.4,null,null,null,null,null,null,null,null,null,null,25.7,null,null,null,null,null,null,null,null,null,null,null,null,null,null,null,null,57,null,null,null,null,null,null,null,null,null,25.7]
[null,null,null,11.5,null,null,null,null,null,null,null,null,null,null,25.8,null,null,null,null,null,null,null,null,null,null,null,null,null,null,null,null,58,null,null,null,null,null,null,null,null,null,25.8]
[null,null,null,11.6,null,null,null,null,null,null,null,null,null,null,25.9,null,null,null,null,null,null,null,null,null,null,null,null,null,null,null,null,59,null,null,null,null,null,null,null,null,null,25.9]
[null,null,null,11.7,null,null,null,null,null,null,null,null,null,null,26,null,null,null,null,null,null,null,null,null,null,null,null,null,null,null,null,60,null,null,null,null,null,null,null,null,null,26]
[null,null,null,11.8,null,null,null,null,null,null,null,null,null,null,26.1,null,null,null,null,null,null,null,null,null,null,null,null,null,null,null,null,61,null,null,null,null,null,null,null,null,null,26.1]
[null,null,null,11.9,null,null,null,null,null,null,null,null,null,null,26.2,null,null,null,null,null,null,null,null,null,null,null,null,null,null,null,null,62,null,null,null,null,null,null,null,null,null,26.2]
[null,null,null,12,null,null,null,null,null,null,null,null,null,null,26.3,null,null,null,null,null,null,null,null,null,null,null,null,null,null,null,null,63,null,null,null,null,null,null,null,null,null,26.3]
[null,null,null,12.1,null,null,null,null,null,null,null,null,null,null,26.4,null,null,null,null,null,null,null,null,null,null,null,null,null,null,null,null,64,null,null,null,null,null,null,null,null,null,26.4]
[null,null,null,12.2,null,null,null,null,null,null,null,null,null,null,26.5,null,null,null,null,null,null,null,null,null,null,null,null,null,null,null,null,65,null,null,null,null,null,null,null,null,null,26.5]
[null,null,null,12.3,null,null,null,null,null,null,null,null,null,null,26.6,null,null,null,null,null,null,null,null,null,null,null,null,null,null,null,null,66,null,null,null,null,null,null,null,null,null,26.6]
[null,null,null,12.4,null,null,null,null,null,null,null,null,null,null,26.7,null,null,null,null,null,null,null,null,null,null,null,null,null,null,null,null,67,null,null,null,null,null,null,null,null,null,26.7]
[null,null,null,12.5,null,null,null,null,null,null,null,null,null,null,26.8,null,null,null,null,null,null,null,null,null,null,null,null,null,null,null,null,68,null,null,null,null,null,null,null,null,null,26.8]
[null,null,null,12.6,null,null,null,null,null,null,null,null,null,null,26.9,null,null,null,null,null,null,null,null,null,null,null,null,null,null,null,null,69,null,null,null,null,null,null,null,null,null,26.9]
[null,null,null,12.7,null,null,null,null,null,null,null,null,null,null,27,null,null,null,null,null,null,null,null,null,null,null,null,null,null,null,null,70,null,null,null,null,null,null,null,null,null,27]
[null,null,null,12.8,null,null,null,null,null,null,null,null,null,null,27.1,null,null,null,null,null,null,null,null,null,null,null,null,null,null,null,null,71,null,null,null,null,null,null,null,null,null,27.1]
[null,null,null,12.9,null,null,null,null,null,null,null,null,null,null,27.2,null,null,null,null,null,null,null,null,null,null,null,null,null,null,null,null,72,null,null,null,null,null,null,null,null,null,27.2]
[null,null,null,13,null,null,null,null,null,null,null,null,null,null,27.3,null,null,null,null,null,null,null,null,null,null,null,null,null,null,null,null,73,null,null,null,null,null,null,null,null,null,27.3]
[null,null,null,13.1,null,null,null,null,null,null,null,null,null,null,27.4,null,null,null,null,null,null,null,null,null,null,null,null,null,null,null,null,74,null,null,null,null,null,null,null,null,null,27.4]
[null,null,null,13.2,null,null,null,null,null,null,null,null,null,null,27.5,null,null,null,null,null,null,null,null,null,null,null,null,null,null,null,null,75,null,null,null,null,null,null,null,null,null,27.5]
[null,null,null,13.3,null,null,null,null,null,null,null,null,null,null,27.6,null,null,null,null,null,null,null,null,null,null,null,null,null,null,null,null,76,null,null,null,null,null,null,null,null,null,27.6]
[null,null,null,13.4,null,null,null,null,null,null,null,null,null,null,27.7,null,null,null,null,null,null,null,null,null,null,null,null,null,null,null,null,77,null,null,null,null,null,null,null,null,null,27.7]
[null,null,null,13.5,null,null,null,null,null,null,null,null,null,null,27.8,null,null,null,null,null,null,null,null,null,null,null,null,null,null,null,null,78,null,null,null,null,null,null,null,null,null,27.8]
[null,null,null,13.6,null,null,null,null,null,null,null,null,null,null,27.9,null,null,null,null,null,null,null,null,null,null,null,null,null,null,null,null,79,null,null,null,null,null,null,null,null,null,27.9]
[null,null,null,13.7,null,null,null,null,null,null,null,null,null,null,28,null,null,null,null,null,null,null,null,null,null,null,null,null,null,null,null,80,null,null,null,null,null,null,null,null,null,28]
[null,null,null,13.8,null,null,null,null,null,null,null,null,null,null,28.1,null,null,null,null,null,null,null,null,null,null,null,null,null,null,null,null,81,null,null,null,null,null,null,null,null,null,28.1]
[null,null,null,13.9,null,null,null,null,null,null,null,null,null,null,28.2,null,null,null,null,null,null,null,null,null,null,null,null,null,null,null,null,82,null,null,null,null,null,null,null,null,null,28.2]
[null,null,null,14,null,null,null,null,null,null,null,null,null,null,28.3,null,null,null,null,null,null,null,null,null,null,null,null,null,null,null,null,83,null,null,null,null,null,null,null,null,null,28.3]
[null,null,null,14.1,null,null,null,null,null,null,null,null,null,null,28.4,null,null,null,null,null,null,null,null,null,null,null,null,null,null,null,null,84,null,null,null,null,null,null,null,null,null,28.4]
[null,null,null,14.2,null,null,null,null,null,null,null,null,null,null,28.5,null,null,null,null,null,null,null,null,null,null,null,null,null,null,null,null,85,null,null,null,null,null,null,null,null,null,28.5]
[null,null,null,14.3,null,null,null,null,null,null,null,null,null,null,28.6,null,null,null,null,null,null,null,null,null,null,null,null,null,null,null,null,86,null,null,null,null,null,null,null,null,null,28.6]
[null,null,null,14.4,null,null,null,null,null,null,null,null,null,null,28.7,null,null,null,null,null,null,null,null,null,null,null,null,null,null,null,null,87,null,null,null,null,null,null,null,null,null,28.7]
[null,null,null,null,null,null,null,null,null,null,null,null,null,null,28.8,null,null,null,null,null,null,null,null,null,null,null,null,null,null,null,null,88,null,null,null,null,null,null,null,null,null,28.8]
[null,null,null,null,null,null,null,null,null,null,null,null,null,null,28.9,null,null,null,null,null,null,null,null,null,null,null,null,null,null,null,null,89,null,null,null,null,null,null,null,null,null,28.9]
[null,null,null,null,null,null,null,null,null,null,null,null,null,null,29,null,null,null,null,null,null,null,null,null,null,null,null,null,null,null,null,90,null,null,null,null,null,null,null,null,null,29]
[null,null,null,null,null,null,null,null,null,null,null,null,null,null,29.1,null,null,null,null,null,null,null,null,null,null,null,null,null,null,null,null,91,null,null,null,null,null,null,null,null,null,29.1]
[null,null,null,null,null,null,null,null,null,null,null,null,null,null,29.2,null,null,null,null,null,null,null,null,null,null,null,null,null,null,null,null,92,null,null,null,null,null,null,null,null,null,29.2]
[null,null,null,null,null,null,null,null,null,null,null,null,null,null,29.3,null,null,null,null,null,null,null,null,null,null,null,null,null,null,null,null,93,null,null,null,null,null,null,null,null,null,29.3]
[null,null,null,null,null,null,null,null,null,null,null,null,null,null,29.4,null,null,null,null,null,null,null,null,null,null,null,null,null,null,null,null,94,null,null,null,null,null,null,null,null,null,29.4]
[null,null,null,null,null,null,null,null,null,null,null,null,null,null,29.5,null,null,null,null,null,null,null,null,null,null,null,null,null,null,null,null,95,null,null,null,null,null,null,null,null,null,29.5]
[null,null,null,null,null,null,null,null,null,null,null,null,null,null,29.6,null,null,null,null,null,null,null,null,null,null,null,null,null,null,null,null,96,null,null,null,null,null,null,null,null,null,29.6]
[null,null,null,null,null,null,null,null,null,null,null,null,null,null,29.7,null,null,null,null,null,null,null,null,null,null,null,null,null,null,null,null,97,null,null,null,null,null,null,null,null,null,29.7]
[null,null,null,null,null,null,null,null,null,null,null,null,null,null,29.8,null,null,null,null,null,null,null,null,null,null,null,null,null,null,null,null,98,null,null,null,null,null,null,null,null,null,29.8]
[null,null,null,null,null,null,null,null,null,null,null,null,null,null,29.9,null,null,null,null,null,null,null,null,null,null,null,null,null,null,null,null,99,null,null,null,null,null,null,null,null,null,29.9]
[null,null,null,null,null,null,null,null,null,null,null,null,null,null,30,null,null,null,null,null,null,null,null,null,null,null,null,null,null,null,null,100,null,null,null,null,null,null,null,null,null,30]
[null,null,null,null,null,null,null,null,null,null,null,null,null,null,30.1,null,null,null,null,null,null,null,null,null,null,null,null,null,null,null,null,null,null,null,null,null,null,null,null,null,null,30.1]
[null,null,null,null,null,null,null,null,null,null,null,null,null,null,30.2,null,null,null,null,null,null,null,null,null,null,null,null,null,null,null,null,null,null,null,null,null,null,null,null,null,null,30.2]
[null,null,null,null,null,null,null,null,null,null,null,null,null,null,30.3,null,null,null,null,null,null,null,null,null,null,null,null,null,null,null,null,null,null,null,null,null,null,null,null,null,null,30.3]
[null,null,null,null,null,null,null,null,null,null,null,null,null,null,30.4,null,null,null,null,null,null,null,null,null,null,null,null,null,null,null,null,null,null,null,null,null,null,null,null,null,null,30.4]
[null,null,null,null,null,null,null,null,null,null,null,null,null,null,30.5,null,null,null,null,null,null,null,null,null,null,null,null,null,null,null,null,null,null,null,null,null,null,null,null,null,null,30.5]
[null,null,null,null,null,null,null,null,null,null,null,null,null,null,30.6,null,null,null,null,null,null,null,null,null,null,null,null,null,null,null,null,null,null,null,null,null,null,null,null,null,null,30.6]
[null,null,null,null,null,null,null,null,null,null,null,null,null,null,30.7,null,null,null,null,null,null,null,null,null,null,null,null,null,null,null,null,null,null,null,null,null,null,null,null,null,null,30.7]
[null,null,null,null,null,null,null,null,null,null,null,null,null,null,30.8,null,null,null,null,null,null,null,null,null,null,null,null,null,null,null,null,null,null,null,null,null,null,null,null,null,null,30.8]
[null,null,null,null,null,null,null,null,null,null,null,null,null,null,30.9,null,null,null,null,null,null,null,null,null,null,null,null,null,null,null,null,null,null,null,null,null,null,null,null,null,null,30.9]
[null,null,null,null,null,null,null,null,null,null,null,null,null,null,31,null,null,null,null,null,null,null,null,null,null,null,null,null,null,null,null,null,null,null,null,null,null,null,null,null,null,31]
[null,null,null,null,null,null,null,null,null,null,null,null,null,null,31.1,null,null,null,null,null,null,null,null,null,null,null,null,null,null,null,null,null,null,null,null,null,null,null,null,null,null,31.1]
[null,null,null,null,null,null,null,null,null,null,null,null,null,null,31.2,null,null,null,null,null,null,null,null,null,null,null,null,null,null,null,null,null,null,null,null,null,null,null,null,null,null,31.2]
[null,null,null,null,null,null,null,null,null,null,null,null,null,null,31.3,null,null,null,null,null,null,null,null,null,null,null,null,null,null,null,null,null,null,null,null,null,null,null,null,null,null,31.3]
[null,null,null,null,null,null,null,null,null,null,null,null,null,null,31.4,null,null,null,null,null,null,null,null,null,null,null,null,null,null,null,null,null,null,null,null,null,null,null,null,null,null,31.4]
[null,null,null,null,null,null,null,null,null,null,null,null,null,null,31.5,null,null,null,null,null,null,null,null,null,null,null,null,null,null,null,null,null,null,null,null,null,null,null,null,null,null,31.5]
[null,null,null,null,null,null,null,null,null,null,null,null,null,null,31.6,null,null,null,null,null,null,null,null,null,null,null,null,null,null,null,null,null,null,null,null,null,null,null,null,null,null,31.6]
[null,null,null,null,null,null,null,null,null,null,null,null,null,null,31.7,null,null,null,null,null,null,null,null,null,null,null,null,null,null,null,null,null,null,null,null,null,null,null,null,null,null,31.7]
[null,null,null,null,null,null,null,null,null,null,null,null,null,null,31.8,null,null,null,null,null,null,null,null,null,null,null,null,null,null,null,null,null,null,null,null,null,null,null,null,null,null,31.8]
[null,null,null,null,null,null,null,null,null,null,null,null,null,null,31.9,null,null,null,null,null,null,null,null,null,null,null,null,null,null,null,null,null,null,null,null,null,null,null,null,null,null,31.9]
[null,null,null,null,null,null,null,null,null,null,null,null,null,null,32,null,null,null,null,null,null,null,null,null,null,null,null,null,null,null,null,null,null,null,null,null,null,null,null,null,null,32]
[null,null,null,null,null,null,null,null,null,null,null,null,null,null,32.1,null,null,null,null,null,null,null,null,null,null,null,null,null,null,null,null,null,null,null,null,null,null,null,null,null,null,32.1]
[null,null,null,null,null,null,null,null,null,null,null,null,null,null,32.200000000000003,null,null,null,null,null,null,null,null,null,null,null,null,null,null,null,null,null,null,null,null,null,null,null,null,null,null,32.200000000000003]
[null,null,null,null,null,null,null,null,null,null,null,null,null,null,32.299999999999997,null,null,null,null,null,null,null,null,null,null,null,null,null,null,null,null,null,null,null,null,null,null,null,null,null,null,32.299999999999997]
[null,null,null,null,null,null,null,null,null,null,null,null,null,null,32.4,null,null,null,null,null,null,null,null,null,null,null,null,null,null,null,null,null,null,null,null,null,null,null,null,null,null,32.4]
[null,null,null,null,null,null,null,null,null,null,null,null,null,null,32.5,null,null,null,null,null,null,null,null,null,null,null,null,null,null,null,null,null,null,null,null,null,null,null,null,null,null,32.5]
[null,null,null,null,null,null,null,null,null,null,null,null,null,null,32.6,null,null,null,null,null,null,null,null,null,null,null,null,null,null,null,null,null,null,null,null,null,null,null,null,null,null,32.6]
[null,null,null,null,null,null,null,null,null,null,null,null,null,null,32.700000000000003,null,null,null,null,null,null,null,null,null,null,null,null,null,null,null,null,null,null,null,null,null,null,null,null,null,null,32.700000000000003]
[null,null,null,null,null,null,null,null,null,null,null,null,null,null,32.799999999999997,null,null,null,null,null,null,null,null,null,null,null,null,null,null,null,null,null,null,null,null,null,null,null,null,null,null,32.799999999999997]
[null,null,null,null,null,null,null,null,null,null,null,null,null,null,32.9,null,null,null,null,null,null,null,null,null,null,null,null,null,null,null,null,null,null,null,null,null,null,null,null,null,null,32.9]
[null,null,null,null,null,null,null,null,null,null,null,null,null,null,33,null,null,null,null,null,null,null,null,null,null,null,null,null,null,null,null,null,null,null,null,null,null,null,null,null,null,33]
[null,null,null,null,null,null,null,null,null,null,null,null,null,null,33.1,null,null,null,null,null,null,null,null,null,null,null,null,null,null,null,null,null,null,null,null,null,null,null,null,null,null,33.1]
[null,null,null,null,null,null,null,null,null,null,null,null,null,null,33.200000000000003,null,null,null,null,null,null,null,null,null,null,null,null,null,null,null,null,null,null,null,null,null,null,null,null,null,null,33.200000000000003]
[null,null,null,null,null,null,null,null,null,null,null,null,null,null,33.299999999999997,null,null,null,null,null,null,null,null,null,null,null,null,null,null,null,null,null,null,null,null,null,null,null,null,null,null,33.299999999999997]
[null,null,null,null,null,null,null,null,null,null,null,null,null,null,33.4,null,null,null,null,null,null,null,null,null,null,null,null,null,null,null,null,null,null,null,null,null,null,null,null,null,null,33.4]
[null,null,null,null,null,null,null,null,null,null,null,null,null,null,33.5,null,null,null,null,null,null,null,null,null,null,null,null,null,null,null,null,null,null,null,null,null,null,null,null,null,null,33.5]
[null,null,null,null,null,null,null,null,null,null,null,null,null,null,33.6,null,null,null,null,null,null,null,null,null,null,null,null,null,null,null,null,null,null,null,null,null,null,null,null,null,null,33.6]
[null,null,null,null,null,null,null,null,null,null,null,null,null,null,33.700000000000003,null,null,null,null,null,null,null,null,null,null,null,null,null,null,null,null,null,null,null,null,null,null,null,null,null,null,33.700000000000003]
[null,null,null,null,null,null,null,null,null,null,null,null,null,null,33.799999999999997,null,null,null,null,null,null,null,null,null,null,null,null,null,null,null,null,null,null,null,null,null,null,null,null,null,null,33.799999999999997]
[null,null,null,null,null,null,null,null,null,null,null,null,null,null,33.9,null,null,null,null,null,null,null,null,null,null,null,null,null,null,null,null,null,null,null,null,null,null,null,null,null,null,33.9]
[null,null,null,null,null,null,null,null,null,null,null,null,null,null,34,null,null,null,null,null,null,null,null,null,null,null,null,null,null,null,null,null,null,null,null,null,null,null,null,null,null,34]
[null,null,null,null,null,null,null,null,null,null,null,null,null,null,34.1,null,null,null,null,null,null,null,null,null,null,null,null,null,null,null,null,null,null,null,null,null,null,null,null,null,null,34.1]
[null,null,null,null,null,null,null,null,null,null,null,null,null,null,34.200000000000003,null,null,null,null,null,null,null,null,null,null,null,null,null,null,null,null,null,null,null,null,null,null,null,null,null,null,34.200000000000003]
[null,null,null,null,null,null,null,null,null,null,null,null,null,null,34.299999999999997,null,null,null,null,null,null,null,null,null,null,null,null,null,null,null,null,null,null,null,null,null,null,null,null,null,null,34.299999999999997]
[null,null,null,null,null,null,null,null,null,null,null,null,null,null,34.4,null,null,null,null,null,null,null,null,null,null,null,null,null,null,null,null,null,null,null,null,null,null,null,null,null,null,34.4]
[null,null,null,null,null,null,null,null,null,null,null,null,null,null,34.5,null,null,null,null,null,null,null,null,null,null,null,null,null,null,null,null,null,null,null,null,null,null,null,null,null,null,34.5]
[null,null,null,null,null,null,null,null,null,null,null,null,null,null,34.6,null,null,null,null,null,null,null,null,null,null,null,null,null,null,null,null,null,null,null,null,null,null,null,null,null,null,34.6]
[null,null,null,null,null,null,null,null,null,null,null,null,null,null,34.700000000000003,null,null,null,null,null,null,null,null,null,null,null,null,null,null,null,null,null,null,null,null,null,null,null,null,null,null,34.700000000000003]
[null,null,null,null,null,null,null,null,null,null,null,null,null,null,34.799999999999997,null,null,null,null,null,null,null,null,null,null,null,null,null,null,null,null,null,null,null,null,null,null,null,null,null,null,34.799999999999997]
[null,null,null,null,null,null,null,null,null,null,null,null,null,null,34.9,null,null,null,null,null,null,null,null,null,null,null,null,null,null,null,null,null,null,null,null,null,null,null,null,null,null,34.9]
[null,null,null,null,null,null,null,null,null,null,null,null,null,null,35,null,null,null,null,null,null,null,null,null,null,null,null,null,null,null,null,null,null,null,null,null,null,null,null,null,null,35]
[null,null,null,null,null,null,null,null,null,null,null,null,null,null,35.1,null,null,null,null,null,null,null,null,null,null,null,null,null,null,null,null,null,null,null,null,null,null,null,null,null,null,35.1]
[null,null,null,null,null,null,null,null,null,null,null,null,null,null,35.200000000000003,null,null,null,null,null,null,null,null,null,null,null,null,null,null,null,null,null,null,null,null,null,null,null,null,null,null,35.200000000000003]
[null,null,null,null,null,null,null,null,null,null,null,null,null,null,35.299999999999997,null,null,null,null,null,null,null,null,null,null,null,null,null,null,null,null,null,null,null,null,null,null,null,null,null,null,35.299999999999997]
[null,null,null,null,null,null,null,null,null,null,null,null,null,null,35.4,null,null,null,null,null,null,null,null,null,null,null,null,null,null,null,null,null,null,null,null,null,null,null,null,null,null,35.4]
[null,null,null,null,null,null,null,null,null,null,null,null,null,null,35.5,null,null,null,null,null,null,null,null,null,null,null,null,null,null,null,null,null,null,null,null,null,null,null,null,null,null,35.5]
[null,null,null,null,null,null,null,null,null,null,null,null,null,null,35.6,null,null,null,null,null,null,null,null,null,null,null,null,null,null,null,null,null,null,null,null,null,null,null,null,null,null,35.6]
[null,null,null,null,null,null,null,null,null,null,null,null,null,null,35.700000000000003,null,null,null,null,null,null,null,null,null,null,null,null,null,null,null,null,null,null,null,null,null,null,null,null,null,null,35.700000000000003]
[null,null,null,null,null,null,null,null,null,null,null,null,null,null,35.799999999999997,null,null,null,null,null,null,null,null,null,null,null,null,null,null,null,null,null,null,null,null,null,null,null,null,null,null,35.799999999999997]
[null,null,null,null,null,null,null,null,null,null,null,null,null,null,35.9,null,null,null,null,null,null,null,null,null,null,null,null,null,null,null,null,null,null,null,null,null,null,null,null,null,null,35.9]
[null,null,null,null,null,null,null,null,null,null,null,null,null,null,36,null,null,null,null,null,null,null,null,null,null,null,null,null,null,null,null,null,null,null,null,null,null,null,null,null,null,36]
[null,null,null,null,null,null,null,null,null,null,null,null,null,null,36.1,null,null,null,null,null,null,null,null,null,null,null,null,null,null,null,null,null,null,null,null,null,null,null,null,null,null,36.1]
[null,null,null,null,null,null,null,null,null,null,null,null,null,null,36.200000000000003,null,null,null,null,null,null,null,null,null,null,null,null,null,null,null,null,null,null,null,null,null,null,null,null,null,null,36.200000000000003]
[null,null,null,null,null,null,null,null,null,null,null,null,null,null,36.299999999999997,null,null,null,null,null,null,null,null,null,null,null,null,null,null,null,null,null,null,null,null,null,null,null,null,null,null,36.299999999999997]
[null,null,null,null,null,null,null,null,null,null,null,null,null,null,36.4,null,null,null,null,null,null,null,null,null,null,null,null,null,null,null,null,null,null,null,null,null,null,null,null,null,null,36.4]
[null,null,null,null,null,null,null,null,null,null,null,null,null,null,36.5,null,null,null,null,null,null,null,null,null,null,null,null,null,null,null,null,null,null,null,null,null,null,null,null,null,null,36.5]
[null,null,null,null,null,null,null,null,null,null,null,null,null,null,36.6,null,null,null,null,null,null,null,null,null,null,null,null,null,null,null,null,null,null,null,null,null,null,null,null,null,null,36.6]
[null,null,null,null,null,null,null,null,null,null,null,null,null,null,36.700000000000003,null,null,null,null,null,null,null,null,null,null,null,null,null,null,null,null,null,null,null,null,null,null,null,null,null,null,36.700000000000003]
[null,null,null,null,null,null,null,null,null,null,null,null,null,null,36.799999999999997,null,null,null,null,null,null,null,null,null,null,null,null,null,null,null,null,null,null,null,null,null,null,null,null,null,null,36.799999999999997]
[null,null,null,null,null,null,null,null,null,null,null,null,null,null,36.9,null,null,null,null,null,null,null,null,null,null,null,null,null,null,null,null,null,null,null,null,null,null,null,null,null,null,36.9]
[null,null,null,null,null,null,null,null,null,null,null,null,null,null,37,null,null,null,null,null,null,null,null,null,null,null,null,null,null,null,null,null,null,null,null,null,null,null,null,null,null,37]
[null,null,null,null,null,null,null,null,null,null,null,null,null,null,37.1,null,null,null,null,null,null,null,null,null,null,null,null,null,null,null,null,null,null,null,null,null,null,null,null,null,null,37.1]
[null,null,null,null,null,null,null,null,null,null,null,null,null,null,37.200000000000003,null,null,null,null,null,null,null,null,null,null,null,null,null,null,null,null,null,null,null,null,null,null,null,null,null,null,37.200000000000003]
[null,null,null,null,null,null,null,null,null,null,null,null,null,null,37.299999999999997,null,null,null,null,null,null,null,null,null,null,null,null,null,null,null,null,null,null,null,null,null,null,null,null,null,null,37.299999999999997]
[null,null,null,null,null,null,null,null,null,null,null,null,null,null,37.4,null,null,null,null,null,null,null,null,null,null,null,null,null,null,null,null,null,null,null,null,null,null,null,null,null,null,37.4]
[null,null,null,null,null,null,null,null,null,null,null,null,null,null,37.5,null,null,null,null,null,null,null,null,null,null,null,null,null,null,null,null,null,null,null,null,null,null,null,null,null,null,37.5]
[null,null,null,null,null,null,null,null,null,null,null,null,null,null,37.6,null,null,null,null,null,null,null,null,null,null,null,null,null,null,null,null,null,null,null,null,null,null,null,null,null,null,37.6]
[null,null,null,null,null,null,null,null,null,null,null,null,null,null,37.700000000000003,null,null,null,null,null,null,null,null,null,null,null,null,null,null,null,null,null,null,null,null,null,null,null,null,null,null,37.700000000000003]
[null,null,null,null,null,null,null,null,null,null,null,null,null,null,37.799999999999997,null,null,null,null,null,null,null,null,null,null,null,null,null,null,null,null,null,null,null,null,null,null,null,null,null,null,37.799999999999997]
[null,null,null,null,null,null,null,null,null,null,null,null,null,null,37.9,null,null,null,null,null,null,null,null,null,null,null,null,null,null,null,null,null,null,null,null,null,null,null,null,null,null,37.9]
[null,null,null,null,null,null,null,null,null,null,null,null,null,null,38,null,null,null,null,null,null,null,null,null,null,null,null,null,null,null,null,null,null,null,null,null,null,null,null,null,null,38]
[null,null,null,null,null,null,null,null,null,null,null,null,null,null,38.1,null,null,null,null,null,null,null,null,null,null,null,null,null,null,null,null,null,null,null,null,null,null,null,null,null,null,38.1]
[null,null,null,null,null,null,null,null,null,null,null,null,null,null,38.200000000000003,null,null,null,null,null,null,null,null,null,null,null,null,null,null,null,null,null,null,null,null,null,null,null,null,null,null,38.200000000000003]
[null,null,null,null,null,null,null,null,null,null,null,null,null,null,38.299999999999997,null,null,null,null,null,null,null,null,null,null,null,null,null,null,null,null,null,null,null,null,null,null,null,null,null,null,38.299999999999997]
[null,null,null,null,null,null,null,null,null,null,null,null,null,null,38.4,null,null,null,null,null,null,null,null,null,null,null,null,null,null,null,null,null,null,null,null,null,null,null,null,null,null,38.4]
[null,null,null,null,null,null,null,null,null,null,null,null,null,null,38.5,null,null,null,null,null,null,null,null,null,null,null,null,null,null,null,null,null,null,null,null,null,null,null,null,null,null,38.5]
[null,null,null,null,null,null,null,null,null,null,null,null,null,null,38.6,null,null,null,null,null,null,null,null,null,null,null,null,null,null,null,null,null,null,null,null,null,null,null,null,null,null,38.6]
[null,null,null,null,null,null,null,null,null,null,null,null,null,null,38.700000000000003,null,null,null,null,null,null,null,null,null,null,null,null,null,null,null,null,null,null,null,null,null,null,null,null,null,null,38.700000000000003]
[null,null,null,null,null,null,null,null,null,null,null,null,null,null,38.799999999999997,null,null,null,null,null,null,null,null,null,null,null,null,null,null,null,null,null,null,null,null,null,null,null,null,null,null,38.799999999999997]
[null,null,null,null,null,null,null,null,null,null,null,null,null,null,38.9,null,null,null,null,null,null,null,null,null,null,null,null,null,null,null,null,null,null,null,null,null,null,null,null,null,null,38.9]
[null,null,null,null,null,null,null,null,null,null,null,null,null,null,39,null,null,null,null,null,null,null,null,null,null,null,null,null,null,null,null,null,null,null,null,null,null,null,null,null,null,39]
[null,null,null,null,null,null,null,null,null,null,null,null,null,null,39.1,null,null,null,null,null,null,null,null,null,null,null,null,null,null,null,null,null,null,null,null,null,null,null,null,null,null,39.1]
[null,null,null,null,null,null,null,null,null,null,null,null,null,null,39.200000000000003,null,null,null,null,null,null,null,null,null,null,null,null,null,null,null,null,null,null,null,null,null,null,null,null,null,null,39.200000000000003]
[null,null,null,null,null,null,null,null,null,null,null,null,null,null,39.299999999999997,null,null,null,null,null,null,null,null,null,null,null,null,null,null,null,null,null,null,null,null,null,null,null,null,null,null,39.299999999999997]
[null,null,null,null,null,null,null,null,null,null,null,null,null,null,39.4,null,null,null,null,null,null,null,null,null,null,null,null,null,null,null,null,null,null,null,null,null,null,null,null,null,null,39.4]
[null,null,null,null,null,null,null,null,null,null,null,null,null,null,39.5,null,null,null,null,null,null,null,null,null,null,null,null,null,null,null,null,null,null,null,null,null,null,null,null,null,null,39.5]
[null,null,null,null,null,null,null,null,null,null,null,null,null,null,39.6,null,null,null,null,null,null,null,null,null,null,null,null,null,null,null,null,null,null,null,null,null,null,null,null,null,null,39.6]
[null,null,null,null,null,null,null,null,null,null,null,null,null,null,39.700000000000003,null,null,null,null,null,null,null,null,null,null,null,null,null,null,null,null,null,null,null,null,null,null,null,null,null,null,39.700000000000003]
[null,null,null,null,null,null,null,null,null,null,null,null,null,null,39.799999999999997,null,null,null,null,null,null,null,null,null,null,null,null,null,null,null,null,null,null,null,null,null,null,null,null,null,null,39.799999999999997]
[null,null,null,null,null,null,null,null,null,null,null,null,null,null,39.9,null,null,null,null,null,null,null,null,null,null,null,null,null,null,null,null,null,null,null,null,null,null,null,null,null,null,39.9]
[null,null,null,null,null,null,null,null,null,null,null,null,null,null,40,null,null,null,null,null,null,null,null,null,null,null,null,null,null,null,null,null,null,null,null,null,null,null,null,null,null,40]
[null,null,null,null,null,null,null,null,null,null,null,null,null,null,40.1,null,null,null,null,null,null,null,null,null,null,null,null,null,null,null,null,null,null,null,null,null,null,null,null,null,null,40.1]
[null,null,null,null,null,null,null,null,null,null,null,null,null,null,40.200000000000003,null,null,null,null,null,null,null,null,null,null,null,null,null,null,null,null,null,null,null,null,null,null,null,null,null,null,40.200000000000003]
[null,null,null,null,null,null,null,null,null,null,null,null,null,null,40.299999999999997,null,null,null,null,null,null,null,null,null,null,null,null,null,null,null,null,null,null,null,null,null,null,null,null,null,null,40.299999999999997]
[null,null,null,null,null,null,null,null,null,null,null,null,null,null,40.4,null,null,null,null,null,null,null,null,null,null,null,null,null,null,null,null,null,null,null,null,null,null,null,null,null,null,40.4]
[null,null,null,null,null,null,null,null,null,null,null,null,null,null,40.5,null,null,null,null,null,null,null,null,null,null,null,null,null,null,null,null,null,null,null,null,null,null,null,null,null,null,40.5]
[null,null,null,null,null,null,null,null,null,null,null,null,null,null,40.6,null,null,null,null,null,null,null,null,null,null,null,null,null,null,null,null,null,null,null,null,null,null,null,null,null,null,40.6]
[null,null,null,null,null,null,null,null,null,null,null,null,null,null,40.700000000000003,null,null,null,null,null,null,null,null,null,null,null,null,null,null,null,null,null,null,null,null,null,null,null,null,null,null,40.700000000000003]
[null,null,null,null,null,null,null,null,null,null,null,null,null,null,40.799999999999997,null,null,null,null,null,null,null,null,null,null,null,null,null,null,null,null,null,null,null,null,null,null,null,null,null,null,40.799999999999997]
[null,null,null,null,null,null,null,null,null,null,null,null,null,null,40.9,null,null,null,null,null,null,null,null,null,null,null,null,null,null,null,null,null,null,null,null,null,null,null,null,null,null,40.9]
[null,null,null,null,null,null,null,null,null,null,null,null,null,null,41,null,null,null,null,null,null,null,null,null,null,null,null,null,null,null,null,null,null,null,null,null,null,null,null,null,null,41]
[null,null,null,null,null,null,null,null,null,null,null,null,null,null,41.1,null,null,null,null,null,null,null,null,null,null,null,null,null,null,null,null,null,null,null,null,null,null,null,null,null,null,41.1]
[null,null,null,null,null,null,null,null,null,null,null,null,null,null,41.2,null,null,null,null,null,null,null,null,null,null,null,null,null,null,null,null,null,null,null,null,null,null,null,null,null,null,41.2]
[null,null,null,null,null,null,null,null,null,null,null,null,null,null,41.3,null,null,null,null,null,null,null,null,null,null,null,null,null,null,null,null,null,null,null,null,null,null,null,null,null,null,41.3]
[null,null,null,null,null,null,null,null,null,null,null,null,null,null,41.4,null,null,null,null,null,null,null,null,null,null,null,null,null,null,null,null,null,null,null,null,null,null,null,null,null,null,41.4]
[null,null,null,null,null,null,null,null,null,null,null,null,null,null,41.5,null,null,null,null,null,null,null,null,null,null,null,null,null,null,null,null,null,null,null,null,null,null,null,null,null,null,41.5]
[null,null,null,null,null,null,null,null,null,null,null,null,null,null,41.6,null,null,null,null,null,null,null,null,null,null,null,null,null,null,null,null,null,null,null,null,null,null,null,null,null,null,41.6]
[null,null,null,null,null,null,null,null,null,null,null,null,null,null,41.7,null,null,null,null,null,null,null,null,null,null,null,null,null,null,null,null,null,null,null,null,null,null,null,null,null,null,41.7]
[null,null,null,null,null,null,null,null,null,null,null,null,null,null,41.8,null,null,null,null,null,null,null,null,null,null,null,null,null,null,null,null,null,null,null,null,null,null,null,null,null,null,41.8]
[null,null,null,null,null,null,null,null,null,null,null,null,null,null,41.9,null,null,null,null,null,null,null,null,null,null,null,null,null,null,null,null,null,null,null,null,null,null,null,null,null,null,41.9]
[null,null,null,null,null,null,null,null,null,null,null,null,null,null,42,null,null,null,null,null,null,null,null,null,null,null,null,null,null,null,null,null,null,null,null,null,null,null,null,null,null,42]
[null,null,null,null,null,null,null,null,null,null,null,null,null,null,42.1,null,null,null,null,null,null,null,null,null,null,null,null,null,null,null,null,null,null,null,null,null,null,null,null,null,null,42.1]
[null,null,null,null,null,null,null,null,null,null,null,null,null,null,42.2,null,null,null,null,null,null,null,null,null,null,null,null,null,null,null,null,null,null,null,null,null,null,null,null,null,null,42.2]
[null,null,null,null,null,null,null,null,null,null,null,null,null,null,42.3,null,null,null,null,null,null,null,null,null,null,null,null,null,null,null,null,null,null,null,null,null,null,null,null,null,null,42.3]
[null,null,null,null,null,null,null,null,null,null,null,null,null,null,42.4,null,null,null,null,null,null,null,null,null,null,null,null,null,null,null,null,null,null,null,null,null,null,null,null,null,null,42.4]
[null,null,null,null,null,null,null,null,null,null,null,null,null,null,42.5,null,null,null,null,null,null,null,null,null,null,null,null,null,null,null,null,null,null,null,null,null,null,null,null,null,null,42.5]
[null,null,null,null,null,null,null,null,null,null,null,null,null,null,42.6,null,null,null,null,null,null,null,null,null,null,null,null,null,null,null,null,null,null,null,null,null,null,null,null,null,null,42.6]
[null,null,null,null,null,null,null,null,null,null,null,null,null,null,42.7,null,null,null,null,null,null,null,null,null,null,null,null,null,null,null,null,null,null,null,null,null,null,null,null,null,null,42.7]
[null,null,null,null,null,null,null,null,null,null,null,null,null,null,42.8,null,null,null,null,null,null,null,null,null,null,null,null,null,null,null,null,null,null,null,null,null,null,null,null,null,null,42.8]
[null,null,null,null,null,null,null,null,null,null,null,null,null,null,42.9,null,null,null,null,null,null,null,null,null,null,null,null,null,null,null,null,null,null,null,null,null,null,null,null,null,null,42.9]
[null,null,null,null,null,null,null,null,null,null,null,null,null,null,43,null,null,null,null,null,null,null,null,null,null,null,null,null,null,null,null,null,null,null,null,null,null,null,null,null,null,43]
[null,null,null,null,null,null,null,null,null,null,null,null,null,null,43.1,null,null,null,null,null,null,null,null,null,null,null,null,null,null,null,null,null,null,null,null,null,null,null,null,null,null,43.1]
[null,null,null,null,null,null,null,null,null,null,null,null,null,null,43.2,null,null,null,null,null,null,null,null,null,null,null,null,null,null,null,null,null,null,null,null,null,null,null,null,null,null,43.2]
[null,null,null,null,null,null,null,null,null,null,null,null,null,null,43.3,null,null,null,null,null,null,null,null,null,null,null,null,null,null,null,null,null,null,null,null,null,null,null,null,null,null,43.3]
[null,null,null,null,null,null,null,null,null,null,null,null,null,null,43.4,null,null,null,null,null,null,null,null,null,null,null,null,null,null,null,null,null,null,null,null,null,null,null,null,null,null,43.4]
[null,null,null,null,null,null,null,null,null,null,null,null,null,null,43.5,null,null,null,null,null,null,null,null,null,null,null,null,null,null,null,null,null,null,null,null,null,null,null,null,null,null,43.5]
[null,null,null,null,null,null,null,null,null,null,null,null,null,null,43.6,null,null,null,null,null,null,null,null,null,null,null,null,null,null,null,null,null,null,null,null,null,null,null,null,null,null,43.6]
[null,null,null,null,null,null,null,null,null,null,null,null,null,null,43.7,null,null,null,null,null,null,null,null,null,null,null,null,null,null,null,null,null,null,null,null,null,null,null,null,null,null,43.7]
[null,null,null,null,null,null,null,null,null,null,null,null,null,null,43.8,null,null,null,null,null,null,null,null,null,null,null,null,null,null,null,null,null,null,null,null,null,null,null,null,null,null,43.8]
[null,null,null,null,null,null,null,null,null,null,null,null,null,null,43.9,null,null,null,null,null,null,null,null,null,null,null,null,null,null,null,null,null,null,null,null,null,null,null,null,null,null,43.9]
[null,null,null,null,null,null,null,null,null,null,null,null,null,null,44,null,null,null,null,null,null,null,null,null,null,null,null,null,null,null,null,null,null,null,null,null,null,null,null,null,null,44]
[null,null,null,null,null,null,null,null,null,null,null,null,null,null,44.1,null,null,null,null,null,null,null,null,null,null,null,null,null,null,null,null,null,null,null,null,null,null,null,null,null,null,44.1]
[null,null,null,null,null,null,null,null,null,null,null,null,null,null,44.2,null,null,null,null,null,null,null,null,null,null,null,null,null,null,null,null,null,null,null,null,null,null,null,null,null,null,44.2]
[null,null,null,null,null,null,null,null,null,null,null,null,null,null,44.3,null,null,null,null,null,null,null,null,null,null,null,null,null,null,null,null,null,null,null,null,null,null,null,null,null,null,44.3]
[null,null,null,null,null,null,null,null,null,null,null,null,null,null,44.4,null,null,null,null,null,null,null,null,null,null,null,null,null,null,null,null,null,null,null,null,null,null,null,null,null,null,44.4]
[null,null,null,null,null,null,null,null,null,null,null,null,null,null,44.5,null,null,null,null,null,null,null,null,null,null,null,null,null,null,null,null,null,null,null,null,null,null,null,null,null,null,44.5]
[null,null,null,null,null,null,null,null,null,null,null,null,null,null,44.6,null,null,null,null,null,null,null,null,null,null,null,null,null,null,null,null,null,null,null,null,null,null,null,null,null,null,44.6]
[null,null,null,null,null,null,null,null,null,null,null,null,null,null,44.7,null,null,null,null,null,null,null,null,null,null,null,null,null,null,null,null,null,null,null,null,null,null,null,null,null,null,44.7]
[null,null,null,null,null,null,null,null,null,null,null,null,null,null,44.8,null,null,null,null,null,null,null,null,null,null,null,null,null,null,null,null,null,null,null,null,null,null,null,null,null,null,44.8]
[null,null,null,null,null,null,null,null,null,null,null,null,null,null,44.9,null,null,null,null,null,null,null,null,null,null,null,null,null,null,null,null,null,null,null,null,null,null,null,null,null,null,44.9]
[null,null,null,null,null,null,null,null,null,null,null,null,null,null,45,null,null,null,null,null,null,null,null,null,null,null,null,null,null,null,null,null,null,null,null,null,null,null,null,null,null,45]
[null,null,null,null,null,null,null,null,null,null,null,null,null,null,45.1,null,null,null,null,null,null,null,null,null,null,null,null,null,null,null,null,null,null,null,null,null,null,null,null,null,null,45.1]
[null,null,null,null,null,null,null,null,null,null,null,null,null,null,45.2,null,null,null,null,null,null,null,null,null,null,null,null,null,null,null,null,null,null,null,null,null,null,null,null,null,null,45.2]
[null,null,null,null,null,null,null,null,null,null,null,null,null,null,45.3,null,null,null,null,null,null,null,null,null,null,null,null,null,null,null,null,null,null,null,null,null,null,null,null,null,null,45.3]
[null,null,null,null,null,null,null,null,null,null,null,null,null,null,45.4,null,null,null,null,null,null,null,null,null,null,null,null,null,null,null,null,null,null,null,null,null,null,null,null,null,null,45.4]
[null,null,null,null,null,null,null,null,null,null,null,null,null,null,45.5,null,null,null,null,null,null,null,null,null,null,null,null,null,null,null,null,null,null,null,null,null,null,null,null,null,null,45.5]
[null,null,null,null,null,null,null,null,null,null,null,null,null,null,45.6,null,null,null,null,null,null,null,null,null,null,null,null,null,null,null,null,null,null,null,null,null,null,null,null,null,null,45.6]
[null,null,null,null,null,null,null,null,null,null,null,null,null,null,45.7,null,null,null,null,null,null,null,null,null,null,null,null,null,null,null,null,null,null,null,null,null,null,null,null,null,null,45.7]
[null,null,null,null,null,null,null,null,null,null,null,null,null,null,45.8,null,null,null,null,null,null,null,null,null,null,null,null,null,null,null,null,null,null,null,null,null,null,null,null,null,null,45.8]
[null,null,null,null,null,null,null,null,null,null,null,null,null,null,45.9,null,null,null,null,null,null,null,null,null,null,null,null,null,null,null,null,null,null,null,null,null,null,null,null,null,null,45.9]
[null,null,null,null,null,null,null,null,null,null,null,null,null,null,46,null,null,null,null,null,null,null,null,null,null,null,null,null,null,null,null,null,null,null,null,null,null,null,null,null,null,46]
[null,null,null,null,null,null,null,null,null,null,null,null,null,null,46.1,null,null,null,null,null,null,null,null,null,null,null,null,null,null,null,null,null,null,null,null,null,null,null,null,null,null,46.1]
[null,null,null,null,null,null,null,null,null,null,null,null,null,null,46.2,null,null,null,null,null,null,null,null,null,null,null,null,null,null,null,null,null,null,null,null,null,null,null,null,null,null,46.2]
[null,null,null,null,null,null,null,null,null,null,null,null,null,null,46.3,null,null,null,null,null,null,null,null,null,null,null,null,null,null,null,null,null,null,null,null,null,null,null,null,null,null,46.3]
[null,null,null,null,null,null,null,null,null,null,null,null,null,null,46.4,null,null,null,null,null,null,null,null,null,null,null,null,null,null,null,null,null,null,null,null,null,null,null,null,null,null,46.4]
[null,null,null,null,null,null,null,null,null,null,null,null,null,null,46.5,null,null,null,null,null,null,null,null,null,null,null,null,null,null,null,null,null,null,null,null,null,null,null,null,null,null,46.5]
[null,null,null,null,null,null,null,null,null,null,null,null,null,null,46.6,null,null,null,null,null,null,null,null,null,null,null,null,null,null,null,null,null,null,null,null,null,null,null,null,null,null,46.6]
[null,null,null,null,null,null,null,null,null,null,null,null,null,null,46.7,null,null,null,null,null,null,null,null,null,null,null,null,null,null,null,null,null,null,null,null,null,null,null,null,null,null,46.7]
[null,null,null,null,null,null,null,null,null,null,null,null,null,null,46.8,null,null,null,null,null,null,null,null,null,null,null,null,null,null,null,null,null,null,null,null,null,null,null,null,null,null,46.8]
[null,null,null,null,null,null,null,null,null,null,null,null,null,null,46.9,null,null,null,null,null,null,null,null,null,null,null,null,null,null,null,null,null,null,null,null,null,null,null,null,null,null,46.9]
[null,null,null,null,null,null,null,null,null,null,null,null,null,null,47,null,null,null,null,null,null,null,null,null,null,null,null,null,null,null,null,null,null,null,null,null,null,null,null,null,null,47]
[null,null,null,null,null,null,null,null,null,null,null,null,null,null,47.1,null,null,null,null,null,null,null,null,null,null,null,null,null,null,null,null,null,null,null,null,null,null,null,null,null,null,47.1]
[null,null,null,null,null,null,null,null,null,null,null,null,null,null,47.2,null,null,null,null,null,null,null,null,null,null,null,null,null,null,null,null,null,null,null,null,null,null,null,null,null,null,47.2]
[null,null,null,null,null,null,null,null,null,null,null,null,null,null,47.3,null,null,null,null,null,null,null,null,null,null,null,null,null,null,null,null,null,null,null,null,null,null,null,null,null,null,47.3]
[null,null,null,null,null,null,null,null,null,null,null,null,null,null,47.4,null,null,null,null,null,null,null,null,null,null,null,null,null,null,null,null,null,null,null,null,null,null,null,null,null,null,47.4]
[null,null,null,null,null,null,null,null,null,null,null,null,null,null,47.5,null,null,null,null,null,null,null,null,null,null,null,null,null,null,null,null,null,null,null,null,null,null,null,null,null,null,47.5]
[null,null,null,null,null,null,null,null,null,null,null,null,null,null,47.6,null,null,null,null,null,null,null,null,null,null,null,null,null,null,null,null,null,null,null,null,null,null,null,null,null,null,47.6]
[null,null,null,null,null,null,null,null,null,null,null,null,null,null,47.7,null,null,null,null,null,null,null,null,null,null,null,null,null,null,null,null,null,null,null,null,null,null,null,null,null,null,47.7]
[null,null,null,null,null,null,null,null,null,null,null,null,null,null,47.8,null,null,null,null,null,null,null,null,null,null,null,null,null,null,null,null,null,null,null,null,null,null,null,null,null,null,47.8]
[null,null,null,null,null,null,null,null,null,null,null,null,null,null,47.9,null,null,null,null,null,null,null,null,null,null,null,null,null,null,null,null,null,null,null,null,null,null,null,null,null,null,47.9]
[null,null,null,null,null,null,null,null,null,null,null,null,null,null,48,null,null,null,null,null,null,null,null,null,null,null,null,null,null,null,null,null,null,null,null,null,null,null,null,null,null,48]
[null,null,null,null,null,null,null,null,null,null,null,null,null,null,48.1,null,null,null,null,null,null,null,null,null,null,null,null,null,null,null,null,null,null,null,null,null,null,null,null,null,null,48.1]
[null,null,null,null,null,null,null,null,null,null,null,null,null,null,48.2,null,null,null,null,null,null,null,null,null,null,null,null,null,null,null,null,null,null,null,null,null,null,null,null,null,null,48.2]
[null,null,null,null,null,null,null,null,null,null,null,null,null,null,48.3,null,null,null,null,null,null,null,null,null,null,null,null,null,null,null,null,null,null,null,null,null,null,null,null,null,null,48.3]
[null,null,null,null,null,null,null,null,null,null,null,null,null,null,48.4,null,null,null,null,null,null,null,null,null,null,null,null,null,null,null,null,null,null,null,null,null,null,null,null,null,null,48.4]
[null,null,null,null,null,null,null,null,null,null,null,null,null,null,48.5,null,null,null,null,null,null,null,null,null,null,null,null,null,null,null,null,null,null,null,null,null,null,null,null,null,null,48.5]
[null,null,null,null,null,null,null,null,null,null,null,null,null,null,48.6,null,null,null,null,null,null,null,null,null,null,null,null,null,null,null,null,null,null,null,null,null,null,null,null,null,null,48.6]
[null,null,null,null,null,null,null,null,null,null,null,null,null,null,48.7,null,null,null,null,null,null,null,null,null,null,null,null,null,null,null,null,null,null,null,null,null,null,null,null,null,null,48.7]
[null,null,null,null,null,null,null,null,null,null,null,null,null,null,48.8,null,null,null,null,null,null,null,null,null,null,null,null,null,null,null,null,null,null,null,null,null,null,null,null,null,null,48.8]
[null,null,null,null,null,null,null,null,null,null,null,null,null,null,48.9,null,null,null,null,null,null,null,null,null,null,null,null,null,null,null,null,null,null,null,null,null,null,null,null,null,null,48.9]
[null,null,null,null,null,null,null,null,null,null,null,null,null,null,49,null,null,null,null,null,null,null,null,null,null,null,null,null,null,null,null,null,null,null,null,null,null,null,null,null,null,49]
[null,null,null,null,null,null,null,null,null,null,null,null,null,null,49.1,null,null,null,null,null,null,null,null,null,null,null,null,null,null,null,null,null,null,null,null,null,null,null,null,null,null,49.1]
[null,null,null,null,null,null,null,null,null,null,null,null,null,null,49.2,null,null,null,null,null,null,null,null,null,null,null,null,null,null,null,null,null,null,null,null,null,null,null,null,null,null,49.2]
[null,null,null,null,null,null,null,null,null,null,null,null,null,null,49.3,null,null,null,null,null,null,null,null,null,null,null,null,null,null,null,null,null,null,null,null,null,null,null,null,null,null,49.3]
[null,null,null,null,null,null,null,null,null,null,null,null,null,null,49.4,null,null,null,null,null,null,null,null,null,null,null,null,null,null,null,null,null,null,null,null,null,null,null,null,null,null,49.4]
[null,null,null,null,null,null,null,null,null,null,null,null,null,null,49.5,null,null,null,null,null,null,null,null,null,null,null,null,null,null,null,null,null,null,null,null,null,null,null,null,null,null,49.5]
[null,null,null,null,null,null,null,null,null,null,null,null,null,null,49.6,null,null,null,null,null,null,null,null,null,null,null,null,null,null,null,null,null,null,null,null,null,null,null,null,null,null,49.6]
[null,null,null,null,null,null,null,null,null,null,null,null,null,null,49.7,null,null,null,null,null,null,null,null,null,null,null,null,null,null,null,null,null,null,null,null,null,null,null,null,null,null,49.7]
[null,null,null,null,null,null,null,null,null,null,null,null,null,null,49.8,null,null,null,null,null,null,null,null,null,null,null,null,null,null,null,null,null,null,null,null,null,null,null,null,null,null,49.8]
[null,null,null,null,null,null,null,null,null,null,null,null,null,null,49.9,null,null,null,null,null,null,null,null,null,null,null,null,null,null,null,null,null,null,null,null,null,null,null,null,null,null,49.9]
[null,null,null,null,null,null,null,null,null,null,null,null,null,null,50,null,null,null,null,null,null,null,null,null,null,null,null,null,null,null,null,null,null,null,null,null,null,null,null,null,null,50]